{"text_format":"1","workbook":"xlsx","n_sheets":8,"sheets":["Public Facilities SET UP","Public Facilities COMPLETION","Accomplishments","Replacement-Displacement only","Year 2","Year 3","Validation","Data Validation"],"not_rendered":{"charts":0,"images":62,"macros":1,"external_links":2,"defined_names":120,"comments":6,"pivot_tables":0},"unopened":[],"bounds":{"document_bytes":16777216,"sheet_cells":100000,"rows_first":2000,"rows_last":500,"rows_between":2000,"halvings":0,"cell_chars":16384,"cell_head_chars":4096},"cells_cut":0,"cells_raw":0,"read":"whole","date_system":"1900"}

{"sheet":"Public Facilities SET UP","index":0,"n_rows":310,"n_cols":94,"rows_kept":310,"cut":false,"hidden":false,"merged":[[130,109,130,121],[130,123,130,129],[130,38,130,50],[130,52,130,58],[130,60,130,72],[104,81,167,83],[132,12,144,78],[130,30,130,36],[298,12,299,58],[281,14,281,35],[281,67,281,76],[279,37,279,65],[279,67,279,76],[294,67,296,76],[275,13,277,35],[289,14,289,35],[257,53,257,63],[264,14,267,33],[269,14,269,63],[294,52,296,65],[287,67,287,76],[130,73,130,76],[228,50,229,54],[228,38,229,42],[228,29,229,33],[228,13,229,27],[225,47,226,58],[225,37,226,43],[1,81,103,83],[309,11,310,79],[32,11,32,23],[291,67,291,76],[291,55,291,65],[178,21,179,27],[181,21,182,27],[184,21,185,27],[181,13,182,19],[212,39,213,57],[212,59,213,65],[184,13,185,19],[187,13,188,19],[190,13,191,19],[289,67,289,76],[212,13,213,26],[257,65,257,76],[289,37,289,65],[255,65,255,76],[126,11,128,17],[126,18,128,52],[126,53,128,79],[121,49,123,65],[130,12,130,29],[1,61,3,79],[25,56,27,62],[28,56,30,79],[5,11,5,79],[11,11,11,36],[51,47,51,77],[52,47,53,77],[46,13,46,43],[80,52,81,59],[80,38,81,50],[65,47,65,63],[48,13,48,43],[54,13,54,43],[46,47,46,51],[55,13,56,43],[61,13,61,43],[40,56,40,71],[42,54,44,79],[31,63,31,79],[31,56,31,62],[31,26,31,54],[31,11,31,23],[35,56,35,67],[42,18,44,53],[58,54,59,77],[58,13,59,53],[49,13,50,43],[36,56,37,67],[36,11,36,13],[34,11,34,20],[34,56,34,79],[34,21,34,54],[35,21,36,54],[38,21,38,54],[39,21,40,54],[62,47,63,77],[62,13,63,43],[84,36,84,59],[83,36,83,59],[1,55,3,60],[7,56,8,79],[12,11,14,54],[16,11,28,54],[15,56,19,61],[12,56,13,61],[15,62,19,67],[25,73,27,79],[4,11,4,79],[12,62,13,67],[12,69,13,72],[12,73,13,79],[15,69,19,72],[15,73,19,79],[25,63,27,66],[25,70,27,72],[7,11,10,54],[9,56,11,79],[1,11,3,22],[1,23,3,52],[32,56,32,62],[32,63,32,79],[46,53,46,77],[51,13,51,43],[52,13,53,43],[61,47,61,76],[55,65,56,77],[35,11,35,20],[38,11,38,20],[54,65,54,77],[55,47,56,63],[54,47,54,63],[49,47,50,77],[40,11,40,13],[40,14,40,20],[40,72,40,79],[39,56,39,71],[35,68,35,79],[36,68,37,79],[39,72,39,79],[42,11,44,17],[36,14,36,20],[39,11,39,20],[48,47,48,77],[83,13,83,34],[80,65,81,73],[73,18,75,53],[73,54,75,79],[105,53,107,79],[105,18,107,52],[68,13,69,14],[117,56,118,77],[77,13,77,28],[79,38,79,47],[79,52,79,59],[94,13,101,77],[84,13,84,34],[105,11,107,17],[92,29,93,39],[73,11,75,17],[68,15,69,36],[242,11,244,17],[242,53,244,79],[242,18,244,52],[285,14,285,35],[287,14,287,35],[255,14,255,63],[271,53,271,63],[260,13,262,26],[246,51,248,76],[250,65,253,76],[283,67,283,76],[279,14,279,35],[264,65,267,76],[246,13,248,21],[250,14,253,33],[283,14,283,35],[283,37,283,65],[285,37,285,65],[287,37,287,65],[285,67,285,76],[271,65,271,76],[269,65,269,76],[281,37,281,65],[175,29,176,77],[157,13,157,29],[178,13,179,19],[173,13,173,27],[173,65,173,77],[187,21,188,27],[190,21,191,27],[169,11,171,17],[169,53,171,79],[169,18,171,52],[217,11,219,17],[217,18,219,52],[217,53,219,79],[221,43,222,56],[212,28,213,34],[232,50,233,54],[225,29,226,33],[225,13,226,25],[221,13,222,25],[232,38,233,42],[232,29,233,33],[231,13,234,27],[4,93,4,103],[77,29,77,77],[83,61,83,77],[84,61,84,77],[115,57,115,66],[115,45,115,56],[92,13,93,28],[146,11,148,17],[146,18,148,52],[109,13,110,47],[80,13,81,36],[115,13,115,29],[86,13,86,34],[117,24,118,47],[79,61,79,77],[79,13,79,36],[66,46,66,63],[65,65,65,77],[65,36,65,44],[65,13,65,30],[66,65,66,77],[66,36,66,44],[66,13,66,34],[116,12,118,23],[300,12,307,78],[173,58,173,64],[173,48,173,50],[173,51,173,57],[168,81,307,83],[150,13,151,23],[146,53,148,79],[157,31,161,78],[121,13,122,35],[121,38,123,46],[154,13,155,29],[154,31,155,77],[208,13,209,19],[208,21,209,27],[193,13,194,19],[193,21,194,27],[196,13,197,19],[196,21,197,27],[199,13,200,19],[199,21,200,27],[202,13,203,19],[202,21,203,27],[205,13,206,19],[205,21,206,27]]}
[]
[null,null,null,null,null,null,null,null,null,null,null,"Jurisdiction Name:",null,null,null,null,null,null,null,null,null,null,null,null,null,null,null,null,null,null,null,null,null,null,null,null,null,null,null,null,null,null,null,null,null,null,null,null,null,null,null,null,null,null,null,"Contract #",null,null,null,null,null,null,null,null,null,null,null,null,null,null,null,null,null,null,null,null,null,null,null,null,null,"Page 1"]
[]
[]
[null,null,null,null,null,null,null,null,null,null,null,"STATE OF CALIFORNIA - CDBG PROGRAM\nCDBG Program",null,null,null,null,null,null,null,null,null,null,null,null,null,null,null,null,null,null,null,null,null,null,null,null,null,null,null,null,null,null,null,null,null,null,null,null,null,null,null,null,null,null,null,null,null,null,null,null,null,null,null,null,null,null,null,null,null,null,null,null,null,null,null,null,null,null,null,null,null,null,null,null,null,null,null,null,null,null,null,null,null,"Updates"]
[null,null,null,null,null,null,null,null,null,null,null,"Project Setup & Completion Report",null,null,null,null,null,null,null,null,null,null,null,null,null,null,null,null,null,null,null,null,null,null,null,null,null,null,null,null,null,null,null,null,null,null,null,null,null,null,null,null,null,null,null,null,null,null,null,null,null,null,null,null,null,null,null,null,null,null,null,null,null,null,null,null,null,null,null,null,null,null,null,null,null,null,null,null,null,null,null,null,null,"Added more Census Block fields"]
[]
[null,null,null,null,null,null,null,null,null,null,null,"Public Facilities",null,null,null,null,null,null,null,null,null,null,null,null,null,null,null,null,null,null,null,null,null,null,null,null,null,null,null,null,null,null,null,null,null,null,null,null,null,null,null,null,null,null,null,null,"FOR CDBG USE ONLY"]
[]
[null,null,null,null,null,null,null,null,null,null,null,null,null,null,null,null,null,null,null,null,null,null,null,null,null,null,null,null,null,null,null,null,null,null,null,null,null,null,null,null,null,null,null,null,null,null,null,null,null,null,null,null,null,null,null,null,"Project Completion Report"]
[]
[]
[null,null,null,null,null,null,null,null,null,null,null,"Complete this form as a Setup Report, a Completion Report or a Setup and Completion Report and submit to your CDBG Program Representative.",null,null,null,null,null,null,null,null,null,null,null,null,null,null,null,null,null,null,null,null,null,null,null,null,null,null,null,null,null,null,null,null,null,null,null,null,null,null,null,null,null,null,null,null,"Mgr Initials:",null,null,null,null,null,null,null,null,null,null,null,null,"Date",null,null,null,null,null,null,null,null,null,null,null,null,null,null,null,null,null,null,null,null,null,null,null,"Completion, deleted SBA information required."]
[]
[]
[null,null,null,null,null,null,null,null,null,null,null,null,null,null,null,null,null,null,null,null,null,null,null,null,null,null,null,null,null,null,null,null,null,null,null,null,null,null,null,null,null,null,null,null,null,null,null,null,null,null,null,null,null,null,null,null,"Rep Initials:",null,null,null,null,null,null,null,null,null,null,null,null,"Date"]
[null,null,null,null,null,null,null,null,null,null,null,"Department of Housing and Community Development\nCDBG Program \nP.O. Box 952054\nSacramento CA, 94252-2054"]
[]
[]
[]
[]
[]
[]
[]
[]
[null,null,null,null,null,null,null,null,null,null,null,null,null,null,null,null,null,null,null,null,null,null,null,null,null,null,null,null,null,null,null,null,null,null,null,null,null,null,null,null,null,null,null,null,null,null,null,null,null,null,null,null,null,null,null,null,"Fiscal Initials",null,null,null,null,null,null," ",null,null,null,null,null,null,"Date:"]
[]
[]
[null,null,null,null,null,null,null,null,null,null,null,null,null,null,null,null,null,null,null,null,null,null,null,null,null,null,null,null,null,null,null,null,null,null,null,null,null,null,null,null,null,null,null,null,null,null,null,null,null,null,null,null,null,null,null,null,"Program Income"]
[]
[]
[null,null,null,null,null,null,null,null,null,null,null,"PI Only Funding",null,null,null,null,null,null,null,null,null,null,null,null,null,null,"All CDBG funds used in this project",null,null,null,null,null,null,null,null,null,null,null,null,null,null,null,null,null,null,null,null,null,null,null,null,null,null,null,null,null,"PI Receipt #"]
[null,null,null,null,null,null,null,null,null,null,null,"Select Option",null,null,null,null,null,null,null,null,null,null,null,null,null,null,null,null,null,null,null,null,null,null,null,null,null,null,null,null,null,null,null,null,null,null,null,null,null,null,null,null,null,null,null,null,"PI Voucher #"]
[]
[null,null,null,null,null,null,null,null,null,null,null,"Setup",null,null,null,null,null,null,null,null,null,{"$f":"IF(L36=\"revised\",\"If Revised, Why?\",\"\")","v":""},null,null,null,null,null,null,null,null,null,null,null,null,null,null,null,null,null,null,null,null,null,null,null,null,null,null,null,null,null,null,null,null,null,null,"CDBG-Assigned Numbers"]
[null,null,null,null,null,null,null,null,null,null,null,"Select Option",null,null,null,null,null,null,null,null,null,null,null,null,null,null,null,null,null,null,null,null,null,null,null,null,null,null,null,null,null,null,null,null,null,null,null,null,null,null,null,null,null,null,null,null,"CDBG Project Number",null,null,null,null,null,null,null,null,null,null,null,"IDIS Activity Number"]
[null,null,null,null,null,null,null,null,null,null,null,"Date"]
[null,null,null,null,null,null,null,null,null,null,null,null,null,null,null,null,null,null,null,null,null,""]
[null,null,null,null,null,null,null,null,null,null,null,"Completion",null,null,null,null,null,null,null,null,null,{"$f":"IF(L40=\"Cancelled\",\"If Cancelled, Why?\",IF(L40=\"revised\",\"If Revised, Why?\",\"\"))","v":""}]
[null,null,null,null,null,null,null,null,null,null,null,"Select Option",null,null,null,null,null,null,null,null,null,null,null,null,null,null,null,null,null,null,null,null,null,null,null,null,null,null,null,null,null,null,null,null,null,null,null,null,null,null,null,null,null,null,null,null,"Proposed completion MM/YY"]
[null,null,null,null,null,null,null,null,null,null,null,"Date",null,null,null,null,null,null,null,null,null,null,null,null,null,null,null,null,null,null,null,null,null,null,null,null,null,null,null,null,null,null,null,null,null,null,null,null,null,null,null,null,null,null,null,null,"Proposed # of Beneficiaries"]
[]
[null,null,null,null,null,null,null,null,null,null,null,"Part A ",null,null,null,null,null,null,"JURISDICTION INFORMATION & PREPARER",null,null,null,null,null,null,null,null,null,null,null,null,null,null,null,null,null,null,null,null,null,null,null,null,null,null,null,null,null,null,null,null,null,null,null,"REQUIRED"]
[]
[]
[]
[null,null,null,null,null,null,null,null,null,null,null,null,null,"Jurisdiction Contact Information",null,null,null,null,null,null,null,null,null,null,null,null,null,null,null,null,null,null,null,null,null,null,null,null,null,null,null,null,null,null,null,null,null,"Preparer",null,null,null,null,null,"Select Option"]
[]
[null,null,null,null,null,null,null,null,null,null,null,null,null,"1a. Name (Contact Person)",null,null,null,null,null,null,null,null,null,null,null,null,null,null,null,null,null,null,null,null,null,null,null,null,null,null,null,null,null,null,null,null,null,"2a. Preparer's Name"]
[]
[]
[null,null,null,null,null,null,null,null,null,null,null,null,null,"1b. E-Mail",null,null,null,null,null,null,null,null,null,null,null,null,null,null,null,null,null,null,null,null,null,null,null,null,null,null,null,null,null,null,null,null,null,"2b. Organization (if not grantee)"]
[]
[]
[null,null,null,null,null,null,null,null,null,null,null,null,null,"1c. Phone/Direct Line",null,null,null,null,null,null,null,null,null,null,null,null,null,null,null,null,null,null,null,null,null,null,null,null,null,null,null,null,null,null,null,null,null,"2c. E-Mail",null,null,null,null,null,null,null,null,null,null,null,null,null,null,null,null,null,"2d. Phone/Direct Line"]
[]
[]
[]
[null,null,null,null,null,null,null,null,null,null,null,null,null,"Subrecipient Information (Only)",null,null,null,null,null,null,null,null,null,null,null,null,null,null,null,null,null,null,null,null,null,null,null,null,null,null,null,null,null,null,null,null,null,null,null,null,null,null,null,null,"REQUIRED if applicable"]
[]
[]
[null,null,null,null,null,null,null,null,null,null,null,null,null,"3a. Organization name",null,null,null,null,null,null,null,null,null,null,null,null,null,null,null,null,null,null,null,null,null,null,null,null,null,null,null,null,null,null,null,null,null,"3b. Complete address"]
[]
[]
[]
[null,null,null,null,null,null,null,null,null,null,null,null,null,"3c. Organization is categorized as:",null,null,null,null,null,null,null,null,null,null,null,null,null,null,null,null,null,null,null,null,null,null,"3d. DUNS number",null,null,null,null,null,null,null,null,null,null,"3e. E-Mail",null,null,null,null,null,null,null,null,null,null,null,null,null,null,null,null,null,"3f. Phone/Direct Line"]
[null,null,null,null,null,null,null,null,null,null,null,null,null,"Select Option"]
[null,null,null,null,null,null,null,null,null,null,null,null,null,null,null,null,null,null,null,null,null,null,null,null,null,null,null,null,null,null,null,null,null,null,null,null,null,null,null,null,null,null,null,null,null,null,null,null,null,null,null,null,null,null,null,null,null,null,null,null,null,null,null,null,null,null,null,null,null,null,null,null,null,null,null,null,null,null,null,null,null,null,null,null,null,null,null,null,null,null,"URG - Urgent Need (requires department approval)"]
[null,null,null,null,null,null,null,null,null,null,null,null,null,"3g. ",null,"Check all that applies to this organization"]
[null,null,null,null,null,null,null,null,null,null,null,null,null,null,null,null,null,null,null,null,null,null,null,null,null,null,null,null,null,null,null,null,null,null,null,null,null,null,null,null,null,null,null,null,null,null,null,null,null,null,null,null,null,null,null,null,null,null,null,null,null,null,null,null,null,null,null,null,null,null,null,null,null,null,null,null,null,null,null,null,null,null,null,null,null,null,null,null,null,null,"LMH - Low/Mod housing benefit"]
[]
[]
[]
[null,null,null,null,null,null,null,null,null,null,null,"Part B ",null,null,null,null,null,null,"PROJECT & ACTIVITY INFORMATION",null,null,null,null,null,null,null,null,null,null,null,null,null,null,null,null,null,null,null,null,null,null,null,null,null,null,null,null,null,null,null,null,null,null,null,"REQUIRED"]
[null,null,null,null,null,null,null,null,null,null,null,null,null,null,null,null,null,null,null,null,null,null,null,null,null,null,null,null,null,null,null,null,null,null,null,null,null,null,null,null,null,null,null,null,null,null,null,null,null,null,null,null,null,null,null,null,null,null,null,null,null,null,null,null,null,null,null,null,null,null,null,null,null,null,null,null,null,null,null,null,null,null,null,null,null,null,null,null,null,null,"LMA - Low/Mod area benefit"]
[]
[]
[null,null,null,null,null,null,null,null,null,null,null,null,null,"1a. Name of Public Facility",null,null,null,null,null,null,null,null,null,null,null,null,null,null,null,null,null,null,null,null,null,null,null,null,null,null,null,null,null,null,null,null,null,null,null,null,null,null,null,null,null,null,null,null,null,null,null,null,null,null,null,null,null,null,null,null,null,null,null,null,null,null,null,null,null,null,null,null,null,null,null,null,null,null,null,null,"SBA - Slum/Blight area benefit"]
[]
[null,null,null,null,null,null,null,null,null,null,null,null,null,"1b. Public Facility Address",null,null,null,null,null,null,null,null,null,null,null,null,null,null,null,null,null,null,null,null,null,null,null,null,"1c. City",null,null,null,null,null,null,null,null,null,null,null,null,null,"1d. Zip Code",null,null,null,null,null,null,null,null,"CDBG Project Amount (Incl AD)",null,null,null,null,null,null,null,null,null,null,null,null,null,null,null,null,null,null,null,null,null,null,null,null,null,null,null,null,"03T - Operating Cost of Homeless/AIDS Patient Programs"]
[null,null,null,null,null,null,null,null,null,null,null,null,null," ",null,null,null,null,null,null,null,null,null,null,null,null,null,null,null,null,null,null,null,null,null,null,null,null,null,null,null,null,null,null,null,null,null,null,null,null,null,null,null,null,null,null,null,null,null,null,null,null,null,null,null,{"$f":"SUM($BN$258,$BN$272)","v":0},null,null,null,null,null,null,null,null,null,null,null,null,null,null,null,null,null,null,null,null,null,null,null,null,"LMC - Low/Mod limited clientele benefit"]
[]
[]
[null,null,null,null,null,null,null,null,null,null,null,null,null,"2. National Objective",null,null,null,null,null,null,null,null,null,null,null,null,null,null,null,null,null,null,null,null,null,null,"3. Activity & Matrix Code",null,null,null,null,null,null,null,null,null,null,null,null,null,null,null,null,null,null,null,null,null,null,null,null,"Accomplishment Type",null,null,null,null,null,null,null,null,null,null,null,null,null,null,null,null,null,null,null,null,null,null,null,null,null,null,null,null,"05H - Employment Training"]
[null,null,null,null,null,null,null,null,null,null,null,null,null,"Select Option",null,null,null,null,null,null,null,null,null,null,null,null,null,null,null,null,null,null,null,null,null,null,"Select Option",null,null,null,null,null,null,null,null,null,null,null,null,null,null,null,null,null,null,null,null,null,null,null,null,"01 - People (General)",null,null,null,null,null,null,null,null,null,null,null,null,null,null,null,null,null,null,null,null,null,null,null,null,null,null,null,null,"05R - Homeownership Assistance (not direct)"]
[]
[null,null,null,null,null,null,null,null,null,null,null,null,null,"4. Activity Purpose (check all that apply)",null,null,null,null,null,null,null,null,null,null,null,null,null,null,null,null,null,null,null,null,null,null,null,null,null,null,null,null,null,null,null,null,null,null,null,null,null,null,null,null,null,null,null,null,null,null,null,null,null,null,null,null,null,null,null,null,null,null,null,null,null,null,null,null,null,null,null,null,null,null,null,null,null,null,null,null,"05S - Rental Housing Subsidies"]
[]
[null,null,null,null,null,null,null,null,null,null,null,null,null,null,null,null,null,null,null,null,null,null,null,null,null,null,null,null,null,null,null,null,null,null,null,null,null,null,null,null,null,null,null,null,null,null,null,null,null,null,null,null,null,null,null,null,null,null,null,null,null,null,null,null,null,null,null,null,null,null,null,null,null,null,null,null,null,null,null,null,null,null,null,null,null,null,null,null,null,null,"05T - Security Deposits"]
[]
[]
[]
[null,null,null,null,null,null,null,null,null,null,null,null,null,"5. Description / Scope of work",null,null,null,null,null,null,null,null,null,null,null,null,null,null,null,null,null,null,null,null,null,null,null,null,null,null,null,null,null,null,null,null,null,null,null,null,null,null,null,null,null,null,null,null,null,null,null,null,null,null,null,null,null,null,null,null,null,null,null,null,null,null,null,null,null,null,null,null,null,null,null,null,null,null,null,null,"15 - Code Enforcement"]
[]
[]
[null,null,null,null,null,null,null,null,null,null,null,null,null,null,null,null,null,null,null,null,null,null,null,null,null,null,null,null,null,null,null,null,null,null,null,null,null,null,null,null,null,null,null,null,null,null,null,null,null,null,null,null,null,null,null,null,null,null,null,null,null,null,null,null,null,null,null,null,null,null,null,null,null,null,null,null,null,null,null,null,null,null,null,null,null,null,null,null,null,null,"10 - Housing Units"]
[]
[]
[null,null,null,null,null,null,null,null,null,null,null,null,null,null,null,null,null,null,null,null,null,null,null,null,null,null,null,null,null,null,null,null,null,null,null,null,null,null,null,null,null,null,null,null,null,null,null,null,null,null,null,null,null,null,null,null,null,null,null,null,null,null,null,null,null,null,null,null,null,null,null,null,null,null,null,null,null,null,null,null,null,null,null,null,null,null,null,null,null,null,"01 - People (General)"]
[]
[null,null,null,null,null,null,null,null,null,null,null,null,null,null,null,null,null,null,null,null,null,null,null,null,null,null,null,null,null,null,null,null,null,null,null,null,null,null,null,null,null,null,null,null,null,null,null,null,null,null,null,null,null,null,null,null,null,null,null,null,null,null,null,null,null,null,null,null,null,null,null,null,null,null,null,null,null,null,null,null,null,null,null,null,null,null,null,null,null,null,"08 - Businesses"]
[null,null,null,null,null,null,null,null,null,null,null,null,null,null,null,null,null,null,null,null,null,null,null,null,null,null,null,null,null,null,null,null,null,null,null,null,null,null,null,null,null,null,null,null,null,null,null,null,null,null,null,null,null,null,null,null,null,null,null,null,null,null,null,null,null,null,null,null,null,null,null,null,null,null,null,null,null,null,null,null,null,null,null,null,null,null,null,null,null,null,"09 - Organizations"]
[]
[]
[null,null,null,null,null,null,null,null,null,null,null,null,null,null,null,null,null,null,null,null,null,null,null,null,null,null,null,null,null,null,null,null,null,null,null,null,null,null,null,null,null,null,null,null,null,null,null,null,null,null,null,null,null,null,null,null,null,null,null,null,null,null,null,null,null,null,null,null,null,null,null,null,null,null,null,null,null,null,null,null,null,"Page 2"]
[null,null,null,null,null,null,null,null,null,null,null," Part C ",null,null,null,null,null,null,"SPECIAL CHARACTERISTICS",null,null,null,null,null,null,null,null,null,null,null,null,null,null,null,null,null,null,null,null,null,null,null,null,null,null,null,null,null,null,null,null,null,null,"REQUIRED"]
[]
[]
[]
[null,null,null,null,null,null,null,null,null,null,null,null,null,"1. Special Areas Where Activity is Located (Check all that apply)"]
[]
[]
[]
[]
[]
[null,null,null,null,null,null,null,null,null,null,null,null,null,null,null,null,null,null,null,null,null,null,null,null,null,null,null,null,null,null,null,null,null,null,null,null,null,null,null,null,null,null,null,null,null,null,null,null,null,null,null,null,null,null,null,null,null,null,null,null,null,null,null,null,null,null,null,null,null,null,null,null,null,null,null,null,null,null,null,null,null,null,null,null,null,null,"LMC - Low/Mod limited clientele benefit"]
[]
[]
[null,null,null,null,null,null,null,null,null,null,null,null,null,null,null,null,null,null,null,null,null,null,null,null,null,null,null,null,null,null,null,null,null,null,null,null,null,null,null,null,null,null,null,null,null,null,null,null,null,null,null,null,null,null,null,null,null,null,null,null,null,null,null,null,null,null,null,null,null,null,null,null,null,null,null,null,null,null,null,null,null,null,null,null,null,null,"SBA - Slum/Blight area benefit"]
[]
[]
[null,null,null,null,null,null,null,null,null,null,null,null,null,"2. Activity Information (check all that apply)"]
[]
[]
[]
[]
[null,null,null,null,null,null,null,null,null,null,null," Part D ",null,null,null,null,null,null,"CHANGE OF USE DETAILS",null,null,null,null,null,null,null,null,null,null,null,null,null,null,null,null,null,null,null,null,null,null,null,null,null,null,null,null,null,null,null,null,null,null,"REQUIRED"]
[]
[]
[]
[null,null,null,null,null,null,null,null,null,null,null,null,"Construction Completion Date:",null,null,null,null,null,null,null,null,null,null,null,null,null,null,null,null,null,null,null,null,null,null,null,null,null,"Open for Service Date:",null,null,null,null,null,null,null,null,null,null,null,null,null,null,null,null,null,null,null,null,null,"Acquisition Involved?"]
[]
[null,null,null,null,null,null,null,null,null,null,null,null,"                                                         §570.489 Program administrative requirements.\n\n(j) Change of use of real property. The standards described in this section apply to real property within the unit of general local government's control (including activities undertaken by subrecipients) which was acquired or improved in whole or in part using CDBG funds in excess of the threshold for small purchase procurement (24 CFR 85.36, “Administrative Requirements for Grants and Cooperative Agreements to State, Local and Federally Recognized Indian Tribal Governments”). These standards shall apply from the date CDBG funds are first spent for the property until five years after closeout of the unit of general local government's grant.\n\n(1) A unit of general local governments may not change the use or planned use of any such property (including the beneficiaries of such use) from that for which the acquisition or improvement was made, unless the unit of general local government provides affected citizens with reasonable notice of and opportunity to comment on any proposed change, and either: \n\n(i) The new use of the property qualifies as meeting one of the national objectives and is not a building for the general conduct of government; or \n(ii) The requirements in paragraph (j)(2) of this section are met. \n\n(2) If the unit of general local government determines, after consultation with affected citizens, that it is appropriate to change the use of the property to a use which does not qualify under paragraph (j)(1) of this section, it may retain or dispose of the property for the changed use if the unit of general local government's CDBG program is reimbursed or the state's CDBG program is reimbursed, at the discretion of the state. The reimbursement shall be in the amount of the current fair market value of the property, less any portion of the value attributable to expenditures of non-CDBG funds for acquisition of, and improvements to, the property, except that if the change in use occurs after grant closeout but within 5 years of such closeout, the unit of general local government shall make the reimbursement to the State's CDBG program account. \n\n(3) Following the reimbursement of the CDBG program in accordance with paragraph (j)(2) of this section, the property no longer will be subject to any CDBG requirements. \n"]
[]
[]
[]
[]
[]
[]
[]
[]
[]
[]
[]
[]
[]
[null,null,null,null,null,null,null,null,null,null,null,"Part E",null,null,null,null,null,null,"PRESUMED BENEFIT ",null,null,null,null,null,null,null,null,null,null,null,null,null,null,null,null,null,null,null,null,null,null,null,null,null,null,null,null,null,null,null,null,null,null,{"$f":"IF(AND(N85=Validation!D10,'Public Facilities SET UP'!AK85=Validation!D95,'Public Facilities SET UP'!BJ85=Validation!F36),\"REQUIRED\",IF(AND(N85=Validation!D10,'Public Facilities SET UP'!AK85=Validation!D96,'Public Facilities SET UP'!BJ85=Validation!F36),\"REQUIRED\",IF(AND(N85=Validation!D10,'Public Facilities SET UP'!AK85=Validation!D97,'Public Facilities SET UP'!BJ85=Validation!F36),\"REQUIRED\",IF(AND(N85=Validation!D10,'Public Facilities SET UP'!AK85=Validation!D98,'Public Facilities SET UP'!BJ85=Validation!F36),\"REQUIRED\",IF(AND(N85=Validation!D10,'Public Facilities SET UP'!AK85=Validation!D99,'Public Facilities SET UP'!BJ85=Validation!F36),\"REQUIRED\",IF(AND(N85=Validation!D10,'Public Facilities SET UP'!AK85=Validation!D100,'Public Facilities SET UP'!BJ85=Validation!F36),\"REQUIRED\",IF(AND(N85=Validation!D10,'Public Facilities SET UP'!AK85=Validation!D101,'Public Facilities SET UP'!BJ85=Validation!F36),\"REQUIRED\",IF(AND(N85=Validation!D10,'Public Facilities SET UP'!AK85=Validation!D102,'Public Facilities SET UP'!BJ85=Validation!F36),\"REQUIRED\",IF(AND(N85=Validation!D10,'Public Facilities SET UP'!AK85=Validation!D104,'Public Facilities SET UP'!BJ85=Validation!F36),\"REQUIRED\",IF(AND(N85=Validation!D10,'Public Facilities SET UP'!AK85=Validation!D105,'Public Facilities SET UP'!BJ85=Validation!F36),\"REQUIRED\",IF(AND(N85=Validation!D10,'Public Facilities SET UP'!AK85=Validation!D106,'Public Facilities SET UP'!BJ85=Validation!F36),\"REQUIRED\",IF(AND(N85=Validation!D10,'Public Facilities SET UP'!AK85=Validation!D107,'Public Facilities SET UP'!BJ85=Validation!F36),\"REQUIRED\",IF(AND(N85=Validation!D10,'Public Facilities SET UP'!AK85=Validation!D108,'Public Facilities SET UP'!BJ85=Validation!F36),\"REQUIRED\",\"NOT REQUIRED\")))))))))))))","v":"NOT REQUIRED"}]
[]
[]
[]
[null,null,null,null,null,null,null,null,null,null,null,null,null,"Presumed Benefit?"]
[]
[]
[]
[null,null,null,null,null,null,null,null,null,null,null,null,null,"Check Group",null,null,null,null,null,null,null,null,null,null,null,null,null,null,null,null,null,"Income Level"]
[]
[]
[null,null,null,null,null,null,null,null,null,null,null,null,null,"Select Option",null,null,null,null,null,null,null,null,null,null,null,null,null,null,null,null,null,{"$f":"IF(N158=Validation!C83,Validation!D83,IF('Public Facilities SET UP'!N158=Validation!C84,Validation!D84,IF('Public Facilities SET UP'!N158=Validation!C85,Validation!D85,IF('Public Facilities SET UP'!N158=Validation!C86,Validation!D86,IF('Public Facilities SET UP'!N158=Validation!C87,Validation!D87,IF('Public Facilities SET UP'!N158=Validation!C88,Validation!D88,IF('Public Facilities SET UP'!N158=Validation!C89,Validation!D89,IF('Public Facilities SET UP'!N158=Validation!C90,Validation!D90,\"\"))))))))","v":""}]
[]
[]
[]
[]
[]
[]
[]
[]
[]
[]
[null,null,null,null,null,null,null,null,null,null,null,null,null,null,null,null,null,null,null,null,null,null,null,null,null,null,null,null,null,null,null,null,null,null,null,null,null,null,null,null,null,null,null,null,null,null,null,null,null,null,null,null,null,null,null,null,null,null,null,null,null,null,null,null,null,null,null,null,null,null,null,null,null,null,null,null,null,null,null,null,null,"Page 3"]
[null,null,null,null,null,null,null,null,null,null,null," Part F ",null,null,null,null,null,null,"AREA BENEFIT DATA",null,null,null,null,null,null,null,null,null,null,null,null,null,null,null,null,null,null,null,null,null,null,null,null,null,null,null,null,null,null,null,null,null,null,{"$f":"IF(AND(N85=Validation!D9,'Public Facilities SET UP'!AK85=Validation!D99,'Public Facilities SET UP'!BJ85=Validation!F36),\"REQUIRED\",IF(AND(N85=Validation!D9,'Public Facilities SET UP'!AK85=Validation!D100,'Public Facilities SET UP'!BJ85=Validation!F36),\"REQUIRED\",IF(AND(N85=Validation!D9,'Public Facilities SET UP'!AK85=Validation!D101,'Public Facilities SET UP'!BJ85=Validation!F36),\"REQUIRED\",IF(AND(N85=Validation!D9,'Public Facilities SET UP'!AK85=Validation!D103,'Public Facilities SET UP'!BJ85=Validation!F36),\"REQUIRED\",IF(AND(N85=Validation!D9,'Public Facilities SET UP'!AK85=Validation!D104,'Public Facilities SET UP'!BJ85=Validation!F36),\"REQUIRED\",IF(AND(N85=Validation!D9,'Public Facilities SET UP'!AK85=Validation!D106,'Public Facilities SET UP'!BJ85=Validation!F36),\"REQUIRED\",IF(AND(N85=Validation!D9,'Public Facilities SET UP'!AK85=Validation!D108,'Public Facilities SET UP'!BJ85=Validation!F36),\"REQUIRED\",\"NOT REQUIRED\")))))))","v":"NOT REQUIRED"}]
[]
[]
[]
[null,null,null,null,null,null,null,null,null,null,null,null,null,"Benefit data determined by",null,null,null,null,null,null,null,null,null,null,null,null,null,null,null,null,null,null,null,null,null,null,null,null,null,null,null,null,null,null,null,null,null,null,"DATE:",null,null,null,null,null,null,null,null,null,"County Code",null,null,null,null,null,null,"Select Option"]
[]
[null,null,null,null,null,null,null,null,null,null,null,null,null,null,null,null,null,null,null,null,null,null,null,null,null,null,null,null,null,"Block Groups"]
[]
[]
[null,null,null,null,null,null,null,null,null,null,null,null,null,"Census Tract"]
[]
[]
[null,null,null,null,null,null,null,null,null,null,null,null,null,"Census Tract"]
[]
[]
[null,null,null,null,null,null,null,null,null,null,null,null,null,"Census Tract"]
[]
[]
[null,null,null,null,null,null,null,null,null,null,null,null,null,"Census Tract"]
[]
[]
[null,null,null,null,null,null,null,null,null,null,null,null,null,"Census Tract"]
[]
[]
[null,null,null,null,null,null,null,null,null,null,null,null,null,"Census Tract"]
[]
[]
[null,null,null,null,null,null,null,null,null,null,null,null,null,"Census Tract"]
[]
[]
[null,null,null,null,null,null,null,null,null,null,null,null,null,"Census Tract"]
[]
[]
[null,null,null,null,null,null,null,null,null,null,null,null,null,"Census Tract"]
[]
[]
[null,null,null,null,null,null,null,null,null,null,null,null,null,"Census Tract"]
[]
[]
[null,null,null,null,null,null,null,null,null,null,null,null,null,"Census Tract"]
[]
[]
[]
[null,null,null,null,null,null,null,null,null,null,null,null,null,"Total # Low/Mod",null,null,null,null,null,null,null,null,null,null,null,null,null,null,null,null,null,null,null,null,null,null,null,null,null,"Total Low/Mod Universe Population"]
[]
[]
[]
[]
[null,null,null,null,null,null,null,null,null,null,null," Part G",null,null,null,null,null,null,"MULTI-UNIT HOUSING"]
[]
[]
[]
[null,null,null,null,null,null,null,null,null,null,null,null,null,"Multi-Unit Housing:",null,null,null,null,null,null,null,null,null,null,null,null,null,null,null,null,null,null,null,null,null,null,null,null,null,null,null,null,null,"Includes Rental Housing:"]
[]
[]
[]
[null,null,null,null,null,null,null,null,null,null,null,null,null,"Multi-Unit Housing",null,null,null,null,null,null,null,null,null,null,null,null,null,null,null,"Total",null,null,null,null,null,null,null,"Occupied",null,null,null,null,null,null,null,null,null,"Occupied Low/Mod"]
[]
[]
[null,null,null,null,null,null,null,null,null,null,null,null,null,"Units at Start"]
[]
[]
[null,null,null,null,null,null,null,null,null,null,null,null,null,"Units Expected at Completion"]
[]
[]
[]
[]
[]
[]
[]
[]
[]
[]
[null,null,null,null,null,null,null,null,null,null,null," Part G",null,null,null,null,null,null,"PROJECT FUNDING SOURCE DETAIL",null,null,null,null,null,null,null,null,null,null,null,null,null,null,null,null,null,null,null,null,null,null,null,null,null,null,null,null,null,null,null,null,null,null,"REQUIRED"]
[]
[]
[]
[null,null,null,null,null,null,null,null,null,null,null,null,null,"CDBG Grant",null,null,null,null,null,null,null,null,null,null,null,null,null,null,null,null,null,null,null,null,null,null,null,null,null,null,null,null,null,null,null,null,null,null,null,null,null,{"$f":"IF(AK85>0,AK85,\"\")","v":"Select Option"}]
[]
[]
[]
[null,null,null,null,null,null,null,null,null,null,null,null,null,null,"Funding Type (CDBG Funds)",null,null,null,null,null,null,null,null,null,null,null,null,null,null,null,null,null,null,null,null,null,null,null,null,null,null,null,null,null,null,null,null,null,null,null,null,null,null,null,null,null,null,null,null,null,null,null,null,null,null,"Amount (CBDG Funds)"]
[]
[]
[]
[]
[null,null,null,null,null,null,null,null,null,null,null,null,null,null,"CDBG - Grants"]
[]
[null,null,null,null,null,null,null,null,null,null,null,null,null,null,null,null,null,null,null,null,null,null,null,null,null,null,null,null,null,null,null,null,null,null,null,null,null,null,null,null,null,null,null,null,null,null,null,null,null,null,null,null,null,"TOTAL",null,null,null,null,null,null,null,null,null,null,null,{"$f":"SUMIF($BN$256:$BY$256,\">0\")","v":0}]
[]
[]
[null,null,null,null,null,null,null,null,null,null,null,null,null,"CDBG Program Income"]
[]
[]
[]
[null,null,null,null,null,null,null,null,null,null,null,null,null,null,"Program Income (PI) Type",null,null,null,null,null,null,null,null,null,null,null,null,null,null,null,null,null,null,null,null,null,null,null,null,null,null,null,null,null,null,null,null,null,null,null,null,null,null,null,null,null,null,null,null,null,null,null,null,null,null,"Amount"]
[]
[]
[]
[]
[null,null,null,null,null,null,null,null,null,null,null,null,null,null,"CDBG - PI Funds"]
[]
[null,null,null,null,null,null,null,null,null,null,null,null,null,null,null,null,null,null,null,null,null,null,null,null,null,null,null,null,null,null,null,null,null,null,null,null,null,null,null,null,null,null,null,null,null,null,null,null,null,null,null,null,null,"TOTAL",null,null,null,null,null,null,null,null,null,null,null,{"$f":"SUMIF($BN$269:$BY$271,\">0\")","v":0}]
[]
[]
[]
[null,null,null,null,null,null,null,null,null,null,null,null,null,"Leverage and Other Funding Sources"]
[]
[]
[]
[null,null,null,null,null,null,null,null,null,null,null,null,null,null,"Funding Source ",null,null,null,null,null,null,null,null,null,null,null,null,null,null,null,null,null,null,null,null,null,null,"Name of Source",null,null,null,null,null,null,null,null,null,null,null,null,null,null,null,null,null,null,null,null,null,null,null,null,null,null,null,null,null,"Amount"]
[]
[null,null,null,null,null,null,null,null,null,null,null,null,null,null,"Select Option"]
[]
[]
[]
[]
[]
[]
[]
[]
[]
[null,null,null,null,null,null,null,null,null,null,null,null,null,null,null,null,null,null,null,null,null,null,null,null,null,null,null,null,null,null,null,null,null,null,null,null,null,null,null,null,null,null,null,null,null,null,null,null,null,null,null,null,null,null,null,"TOTAL",null,null,null,null,null,null,null,null,null,null,null,{"$f":"SUMIF($BP$282:$BY$291,\">0\")","v":0}]
[]
[]
[null,null,null,null,null,null,null,null,null,null,null,null,null,null,null,null,null,null,null,null,null,null,null,null,null,null,null,null,null,null,null,null,null,null,null,null,null,null,null,null,null,null,null,null,null,null,null,null,null,null,null,null,"TOTAL PROJECT COST",null,null,null,null,null,null,null,null,null,null,null,null,null,null,{"$f":"SUM($BN$258,$BN$272,$BP$292)","v":0}]
[]
[]
[]
[null,null,null,null,null,null,null,null,null,null,null,null,"Comments: explain any issues with this activity or clarification of information provided in this form."]
[]
[]
[]
[]
[]
[]
[]
[]
[]
[]
[null,null,null,null,null,null,null,null,null,null,null,"END OF DOCUMENT"]

{"sheet":"Public Facilities COMPLETION","index":1,"n_rows":159,"n_cols":89,"rows_kept":159,"cut":false,"hidden":false,"merged":[[1,82,149,84],[149,55,149,58],[148,70,148,74],[148,65,148,68],[148,60,148,63],[148,55,148,58],[148,16,148,53],[149,16,149,53],[141,36,141,38],[136,16,136,34],[139,16,139,34],[136,40,136,44],[137,40,137,44],[138,40,138,44],[139,40,139,44],[140,40,140,44],[21,30,24,43],[25,30,26,43],[25,44,26,49],[1,15,3,26],[1,59,3,64],[49,22,51,53],[49,55,51,60],[53,22,55,53],[158,15,159,80],[65,22,67,53],[65,55,67,60],[61,17,63,53],[147,55,147,58],[123,15,123,80],[125,15,127,80],[132,62,132,65],[130,40,130,44],[131,40,131,44],[130,48,130,60],[130,62,130,65],[141,64,141,67],[139,48,139,62],[140,48,140,62],[141,48,141,62],[132,16,132,34],[131,48,131,59],[137,16,137,34],[138,16,138,34],[135,16,135,34],[121,15,121,20],[119,15,119,20],[120,15,120,20],[1,86,3,101],[53,55,55,60],[57,22,59,53],[57,55,59,60],[61,55,63,60],[132,40,132,44],[133,40,133,44],[134,40,134,44],[135,40,135,44],[121,21,121,28],[132,48,132,60],[135,62,135,65],[23,55,27,60],[8,29,8,63],[10,17,10,28],[10,29,10,63],[118,15,118,20],[116,15,116,80],[13,15,13,24],[13,64,13,80],[13,25,13,63],[33,15,35,53],[37,15,39,53],[41,15,43,53],[143,16,143,42],[145,55,145,58],[143,55,143,58],[130,36,130,38],[131,36,131,38],[132,36,132,38],[133,36,133,38],[134,36,134,38],[135,36,135,38],[136,36,136,38],[137,36,137,38],[138,36,138,38],[139,36,139,38],[140,36,140,38],[130,16,130,34],[131,16,131,34],[4,65,5,80],[21,15,26,22],[21,23,24,28],[21,44,24,49],[113,64,113,80],[70,55,72,60],[41,55,43,60],[45,55,47,60],[94,67,96,75],[91,55,93,60],[95,55,97,60],[91,19,93,53],[95,18,97,53],[98,15,100,60],[5,15,6,63],[8,17,8,28],[37,55,39,60],[45,67,47,75],[51,67,53,75],[61,67,63,75],[70,22,72,53],[45,22,47,53],[74,55,76,60],[113,15,113,24],[150,60,150,63],[146,55,146,58],[15,15,15,20],[15,21,15,28],[15,29,15,80],[16,15,16,20],[16,21,16,28],[16,29,16,80],[17,15,17,20],[17,21,17,28],[17,29,17,80],[18,15,18,20],[18,21,18,28],[18,29,18,80],[37,67,39,75],[140,16,140,34],[121,29,121,80],[137,64,137,67],[133,62,133,65],[134,62,134,65],[139,64,139,67],[140,64,140,67],[135,48,135,60],[134,48,134,60],[113,25,113,63],[134,16,134,34],[133,16,133,34],[129,36,129,44],[78,55,80,60],[83,22,85,53],[83,55,85,60],[87,17,89,53],[87,55,89,60],[133,48,133,60],[118,21,118,28],[119,21,119,28],[120,21,120,28],[118,29,118,80],[119,29,119,80],[120,29,120,80],[115,15,115,80],[1,27,3,56],[1,65,3,80],[74,67,76,75],[78,22,80,53],[33,55,35,60],[155,55,155,58],[155,60,155,63],[155,65,155,68],[155,70,155,74],[153,55,153,58],[153,60,153,63],[153,65,153,68],[153,70,153,74],[154,55,154,58],[154,60,154,63],[154,65,154,68],[154,70,154,74],[151,65,151,68],[151,70,151,74],[152,55,152,58],[152,60,152,63],[152,65,152,68],[152,70,152,74],[74,17,76,53],[154,76,154,78],[155,76,155,78],[156,76,156,78],[145,16,145,53],[146,16,146,53],[147,16,147,53],[148,76,148,78],[149,70,149,74],[149,76,149,78],[150,76,150,78],[151,76,151,78],[152,76,152,78],[153,76,153,78],[151,55,151,58],[151,60,151,63],[156,55,156,58],[156,60,156,63],[156,65,156,68],[156,70,156,74],[150,65,150,68],[150,70,150,74],[149,60,149,63],[149,65,149,68],[150,55,150,58]]}
[]
[null,null,null,null,null,null,null,null,null,null,null,null,null,null,null,"Jurisdiction Name:",null,null,null,null,null,null,null,null,null,null,null,{"$f":"IF('Public Facilities SET UP'!X2>0,'Public Facilities SET UP'!X2,\"\")","v":""},null,null,null,null,null,null,null,null,null,null,null,null,null,null,null,null,null,null,null,null,null,null,null,null,null,null,null,null,null,null,null,"Contract #",null,null,null,null,null,{"$f":"IF('Public Facilities SET UP'!BJ2>0,'Public Facilities SET UP'!BJ2,\"\")","v":""},null,null,null,null,null,null,null,null,null,null,null,null,null,null,null,null,"Page 1"]
[]
[]
[null,null,null,null,null,null,null,null,null,null,null,null,null,null,null,null,null,null,null,null,null,null,null,null,null,null,null,null,null,null,null,null,null,null,null,null,null,null,null,null,null,null,null,null,null,null,null,null,null,null,null,null,null,null,null,null,null,null,null,null,null,null,null,null,null,"Status"]
[null,null,null,null,null,null,null,null,null,null,null,null,null,null,null,"STATE OF CALIFORNIA - CDBG PROGRAM\nProject Completion Report"]
[]
[]
[null,null,null,null,null,null,null,null,null,null,null,null,null,null,null,null,null,"National Objective",null,null,null,null,null,null,null,null,null,null,null,{"$f":"'Public Facilities SET UP'!N85","v":"Select Option"}]
[]
[null,null,null,null,null,null,null,null,null,null,null,null,null,null,null,null,null,"Activity Matrix Code",null,null,null,null,null,null,null,null,null,null,null,{"$f":"'Public Facilities SET UP'!AK85","v":"Select Option"}]
[]
[]
[null,null,null,null,null,null,null,null,null,null,null,null,null,null,null,"Part A",null,null,null,null,null,null,null,null,null,"DIRECT BENEFIT DATA BY PERSONS (LMA) ONLY",null,null,null,null,null,null,null,null,null,null,null,null,null,null,null,null,null,null,null,null,null,null,null,null,null,null,null,null,null,null,null,null,null,null,null,null,null,null,{"$f":"IF(AND('Public Facilities SET UP'!N85=Validation!D9,'Public Facilities SET UP'!AK85=Validation!D99,'Public Facilities SET UP'!BJ85=Validation!F36),\"REQUIRED\",IF(AND('Public Facilities SET UP'!N85=Validation!D9,'Public Facilities SET UP'!AK85=Validation!D100,'Public Facilities SET UP'!BJ85=Validation!F36),\"REQUIRED\",IF(AND('Public Facilities SET UP'!N85=Validation!D9,'Public Facilities SET UP'!AK85=Validation!D101,'Public Facilities SET UP'!BJ85=Validation!F36),\"REQUIRED\",IF(AND('Public Facilities SET UP'!N85=Validation!D9,'Public Facilities SET UP'!AK85=Validation!D103,'Public Facilities SET UP'!BJ85=Validation!F36),\"REQUIRED\",IF(AND('Public Facilities SET UP'!N85=Validation!D9,'Public Facilities SET UP'!AK85=Validation!D104,'Public Facilities SET UP'!BJ85=Validation!F36),\"REQUIRED\",IF(AND('Public Facilities SET UP'!N85=Validation!D9,'Public Facilities SET UP'!AK85=Validation!D106,'Public Facilities SET UP'!BJ85=Validation!F36),\"REQUIRED\",IF(AND('Public Facilities SET UP'!N85=Validation!D9,'Public Facilities SET UP'!AK85=Validation!D108,'Public Facilities SET UP'!BJ85=Validation!F36),\"REQUIRED\",\"NOT REQUIRED\")))))))","v":"NOT REQUIRED"}]
[]
[null,null,null,null,null,null,null,null,null,null,null,null,null,null,null,"Program Year",null,null,null,null,null,"# of People",null,null,null,null,null,null,null,"Accomplishment Narrative"]
[]
[]
[]
[]
[]
[null,null,null,null,null,null,null,null,null,null,null,null,null,null,null,"Total Persons Assisted:",null,null,null,null,null,null,null,{"$f":"SUM(V17:AC19)","v":0},null,null,null,null,null,null,"How many veterans?"]
[]
[null,null,null,null,null,null,null,null,null,null,null,null,null,null,null,null,null,null,null,null,null,null,null,null,null,null,null,null,null,null,null,null,null,null,null,null,null,null,null,null,null,null,null,null,null,null,null,null,null,null,null,null,null,null,null,"Number of Persons"]
[]
[null,null,null,null,null,null,null,null,null,null,null,null,null,null,null,null,null,null,null,null,null,null,null,null,null,null,null,null,null,null,"How many disable?"]
[]
[]
[]
[]
[]
[]
[]
[null,null,null,null,null,null,null,null,null,null,null,null,null,null,null,"With New Access to this type of Public Facility or Infrastructure Improvement "]
[]
[]
[]
[null,null,null,null,null,null,null,null,null,null,null,null,null,null,null,"With Improved Access to this Type of Public Facility or Infrastructure Improvement",null,null,null,null,null,null,null,null,null,null,null,null,null,null,null,null,null,null,null,null,null,null,null,null,null,null,null,null,null,null,null,null,null,null,null,null,null,null,null,null,null,null,null,null,null,null,null,null,null,null,null,{"$f":"IF(AND('Public Facilities SET UP'!N85=Validation!D9,'Public Facilities SET UP'!AK85=Validation!D99,'Public Facilities SET UP'!BJ85=Validation!F36),\"REQUIRED\",IF(AND('Public Facilities SET UP'!N85=Validation!D9,'Public Facilities SET UP'!AK85=Validation!D100,'Public Facilities SET UP'!BJ85=Validation!F36),\"REQUIRED\",IF(AND('Public Facilities SET UP'!N85=Validation!D9,'Public Facilities SET UP'!AK85=Validation!D101,'Public Facilities SET UP'!BJ85=Validation!F36),\"REQUIRED\",IF(AND('Public Facilities SET UP'!N85=Validation!D9,'Public Facilities SET UP'!AK85=Validation!D103,'Public Facilities SET UP'!BJ85=Validation!F36),\"REQUIRED\",IF(AND('Public Facilities SET UP'!N85=Validation!D9,'Public Facilities SET UP'!AK85=Validation!D104,'Public Facilities SET UP'!BJ85=Validation!F36),\"REQUIRED\",IF(AND('Public Facilities SET UP'!N85=Validation!D9,'Public Facilities SET UP'!AK85=Validation!D106,'Public Facilities SET UP'!BJ85=Validation!F36),\"REQUIRED\",IF(AND('Public Facilities SET UP'!N85=Validation!D9,'Public Facilities SET UP'!AK85=Validation!D108,'Public Facilities SET UP'!BJ85=Validation!F36),\"REQUIRED\",\"NOT REQUIRED\")))))))","v":"NOT REQUIRED"}]
[]
[]
[]
[null,null,null,null,null,null,null,null,null,null,null,null,null,null,null,"With access to Public Facility or Infrastructure that is No Longer Substandard"]
[]
[]
[]
[null,null,null,null,null,null,null,null,null,null,null,null,null,null,null,null,null,null,null,null,null,null,"Jobs Placements"]
[]
[]
[]
[null,null,null,null,null,null,null,null,null,null,null,null,null,null,null,null,null,null,null,null,null,null,"Homeless Persons Given Overnight Shelter"]
[]
[]
[]
[null,null,null,null,null,null,null,null,null,null,null,null,null,null,null,null,null,null,null,null,null,null,"Beds Created in Overnight Shelter or Other Emergency Housing "]
[]
[]
[]
[null,null,null,null,null,null,null,null,null,null,null,null,null,null,null,null,null,null,null,null,null,null,"First-Time Homebuyers"]
[]
[]
[]
[null,null,null,null,null,null,null,null,null,null,null,null,null,null,null,null,null,"Of the Number of First-Time Homebuyers, Number Receiving Housing Counseling"]
[]
[]
[]
[null,null,null,null,null,null,null,null,null,null,null,null,null,null,null,null,null,null,null,null,null,null,"Down payment Assistance/Closing Costs"]
[]
[]
[]
[]
[null,null,null,null,null,null,null,null,null,null,null,null,null,null,null,null,null,null,null,null,null,null,"Receiving short-term rental assistance (not more than three months) "]
[]
[]
[]
[null,null,null,null,null,null,null,null,null,null,null,null,null,null,null,null,null,"That were previously homeless "]
[]
[]
[]
[null,null,null,null,null,null,null,null,null,null,null,null,null,null,null,null,null,null,null,null,null,null,"Of those, the number that were chronically homeless "]
[]
[]
[]
[]
[null,null,null,null,null,null,null,null,null,null,null,null,null,null,null,null,null,null,null,null,null,null," Housing units receiving violations"]
[]
[]
[]
[null,null,null,null,null,null,null,null,null,null,null,null,null,null,null,null,null,"Housing units where code violations have been corrected using CDBG funds"]
[]
[]
[]
[null,null,null,null,null,null,null,null,null,null,null,null,null,null,null,null,null,null,null,"Housing units where code violations have been corrected by the owner"]
[]
[]
[null,null,null,null,null,null,null,null,null,null,null,null,null,null,null,null,null,null,null,null,null,null,null,null,null,null,null,null,null,null,null,null,null,null,null,null,null,null,null,null,null,null,null,null,null,null,null,null,null,null,null,null,null,null,null,null,null,null,null,null,null,null,null,null,null,null,null,{"$f":"IF(AND('Public Facilities SET UP'!N85='Public Facilities SET UP'!CM75,'Public Facilities SET UP'!AK85='Public Facilities SET UP'!CM93,'Public Facilities SET UP'!BJ85='Public Facilities SET UP'!CM96),\"REQUIRED\",IF(AND('Public Facilities SET UP'!N85='Public Facilities SET UP'!CM78,'Public Facilities SET UP'!AK85='Public Facilities SET UP'!CM93,'Public Facilities SET UP'!BJ85='Public Facilities SET UP'!CM96),\"REQUIRED\",\"NOT REQUIRED\"))","v":"NOT REQUIRED"}]
[null,null,null,null,null,null,null,null,null,null,null,null,null,null,null,null,null,null,"Housing units where code violations have been corrected using other funds"]
[]
[]
[null,null,null,null,null,null,null,null,null,null,null,null,null,null,null,"Describe specific public and private improvements or services provided in the code enforcement area"]
[]
[]
[]
[]
[]
[]
[]
[]
[]
[]
[]
[]
[]
[]
[null,null,null,null,null,null,null,null,null,null,null,null,null,null,null,"Part B",null,null,null,null,null,null,null,null,null,"DIRECT BENEFIT DATA BY PERSONS/HOUSING UNITS -  LMC ONLY",null,null,null,null,null,null,null,null,null,null,null,null,null,null,null,null,null,null,null,null,null,null,null,null,null,null,null,null,null,null,null,null,null,null,null,null,null,null,{"$f":"IF(AND('Public Facilities SET UP'!$N$85=Validation!$D$10,'Public Facilities SET UP'!$AK$85=Validation!$D$95,'Public Facilities SET UP'!$BJ$85=Validation!$F$36),\"REQUIRED\",IF(AND('Public Facilities SET UP'!$N$85=Validation!$D$10,'Public Facilities SET UP'!$AK$85=Validation!$D$96,'Public Facilities SET UP'!$BJ$85=Validation!$F$36),\"REQUIRED\",IF(AND('Public Facilities SET UP'!$N$85=Validation!$D$10,'Public Facilities SET UP'!$AK$85=Validation!$D$97,'Public Facilities SET UP'!$BJ$85=Validation!$F$36),\"REQUIRED\",IF(AND('Public Facilities SET UP'!$N$85=Validation!$D$10,'Public Facilities SET UP'!$AK$85=Validation!$D$98,'Public Facilities SET UP'!$BJ$85=Validation!$F$36),\"REQUIRED\",IF(AND('Public Facilities SET UP'!$N$85=Validation!$D$10,'Public Facilities SET UP'!$AK$85=Validation!$D$99,'Public Facilities SET UP'!$BJ$85=Validation!$F$36),\"REQUIRED\",IF(AND('Public Facilities SET UP'!$N$85=Validation!$D$10,'Public Facilities SET UP'!$AK$85=Validation!$D$100,'Public Facilities SET UP'!$BJ$85=Validation!$F$36),\"REQUIRED\",IF(AND('Public Facilities SET UP'!$N$85=Validation!$D$10,'Public Facilities SET UP'!$AK$85=Validation!$D$101,'Public Facilities SET UP'!$BJ$85=Validation!$F$36),\"REQUIRED\",IF(AND('Public Facilities SET UP'!$N$85=Validation!$D$10,'Public Facilities SET UP'!$AK$85=Validation!$D$102,'Public Facilities SET UP'!$BJ$85=Validation!$F$36),\"REQUIRED\",IF(AND('Public Facilities SET UP'!$N$85=Validation!$D$10,'Public Facilities SET UP'!$AK$85=Validation!$D$104,'Public Facilities SET UP'!$BJ$85=Validation!$F$36),\"REQUIRED\",IF(AND('Public Facilities SET UP'!$N$85=Validation!$D$10,'Public Facilities SET UP'!$AK$85=Validation!$D$105,'Public Facilities SET UP'!$BJ$85=Validation!$F$36),\"REQUIRED\",IF(AND('Public Facilities SET UP'!$N$85=Validation!$D$10,'Public Facilities SET UP'!$AK$85=Validation!$D$106,'Public Facilities SET UP'!$BJ$85=Validation!$F$36),\"REQUIRED\",IF(AND('Public Facilities SET UP'!$N$85=Validation!$D$10,'Public Facilities SET UP'!$AK$85=Validation!$D$107,'Public Facilities SET UP'!$BJ$85=Validation!$F$36),\"REQUIRED\",IF(AND('Public Facilities SET UP'!$N$85=Validation!$D$10,'Public Facilities SET UP'!$AK$85=Validation!$D$108,'Public Facilities SET UP'!$BJ$85=Validation!$F$36),\"REQUIRED\",\"NOT REQUIRED\")))))))))))))","v":"NOT REQUIRED"}]
[]
[null,null,null,null,null,null,null,null,null,null,null,null,null,null,null,"If this project is LMC, you must provide accomplishment data by person in the tab \"Accomplishments\""]
[]
[]
[null,null,null,null,null,null,null,null,null,null,null,null,null,null,null,"Program Year",null,null,null,null,null,"# of People ",null,null,null,null,null,null,null,"Accomplishment Narrative"]
[]
[]
[]
[null,null,null,null,null,null,null,null,null,null,null,null,null,null,null,null,null,null,null,null,null,null,null,null,null,null,null,null,null,null,null,null,null,null,null,null,null,null,null,null,null,null,null,null,null,null,null,null,null,null,null,null,null,null,null,null,null,null,null,null,null,null,null,null,null,null,null,null,null,null,null,null,null,null,null,null,null,null,null,null,null,null,null,null,null,null,null,null,"Extremely Low ( ≤ 30%)"]
[null,null,null,null,null,null,null,null,null,null,null,null,null,null,null,"FOR CDBG USE ONLY (All Years)   LMC ",null,null,null,null,null,null,null,null,null,null,null,null,null,null,null,null,null,null,null,null,null,null,null,null,null,null,null,null,null,null,null,null,null,null,null,null,null,null,null,null,null,null,null,null,null,null,null,null,null,null,null,null,null,null,null,null,null,null,null,null,null,null,null,null,null,null,null,null,null,null,null,null,"Low (31-50%)"]
[null,null,null,null,null,null,null,null,null,null,null,null,null,null,null,null,null,null,null,null,null,null,null,null,null,null,null,null,null,null,null,null,null,null,null,null,null,null,null,null,null,null,null,null,null,null,null,null,null,null,null,null,null,null,null,null,null,null,null,null,null,null,null,null,null,null,null,null,null,null,null,null,null,null,null,null,null,null,null,null,null,null,null,null,null,null,null,null,"Moderate (51-80%)"]
[null,null,null,null,null,null,null,null,null,null,null,null,null,null,null,"DIRECT BENEFIT DATA BY PERSON",null,null,null,null,null,null,null,null,null,null,null,null,null,null,null,null,null,null,null,null,null,null,null,null,null,null,null,null,null,null,null,null,null,null,null,null,null,null,null,null,null,null,null,null,null,null,null,null,null,null,null,null,null,null,null,null,null,null,null,null,null,null,null,null,null,null,null,null,null,null,null,null,"Non-Low/ Moderate (+80%)"]
[]
[null,null,null,null,null,null,null,null,null,null,null,null,null,null,null,null,null,null,null,null,null,null,null,null,null,null,null,null,null,null,null,null,null,null,null,null,null,null,null,null,null,null,null,null,null,null,null,null,null,null,null,null,null,null,null,null,null,null,null,null,null,null,null,null,null,null,null,null,null,null,null,null,null,null,null,null,null,null,null,null,null,null,null,null,null,null,null,null,"11 - White"]
[null,null,null,null,null,null,null,null,null,null,null,null,null,null,null,null,null,null,null,null,null,null,null,null,null,null,null,null,null,null,null,null,null,null,null,null,null,null,null,null,null,null,null,null,null,null,null,null,null,null,null,null,null,null,null,null,null,null,null,null,null,null,null,null,null,null,null,null,null,null,null,null,null,null,null,null,null,null,null,null,null,null,null,null,null,null,null,null,"12 - Black/African American "]
[null,null,null,null,null,null,null,null,null,null,null,null,null,null,null,null,null,null,null,null,null,null,null,null,null,null,null,null,null,null,null,null,null,null,null,null,null,null,null,null,null,null,null,null,null,null,null,null,null,null,null,null,null,null,null,null,null,null,null,null,null,null,null,null,null,null,null,null,null,null,null,null,null,null,null,null,null,null,null,null,null,null,null,null,null,null,null,null,"13 - Asian"]
[null,null,null,null,null,null,null,null,null,null,null,null,null,null,null,null,"Race / Ethnicity",null,null,null,null,null,null,null,null,null,null,null,null,null,null,null,null,null,null,null,"Total",null,null,null,"Hispanic/ Latino",null,null,null,null,null,null,null,"INCOME LEVELS",null,null,null,null,null,null,null,null,null,null,null,null,null,null,null,null,null,null,null,null,null,null,null,null,null,null,null,null,null,null,null,null,null,null,null,null,null,null,null,"14 - American Indian/ Alaskan Native "]
[null,null,null," ",null,null,null,null,null,null,null,null,null,null,null,null,"White (11)",null,null,null,null,null,null,null,null,null,null,null,null,null,null,null,null,null,null,null,{"$f":"COUNTIF(Accomplishments!$BH$13:$BH$512,'Public Facilities COMPLETION'!CK128)","v":0},null,null,null,{"$f":"COUNTIFS(Accomplishments!$BH$13:$BH$512,'Public Facilities COMPLETION'!CK128,Accomplishments!$BD$13:$BD$512,'Public Facilities COMPLETION'!$CK$139)","v":0},null,null,null,null,null,null,null,null,null,null,null,null,null,null,null,null,null,null,null,null,null,null,null,null,null,null,null,null,null,null,null,null,null,null,null,null,null,null,null,null,null,null,null,null,null,null,null,"15 - Native Hawaiian/ Other Pacific Islander"]
[null,null,null,null,null,null,null,null,null,null,null,null,null,null,null,null,"Black/African American (12)",null,null,null,null,null,null,null,null,null,null,null,null,null,null,null,null,null,null,null,{"$f":"COUNTIF(Accomplishments!$BH$13:$BH$512,'Public Facilities COMPLETION'!CK129)","v":0},null,null,null,{"$f":"COUNTIFS(Accomplishments!$BH$13:$BH$512,'Public Facilities COMPLETION'!CK129,Accomplishments!$BD$13:$BD$512,'Public Facilities COMPLETION'!$CK$139)","v":0},null,null,null,null,null,null,null,"Extremely Low (<30%)",null,null,null,null,null,null,null,null,null,null,null,null,null,{"$f":"COUNTIF(Accomplishments!$AO$13:$AO$512,'Public Facilities COMPLETION'!CK123)","v":0},null,null,null,null,null,null,null,null,null,null,null,null,null,null,null,null,null,null,null,null,null,null,null,null,null,"16 - Am. Indian/Alaskan Native & White "]
[null,null,null,null,null,null,null,null,null,null,null,null,null,null,null,null,"Asian (13)",null,null,null,null,null,null,null,null,null,null,null,null,null,null,null,null,null,null,null,{"$f":"COUNTIF(Accomplishments!$BH$13:$BH$512,'Public Facilities COMPLETION'!CK130)","v":0},null,null,null,{"$f":"COUNTIFS(Accomplishments!$BH$13:$BH$512,'Public Facilities COMPLETION'!CK130,Accomplishments!$BD$13:$BD$512,'Public Facilities COMPLETION'!$CK$139)","v":0},null,null,null,null,null,null,null,"Low (31-50%)",null,null,null,null,null,null,null,null,null,null,null,null,null,{"$f":"COUNTIF(Accomplishments!$AO$13:$AO$512,'Public Facilities COMPLETION'!CK124)","v":0},null,null,null,null,null,null,null,null,null,null,null,null,null,null,null,null,null,null,null,null,null,null,null,null,null,"17 - Asian & White "]
[null,null,null,null,null,null,null,null,null,null,null,null,null,null,null,null,"American Indian / Alaskan Native (14)",null,null,null,null,null,null,null,null,null,null,null,null,null,null,null,null,null,null,null,{"$f":"COUNTIF(Accomplishments!$BH$13:$BH$512,'Public Facilities COMPLETION'!CK131)","v":0},null,null,null,{"$f":"COUNTIFS(Accomplishments!$BH$13:$BH$512,'Public Facilities COMPLETION'!CK131,Accomplishments!$BD$13:$BD$512,'Public Facilities COMPLETION'!$CK$139)","v":0},null,null,null,null,null,null,null,"Moderate (51-80%)",null,null,null,null,null,null,null,null,null,null,null,null,null,{"$f":"COUNTIF(Accomplishments!$AO$13:$AO$512,'Public Facilities COMPLETION'!CK125)","v":0},null,null,null,null,null,null,null,null,null,null,null,null,null,null,null,null,null,null,null,null,null,null,null,null,null,"18 - Black/African Am. & White"]
[null,null,null,null,null,null,null,null,null,null,null,null,null,null,null,null,"Native Hawaiian / Other Pacific Isl. (15)",null,null,null,null,null,null,null,null,null,null,null,null,null,null,null,null,null,null,null,{"$f":"COUNTIF(Accomplishments!$BH$13:$BH$512,'Public Facilities COMPLETION'!CK132)","v":0},null,null,null,{"$f":"COUNTIFS(Accomplishments!$BH$13:$BH$512,'Public Facilities COMPLETION'!CK132,Accomplishments!$BD$13:$BD$512,'Public Facilities COMPLETION'!$CK$139)","v":0},null,null,null,null,null,null,null,"Non-Low/ Moderate (+80%)",null,null,null,null,null,null,null,null,null,null,null,null,null,{"$f":"COUNTIF(Accomplishments!$AO$13:$AO$512,'Public Facilities COMPLETION'!CK126)","v":0},null,null,null,null,null,null,null,null,null,null,null,null,null,null,null,null,null,null,null,null,null,null,null,null,null,"19 - Am. Indian/Alaskan & Blk/African "]
[null,null,null,null,null,null,null,null,null,null,null,null,null,null,null,null,"Am. Indian / Alaskan Native & White (16)",null,null,null,null,null,null,null,null,null,null,null,null,null,null,null,null,null,null,null,{"$f":"COUNTIF(Accomplishments!$BH$13:$BH$512,'Public Facilities COMPLETION'!CK133)","v":0},null,null,null,{"$f":"COUNTIFS(Accomplishments!$BH$13:$BH$512,'Public Facilities COMPLETION'!CK133,Accomplishments!$BD$13:$BD$512,'Public Facilities COMPLETION'!$CK$139)","v":0},null,null,null,null,null,null,null,null,null,null,null,null,null,null,null,null,null,null,null,null,null,null,null,null,null,null,null,null,null,null,null,null,null,null,null,null,null,null,null,null,null,null,null,null,null,null,null,"20 - Other Multi-Racial "]
[null,null,null,null,null,null,null,null,null,null,null,null,null,null,null,null,"Asian & White (17)",null,null,null,null,null,null,null,null,null,null,null,null,null,null,null,null,null,null,null,{"$f":"COUNTIF(Accomplishments!$BH$13:$BH$512,'Public Facilities COMPLETION'!CK134)","v":0},null,null,null,{"$f":"COUNTIFS(Accomplishments!$BH$13:$BH$512,'Public Facilities COMPLETION'!CK134,Accomplishments!$BD$13:$BD$512,'Public Facilities COMPLETION'!$CK$139)","v":0}]
[null,null,null,null,null,null,null,null,null,null,null,null,null,null,null,null,"Black/African Am. & White (18)",null,null,null,null,null,null,null,null,null,null,null,null,null,null,null,null,null,null,null,{"$f":"COUNTIF(Accomplishments!$BH$13:$BH$512,'Public Facilities COMPLETION'!CK135)","v":0},null,null,null,{"$f":"COUNTIFS(Accomplishments!$BH$13:$BH$512,'Public Facilities COMPLETION'!CK135,Accomplishments!$BD$13:$BD$512,'Public Facilities COMPLETION'!$CK$139)","v":0},null,null,null,null,null,null,null,null,null,null,null,null,null,null,null,null,null,null,null,null,null,null,null,null,null,null,null,null,null,null,null,null,null,null,null,null,null,null,null,null,null,null,null,null,null,null,null,"Yes"]
[null,null,null,null,null,null,null,null,null,null,null,null,null,null,null,null,"Am. Indian/Alaskan & Blk/African (19)",null,null,null,null,null,null,null,null,null,null,null,null,null,null,null,null,null,null,null,{"$f":"COUNTIF(Accomplishments!$BH$13:$BH$512,'Public Facilities COMPLETION'!CK136)","v":0},null,null,null,{"$f":"COUNTIFS(Accomplishments!$BH$13:$BH$512,'Public Facilities COMPLETION'!CK136,Accomplishments!$BD$13:$BD$512,'Public Facilities COMPLETION'!$CK$139)","v":0},null,null,null,null,null,null,null,"Veteran",null,null,null,null,null,null,null,null,null,null,null,null,null,null,null,{"$f":"COUNTIF(Accomplishments!$BS$13:$BS$512,'Public Facilities COMPLETION'!$CK$139)","v":0},null,null,null,null,null,null,null,null,null,null,null,null,null,null,null,null,null,null,null,null,null,null,null,"No"]
[null,null,null,null,null,null,null,null,null,null,null,null,null,null,null,null,"Other Multi-Racial (20)",null,null,null,null,null,null,null,null,null,null,null,null,null,null,null,null,null,null,null,{"$f":"COUNTIF(Accomplishments!$BH$13:$BH$512,'Public Facilities COMPLETION'!CK137)","v":0},null,null,null,{"$f":"COUNTIFS(Accomplishments!$BH$13:$BH$512,'Public Facilities COMPLETION'!CK137,Accomplishments!$BD$13:$BD$512,'Public Facilities COMPLETION'!$CK$139)","v":0},null,null,null,null,null,null,null,"Participants Disable",null,null,null,null,null,null,null,null,null,null,null,null,null,null,null,{"$f":"COUNTIF(Accomplishments!$BW$13:$BW$512,'Public Facilities COMPLETION'!$CK$139)","v":0},null,null,null,null,null,null,null,null,null,null,null,null,null,null,null,null,null,null,null,null,null,null,null,"Owner"]
[null,null,null,null,null,null,null,null,null,null,null,null,null,null,null,null,null,null,null,null,null,null,null,null,null,null,null,null,null,null,null,null,null,null,null,null,{"$f":"SUM(AK132:AM141)","v":0},null,null,null,null,null,null,null,null,null,null,null,"Female-Headed Households",null,null,null,null,null,null,null,null,null,null,null,null,null,null,null,{"$f":"COUNTIF(Accomplishments!$CA$13:$CA$512,'Public Facilities COMPLETION'!$CK$139)","v":0},null,null,null,null,null,null,null,null,null,null,null,null,null,null,null,null,null,null,null,null,null,null,null,"Renter"]
[]
[null,null,null,null,null,null,null,null,null,null,null,null,null,null,null,null,"TOTAL PERSONS ASSISTED"]
[]
[null,null,null,null,null,null,null,null,null,null,null,null,null,null,null,null,"With New Access to this type of Public Facility or Infrastructure Improvement ",null,null,null,null,null,null,null,null,null,null,null,null,null,null,null,null,null,null,null,null,null,null,null,null,null,null,null,null,null,null,null,null,null,null,null,null,null,null,{"$f":"COUNTIF(Accomplishments!$AX$13:$AX$512,'Public Facilities COMPLETION'!#REF!)","v":0}]
[null,null,null,null,null,null,null,null,null,null,null,null,null,null,null,null,"With Improved Access to this Type of Public Facility or Infrastructure Improvement",null,null,null,null,null,null,null,null,null,null,null,null,null,null,null,null,null,null,null,null,null,null,null,null,null,null,null,null,null,null,null,null,null,null,null,null,null,null,{"$f":"COUNTIF(Accomplishments!$AX$13:$AX$512,'Public Facilities COMPLETION'!#REF!)","v":0}]
[null,null,null,null,null,null,null,null,null,null,null,null,null,null,null,null,"With access to Public Facility or Infrastructure that is No Longer Substandard ",null,null,null,null,null,null,null,null,null,null,null,null,null,null,null,null,null,null,null,null,null,null,null,null,null,null,null,null,null,null,null,null,null,null,null,null,null,null,{"$f":"COUNTIF(Accomplishments!$AX$13:$AX$512,'Public Facilities COMPLETION'!#REF!)","v":0}]
[null,null,null,null,null,null,null,null,null,null,null,null,null,null,null,null,"Homeless Persons Given Overnight Shelter ",null,null,null,null,null,null,null,null,null,null,null,null,null,null,null,null,null,null,null,null,null,null,null,null,null,null,null,null,null,null,null,null,null,null,null,null,null,null,{"$f":"COUNTIF(Accomplishments!$CE$13:$CE$512,'Public Facilities COMPLETION'!CK139)","v":0}]
[null,null,null,null,null,null,null,null,null,null,null,null,null,null,null,null,"Beds Created in Overnight Shelter or Other Emergency Housing ",null,null,null,null,null,null,null,null,null,null,null,null,null,null,null,null,null,null,null,null,null,null,null,null,null,null,null,null,null,null,null,null,null,null,null,null,null,null,{"$f":"COUNTIF(Accomplishments!$CJ$13:$CJ$512,'Public Facilities COMPLETION'!CK139)","v":0}]
[null,null,null,null,null,null,null,null,null,null,null,null,null,null,null,null,"Jobs Placements",null,null,null,null,null,null,null,null,null,null,null,null,null,null,null,null,null,null,null,null,null,null,null,null,null,null,null,null,null,null,null,null,null,null,null,null,null,null,{"$f":"COUNTIF(Accomplishments!CO13:CR512,'Public Facilities COMPLETION'!$CK$139)","v":0}]
[null,null,null,null,null,null,null,null,null,null,null,null,null,null,null,null,"First-Time Homebuyers",null,null,null,null,null,null,null,null,null,null,null,null,null,null,null,null,null,null,null,null,null,null,null,null,null,null,null,null,null,null,null,null,null,null,null,null,null,null,{"$f":"COUNTIF(Accomplishments!CS13:CV512,'Public Facilities COMPLETION'!$CK$139)","v":0}]
[null,null,null,null,null,null,null,null,null,null,null,null,null,null,null,null,"Of the Number of First-Time Homebuyers, Number Receiving Housing Counseling",null,null,null,null,null,null,null,null,null,null,null,null,null,null,null,null,null,null,null,null,null,null,null,null,null,null,null,null,null,null,null,null,null,null,null,null,null,null,{"$f":"COUNTIF(Accomplishments!CW13:CZ512,'Public Facilities COMPLETION'!$CK$139)","v":0}]
[null,null,null,null,null,null,null,null,null,null,null,null,null,null,null,null,"Down payment Assistance/Closing Costs",null,null,null,null,null,null,null,null,null,null,null,null,null,null,null,null,null,null,null,null,null,null,null,null,null,null,null,null,null,null,null,null,null,null,null,null,null,null,{"$f":"COUNTIF(Accomplishments!DA13:DD512,'Public Facilities COMPLETION'!$CK$139)","v":0}]
[null,null,null,null,null,null,null,null,null,null,null,null,null,null,null,null,"Receiving short-term rental assistance (not more than three months)",null,null,null,null,null,null,null,null,null,null,null,null,null,null,null,null,null,null,null,null,null,null,null,null,null,null,null,null,null,null,null,null,null,null,null,null,null,null,{"$f":"COUNTIF(Accomplishments!DE13:DH512,'Public Facilities COMPLETION'!$CK$139)","v":0}]
[null,null,null,null,null,null,null,null,null,null,null,null,null,null,null,null,"That were previously homeless ",null,null,null,null,null,null,null,null,null,null,null,null,null,null,null,null,null,null,null,null,null,null,null,null,null,null,null,null,null,null,null,null,null,null,null,null,null,null,{"$f":"COUNTIF(Accomplishments!DI13:DL512,'Public Facilities COMPLETION'!$CK$139)","v":0}]
[null,null,null,null,null,null,null,null,null,null,null,null,null,null,null,null,"Of those, the number that were chronically homeless ",null,null,null,null,null,null,null,null,null,null,null,null,null,null,null,null,null,null,null,null,null,null,null,null,null,null,null,null,null,null,null,null,null,null,null,null,null,null,{"$f":"COUNTIF(Accomplishments!DM13:DP512,'Public Facilities COMPLETION'!$CK$139)","v":0}]
[]
[null,null,null,null,null,null,null,null,null,null,null,null,null,null,null,"END OF DOCUMENT"]

{"sheet":"Accomplishments","index":2,"n_rows":514,"n_cols":122,"rows_kept":514,"cut":false,"hidden":false,"merged":[[9,8,9,89],[10,82,10,91],[5,8,8,91],[510,78,510,81],[447,78,447,81],[448,78,448,81],[449,78,449,81],[450,78,450,81],[451,78,451,81],[452,78,452,81],[453,78,453,81],[454,78,454,81],[455,78,455,81],[456,78,456,81],[457,78,457,81],[458,78,458,81],[459,78,459,81],[460,78,460,81],[461,78,461,81],[462,78,462,81],[463,78,463,81],[464,78,464,81],[465,78,465,81],[466,78,466,81],[467,78,467,81],[468,78,468,81],[469,78,469,81],[470,78,470,81],[471,78,471,81],[472,78,472,81],[473,78,473,81],[474,78,474,81],[475,78,475,81],[476,78,476,81],[477,78,477,81],[414,78,414,81],[415,78,415,81],[416,78,416,81],[417,78,417,81],[418,78,418,81],[419,78,419,81],[420,78,420,81],[421,78,421,81],[422,78,422,81],[423,78,423,81],[424,78,424,81],[425,78,425,81],[426,78,426,81],[427,78,427,81],[428,78,428,81],[429,78,429,81],[430,78,430,81],[431,78,431,81],[432,78,432,81],[433,78,433,81],[434,78,434,81],[435,78,435,81],[436,78,436,81],[437,78,437,81],[438,78,438,81],[439,78,439,81],[440,78,440,81],[441,78,441,81],[442,78,442,81],[443,78,443,81],[511,78,511,81],[478,78,478,81],[479,78,479,81],[480,78,480,81],[481,78,481,81],[482,78,482,81],[483,78,483,81],[484,78,484,81],[485,78,485,81],[486,78,486,81],[487,78,487,81],[488,78,488,81],[489,78,489,81],[490,78,490,81],[491,78,491,81],[492,78,492,81],[493,78,493,81],[494,78,494,81],[495,78,495,81],[496,78,496,81],[497,78,497,81],[498,78,498,81],[499,78,499,81],[500,78,500,81],[501,78,501,81],[502,78,502,81],[503,78,503,81],[504,78,504,81],[505,78,505,81],[506,78,506,81],[507,78,507,81],[508,78,508,81],[509,78,509,81],[444,78,444,81],[445,78,445,81],[446,78,446,81],[381,78,381,81],[382,78,382,81],[383,78,383,81],[384,78,384,81],[385,78,385,81],[386,78,386,81],[387,78,387,81],[388,78,388,81],[389,78,389,81],[390,78,390,81],[391,78,391,81],[392,78,392,81],[393,78,393,81],[394,78,394,81],[395,78,395,81],[396,78,396,81],[397,78,397,81],[398,78,398,81],[399,78,399,81],[400,78,400,81],[401,78,401,81],[402,78,402,81],[403,78,403,81],[404,78,404,81],[405,78,405,81],[406,78,406,81],[407,78,407,81],[408,78,408,81],[409,78,409,81],[410,78,410,81],[411,78,411,81],[412,78,412,81],[413,78,413,81],[348,78,348,81],[349,78,349,81],[350,78,350,81],[351,78,351,81],[352,78,352,81],[353,78,353,81],[354,78,354,81],[355,78,355,81],[356,78,356,81],[357,78,357,81],[358,78,358,81],[359,78,359,81],[360,78,360,81],[361,78,361,81],[362,78,362,81],[363,78,363,81],[364,78,364,81],[365,78,365,81],[366,78,366,81],[367,78,367,81],[368,78,368,81],[369,78,369,81],[370,78,370,81],[371,78,371,81],[372,78,372,81],[373,78,373,81],[374,78,374,81],[375,78,375,81],[376,78,376,81],[377,78,377,81],[378,78,378,81],[379,78,379,81],[380,78,380,81],[315,78,315,81],[316,78,316,81],[317,78,317,81],[318,78,318,81],[319,78,319,81],[320,78,320,81],[321,78,321,81],[322,78,322,81],[323,78,323,81],[324,78,324,81],[325,78,325,81],[326,78,326,81],[327,78,327,81],[328,78,328,81],[329,78,329,81],[330,78,330,81],[331,78,331,81],[332,78,332,81],[333,78,333,81],[334,78,334,81],[335,78,335,81],[336,78,336,81],[337,78,337,81],[338,78,338,81],[339,78,339,81],[340,78,340,81],[341,78,341,81],[342,78,342,81],[343,78,343,81],[344,78,344,81],[345,78,345,81],[346,78,346,81],[347,78,347,81],[282,78,282,81],[283,78,283,81],[284,78,284,81],[285,78,285,81],[286,78,286,81],[287,78,287,81],[288,78,288,81],[289,78,289,81],[290,78,290,81],[291,78,291,81],[292,78,292,81],[293,78,293,81],[294,78,294,81],[295,78,295,81],[296,78,296,81],[297,78,297,81],[298,78,298,81],[299,78,299,81],[300,78,300,81],[301,78,301,81],[302,78,302,81],[303,78,303,81],[304,78,304,81],[305,78,305,81],[306,78,306,81],[307,78,307,81],[308,78,308,81],[309,78,309,81],[310,78,310,81],[311,78,311,81],[312,78,312,81],[313,78,313,81],[314,78,314,81],[249,78,249,81],[250,78,250,81],[251,78,251,81],[252,78,252,81],[253,78,253,81],[254,78,254,81],[255,78,255,81],[256,78,256,81],[257,78,257,81],[258,78,258,81],[259,78,259,81],[260,78,260,81],[261,78,261,81],[262,78,262,81],[263,78,263,81],[264,78,264,81],[265,78,265,81],[266,78,266,81],[267,78,267,81],[268,78,268,81],[269,78,269,81],[270,78,270,81],[271,78,271,81],[272,78,272,81],[273,78,273,81],[274,78,274,81],[275,78,275,81],[276,78,276,81],[277,78,277,81],[278,78,278,81],[279,78,279,81],[280,78,280,81],[281,78,281,81],[216,78,216,81],[217,78,217,81],[218,78,218,81],[219,78,219,81],[220,78,220,81],[221,78,221,81],[222,78,222,81],[223,78,223,81],[224,78,224,81],[225,78,225,81],[226,78,226,81],[227,78,227,81],[228,78,228,81],[229,78,229,81],[230,78,230,81],[231,78,231,81],[232,78,232,81],[233,78,233,81],[234,78,234,81],[235,78,235,81],[236,78,236,81],[237,78,237,81],[238,78,238,81],[239,78,239,81],[240,78,240,81],[241,78,241,81],[242,78,242,81],[243,78,243,81],[244,78,244,81],[245,78,245,81],[246,78,246,81],[247,78,247,81],[248,78,248,81],[183,78,183,81],[184,78,184,81],[185,78,185,81],[186,78,186,81],[187,78,187,81],[188,78,188,81],[189,78,189,81],[190,78,190,81],[191,78,191,81],[192,78,192,81],[193,78,193,81],[194,78,194,81],[195,78,195,81],[196,78,196,81],[197,78,197,81],[198,78,198,81],[199,78,199,81],[200,78,200,81],[201,78,201,81],[202,78,202,81],[203,78,203,81],[204,78,204,81],[205,78,205,81],[206,78,206,81],[207,78,207,81],[208,78,208,81],[209,78,209,81],[210,78,210,81],[211,78,211,81],[212,78,212,81],[213,78,213,81],[214,78,214,81],[215,78,215,81],[150,78,150,81],[151,78,151,81],[152,78,152,81],[153,78,153,81],[154,78,154,81],[155,78,155,81],[156,78,156,81],[157,78,157,81],[158,78,158,81],[159,78,159,81],[160,78,160,81],[161,78,161,81],[162,78,162,81],[163,78,163,81],[164,78,164,81],[165,78,165,81],[166,78,166,81],[167,78,167,81],[168,78,168,81],[169,78,169,81],[170,78,170,81],[171,78,171,81],[172,78,172,81],[173,78,173,81],[174,78,174,81],[175,78,175,81],[176,78,176,81],[177,78,177,81],[178,78,178,81],[179,78,179,81],[180,78,180,81],[181,78,181,81],[182,78,182,81],[117,78,117,81],[118,78,118,81],[119,78,119,81],[120,78,120,81],[121,78,121,81],[122,78,122,81],[123,78,123,81],[124,78,124,81],[125,78,125,81],[126,78,126,81],[127,78,127,81],[128,78,128,81],[129,78,129,81],[130,78,130,81],[131,78,131,81],[132,78,132,81],[133,78,133,81],[134,78,134,81],[135,78,135,81],[136,78,136,81],[137,78,137,81],[138,78,138,81],[139,78,139,81],[140,78,140,81],[141,78,141,81],[142,78,142,81],[143,78,143,81],[144,78,144,81],[145,78,145,81],[146,78,146,81],[147,78,147,81],[148,78,148,81],[149,78,149,81],[84,78,84,81],[85,78,85,81],[86,78,86,81],[87,78,87,81],[88,78,88,81],[89,78,89,81],[90,78,90,81],[91,78,91,81],[92,78,92,81],[93,78,93,81],[94,78,94,81],[95,78,95,81],[96,78,96,81],[97,78,97,81],[98,78,98,81],[99,78,99,81],[100,78,100,81],[101,78,101,81],[102,78,102,81],[103,78,103,81],[104,78,104,81],[105,78,105,81],[106,78,106,81],[107,78,107,81],[108,78,108,81],[109,78,109,81],[110,78,110,81],[111,78,111,81],[112,78,112,81],[113,78,113,81],[114,78,114,81],[115,78,115,81],[116,78,116,81],[51,78,51,81],[52,78,52,81],[53,78,53,81],[54,78,54,81],[55,78,55,81],[56,78,56,81],[57,78,57,81],[58,78,58,81],[59,78,59,81],[60,78,60,81],[61,78,61,81],[62,78,62,81],[63,78,63,81],[64,78,64,81],[65,78,65,81],[66,78,66,81],[67,78,67,81],[68,78,68,81],[69,78,69,81],[70,78,70,81],[71,78,71,81],[72,78,72,81],[73,78,73,81],[74,78,74,81],[75,78,75,81],[76,78,76,81],[77,78,77,81],[78,78,78,81],[79,78,79,81],[80,78,80,81],[81,78,81,81],[82,78,82,81],[83,78,83,81],[18,78,18,81],[19,78,19,81],[20,78,20,81],[21,78,21,81],[22,78,22,81],[23,78,23,81],[24,78,24,81],[25,78,25,81],[26,78,26,81],[27,78,27,81],[28,78,28,81],[29,78,29,81],[30,78,30,81],[31,78,31,81],[32,78,32,81],[33,78,33,81],[34,78,34,81],[35,78,35,81],[36,78,36,81],[37,78,37,81],[38,78,38,81],[39,78,39,81],[40,78,40,81],[41,78,41,81],[42,78,42,81],[43,78,43,81],[44,78,44,81],[45,78,45,81],[46,78,46,81],[47,78,47,81],[48,78,48,81],[49,78,49,81],[50,78,50,81],[504,74,504,77],[505,74,505,77],[506,74,506,77],[507,74,507,77],[508,74,508,77],[509,74,509,77],[510,74,510,77],[511,74,511,77],[1,121,30,123],[487,74,487,77],[488,74,488,77],[489,74,489,77],[490,74,490,77],[491,74,491,77],[492,74,492,77],[493,74,493,77],[494,74,494,77],[495,74,495,77],[496,74,496,77],[497,74,497,77],[498,74,498,77],[499,74,499,77],[500,74,500,77],[501,74,501,77],[502,74,502,77],[503,74,503,77],[470,74,470,77],[471,74,471,77],[472,74,472,77],[473,74,473,77],[474,74,474,77],[475,74,475,77],[476,74,476,77],[477,74,477,77],[478,74,478,77],[479,74,479,77],[480,74,480,77],[481,74,481,77],[482,74,482,77],[483,74,483,77],[484,74,484,77],[485,74,485,77],[486,74,486,77],[453,74,453,77],[454,74,454,77],[455,74,455,77],[456,74,456,77],[457,74,457,77],[458,74,458,77],[459,74,459,77],[460,74,460,77],[461,74,461,77],[462,74,462,77],[463,74,463,77],[464,74,464,77],[465,74,465,77],[466,74,466,77],[467,74,467,77],[468,74,468,77],[469,74,469,77],[436,74,436,77],[437,74,437,77],[16,78,16,81],[17,78,17,81],[443,74,443,77],[444,74,444,77],[445,74,445,77],[446,74,446,77],[447,74,447,77],[448,74,448,77],[449,74,449,77],[450,74,450,77],[451,74,451,77],[452,74,452,77],[419,74,419,77],[420,74,420,77],[421,74,421,77],[422,74,422,77],[423,74,423,77],[424,74,424,77],[425,74,425,77],[426,74,426,77],[427,74,427,77],[428,74,428,77],[429,74,429,77],[430,74,430,77],[431,74,431,77],[432,74,432,77],[433,74,433,77],[434,74,434,77],[435,74,435,77],[402,74,402,77],[403,74,403,77],[404,74,404,77],[405,74,405,77],[406,74,406,77],[407,74,407,77],[408,74,408,77],[409,74,409,77],[410,74,410,77],[411,74,411,77],[412,74,412,77],[413,74,413,77],[414,74,414,77],[415,74,415,77],[416,74,416,77],[417,74,417,77],[418,74,418,77],[391,74,391,77],[392,74,392,77],[393,74,393,77],[394,74,394,77],[395,74,395,77],[396,74,396,77],[397,74,397,77],[398,74,398,77],[399,74,399,77],[400,74,400,77],[401,74,401,77],[368,74,368,77],[369,74,369,77],[370,74,370,77],[371,74,371,77],[372,74,372,77],[373,74,373,77],[374,74,374,77],[375,74,375,77],[376,74,376,77],[377,74,377,77],[378,74,378,77],[379,74,379,77],[380,74,380,77],[381,74,381,77],[382,74,382,77],[383,74,383,77],[384,74,384,77],[438,74,438,77],[439,74,439,77],[440,74,440,77],[441,74,441,77],[442,74,442,77],[358,74,358,77],[359,74,359,77],[360,74,360,77],[361,74,361,77],[362,74,362,77],[363,74,363,77],[364,74,364,77],[365,74,365,77],[366,74,366,77],[367,74,367,77],[334,74,334,77],[335,74,335,77],[336,74,336,77],[337,74,337,77],[338,74,338,77],[339,74,339,77],[340,74,340,77],[341,74,341,77],[342,74,342,77],[343,74,343,77],[344,74,344,77],[345,74,345,77],[346,74,346,77],[347,74,347,77],[348,74,348,77],[349,74,349,77],[350,74,350,77],[385,74,385,77],[386,74,386,77],[387,74,387,77],[388,74,388,77],[389,74,389,77],[390,74,390,77],[325,74,325,77],[326,74,326,77],[327,74,327,77],[328,74,328,77],[329,74,329,77],[330,74,330,77],[331,74,331,77],[332,74,332,77],[333,74,333,77],[300,74,300,77],[301,74,301,77],[302,74,302,77],[303,74,303,77],[304,74,304,77],[305,74,305,77],[306,74,306,77],[307,74,307,77],[308,74,308,77],[309,74,309,77],[310,74,310,77],[311,74,311,77],[312,74,312,77],[313,74,313,77],[314,74,314,77],[315,74,315,77],[316,74,316,77],[351,74,351,77],[352,74,352,77],[353,74,353,77],[354,74,354,77],[355,74,355,77],[356,74,356,77],[357,74,357,77],[292,74,292,77],[293,74,293,77],[294,74,294,77],[295,74,295,77],[296,74,296,77],[297,74,297,77],[298,74,298,77],[299,74,299,77],[266,74,266,77],[267,74,267,77],[268,74,268,77],[269,74,269,77],[270,74,270,77],[271,74,271,77],[272,74,272,77],[273,74,273,77],[274,74,274,77],[275,74,275,77],[276,74,276,77],[277,74,277,77],[278,74,278,77],[279,74,279,77],[280,74,280,77],[281,74,281,77],[282,74,282,77],[317,74,317,77],[318,74,318,77],[319,74,319,77],[320,74,320,77],[321,74,321,77],[322,74,322,77],[323,74,323,77],[324,74,324,77],[259,74,259,77],[260,74,260,77],[261,74,261,77],[262,74,262,77],[263,74,263,77],[264,74,264,77],[265,74,265,77],[232,74,232,77],[233,74,233,77],[234,74,234,77],[235,74,235,77],[236,74,236,77],[237,74,237,77],[238,74,238,77],[239,74,239,77],[240,74,240,77],[241,74,241,77],[242,74,242,77],[243,74,243,77],[244,74,244,77],[245,74,245,77],[246,74,246,77],[247,74,247,77],[248,74,248,77],[283,74,283,77],[284,74,284,77],[285,74,285,77],[286,74,286,77],[287,74,287,77],[288,74,288,77],[289,74,289,77],[290,74,290,77],[291,74,291,77],[226,74,226,77],[227,74,227,77],[228,74,228,77],[229,74,229,77],[230,74,230,77],[231,74,231,77],[198,74,198,77],[199,74,199,77],[200,74,200,77],[201,74,201,77],[202,74,202,77],[203,74,203,77],[204,74,204,77],[205,74,205,77],[206,74,206,77],[207,74,207,77],[208,74,208,77],[209,74,209,77],[210,74,210,77],[211,74,211,77],[212,74,212,77],[213,74,213,77],[214,74,214,77],[249,74,249,77],[250,74,250,77],[251,74,251,77],[252,74,252,77],[253,74,253,77],[254,74,254,77],[255,74,255,77],[256,74,256,77],[257,74,257,77],[258,74,258,77],[193,74,193,77],[194,74,194,77],[195,74,195,77],[196,74,196,77],[197,74,197,77],[164,74,164,77],[165,74,165,77],[166,74,166,77],[167,74,167,77],[168,74,168,77],[169,74,169,77],[170,74,170,77],[171,74,171,77],[172,74,172,77],[173,74,173,77],[174,74,174,77],[175,74,175,77],[176,74,176,77],[177,74,177,77],[178,74,178,77],[179,74,179,77],[180,74,180,77],[215,74,215,77],[216,74,216,77],[217,74,217,77],[218,74,218,77],[219,74,219,77],[220,74,220,77],[221,74,221,77],[222,74,222,77],[223,74,223,77],[224,74,224,77],[225,74,225,77],[160,74,160,77],[161,74,161,77],[162,74,162,77],[163,74,163,77],[130,74,130,77],[131,74,131,77],[132,74,132,77],[133,74,133,77],[134,74,134,77],[135,74,135,77],[136,74,136,77],[137,74,137,77],[138,74,138,77],[139,74,139,77],[140,74,140,77],[141,74,141,77],[142,74,142,77],[143,74,143,77],[144,74,144,77],[145,74,145,77],[146,74,146,77],[181,74,181,77],[182,74,182,77],[183,74,183,77],[184,74,184,77],[185,74,185,77],[186,74,186,77],[187,74,187,77],[188,74,188,77],[189,74,189,77],[190,74,190,77],[191,74,191,77],[192,74,192,77],[127,74,127,77],[128,74,128,77],[129,74,129,77],[96,74,96,77],[97,74,97,77],[98,74,98,77],[99,74,99,77],[100,74,100,77],[101,74,101,77],[102,74,102,77],[103,74,103,77],[104,74,104,77],[105,74,105,77],[106,74,106,77],[107,74,107,77],[108,74,108,77],[109,74,109,77],[110,74,110,77],[111,74,111,77],[112,74,112,77],[147,74,147,77],[148,74,148,77],[149,74,149,77],[150,74,150,77],[151,74,151,77],[152,74,152,77],[153,74,153,77],[154,74,154,77],[155,74,155,77],[156,74,156,77],[157,74,157,77],[158,74,158,77],[159,74,159,77],[94,74,94,77],[95,74,95,77],[62,74,62,77],[63,74,63,77],[64,74,64,77],[65,74,65,77],[66,74,66,77],[67,74,67,77],[68,74,68,77],[69,74,69,77],[70,74,70,77],[71,74,71,77],[72,74,72,77],[73,74,73,77],[74,74,74,77],[75,74,75,77],[76,74,76,77],[77,74,77,77],[78,74,78,77],[113,74,113,77],[114,74,114,77],[115,74,115,77],[116,74,116,77],[117,74,117,77],[118,74,118,77],[119,74,119,77],[120,74,120,77],[121,74,121,77],[122,74,122,77],[123,74,123,77],[124,74,124,77],[125,74,125,77],[126,74,126,77],[61,74,61,77],[28,74,28,77],[29,74,29,77],[30,74,30,77],[31,74,31,77],[32,74,32,77],[33,74,33,77],[34,74,34,77],[35,74,35,77],[36,74,36,77],[37,74,37,77],[38,74,38,77],[39,74,39,77],[40,74,40,77],[41,74,41,77],[42,74,42,77],[43,74,43,77],[44,74,44,77],[79,74,79,77],[80,74,80,77],[81,74,81,77],[82,74,82,77],[83,74,83,77],[84,74,84,77],[85,74,85,77],[86,74,86,77],[87,74,87,77],[88,74,88,77],[89,74,89,77],[90,74,90,77],[91,74,91,77],[92,74,92,77],[93,74,93,77],[27,74,27,77],[445,121,467,123],[468,121,490,123],[491,121,511,123],[510,87,510,91],[511,87,511,91],[489,87,489,91],[490,87,490,91],[491,87,491,91],[492,87,492,91],[493,87,493,91],[494,87,494,91],[495,87,495,91],[477,87,477,91],[478,87,478,91],[479,87,479,91],[480,87,480,91],[481,87,481,91],[482,87,482,91],[483,87,483,91],[484,87,484,91],[485,87,485,91],[486,87,486,91],[487,87,487,91],[488,87,488,91],[467,87,467,91],[468,87,468,91],[469,87,469,91],[470,87,470,91],[471,87,471,91],[472,87,472,91],[473,87,473,91]],"merged_total":10557,"flags":["merged_cut"]}
[null,null,null,null,null,null,null,null,"Only two pages are unhidden, if you need additional pages to input data, press button(s) on the right to unhide additional pages. Please, only unhide pages as needed."]
[null,null,null,null,null,null,null,null,"Jurisdiction Name:",null,null,null,null,null,null,null,null,null,null,null,{"$f":"IF('Public Facilities COMPLETION'!AB2>0,'Public Facilities COMPLETION'!AB2,\"\")","v":""},null,null,null,null,null,null,null,null,null,null,null,null,null,null,null,null,null,null,null,null,null,null,null,null,null,null,null,null,null,null,"Contract #",null,null,null,null,null,null,{"$f":"IF('Public Facilities COMPLETION'!BN2>0,'Public Facilities COMPLETION'!BN2,\"\")","v":""},null,null,null,null,null,null,null,null,null,null,null,null,null,null,null,null,null,null,null,null,null,null,null,null,null,null,null,null,null,null,null,null,null,null,null,null,null,null,null,null,null,null,null,null,null,null,null,null,null,null,null,null,null,null,null,null,null,null,null,null,null,null,"Page  1"]
[]
[]
[]
[null,null,null,null,null,null,null,null,"DIRECT BENEFIT DATA BY PERSON - Fill in ALL \"REQUIRED\" fields for every person added below (LMC)"]
[]
[]
[]
[null,null,null,null,null,null,null,null,"CDBG requires to collect demographic information for only 6 (Six) months from the date of \"Open for Service Date\""]
[null,null,null,null,null,null,null,null,{"$f":"IF(AND('Public Facilities SET UP'!$N$85=Validation!$D$10,'Public Facilities SET UP'!$AK$85=Validation!$D$95,'Public Facilities SET UP'!$BJ$85=Validation!$F$36),\"REQUIRED\",IF(AND('Public Facilities SET UP'!$N$85=Validation!$D$10,'Public Facilities SET UP'!$AK$85=Validation!$D$96,'Public Facilities SET UP'!$BJ$85=Validation!$F$36),\"REQUIRED\",IF(AND('Public Facilities SET UP'!$N$85=Validation!$D$10,'Public Facilities SET UP'!$AK$85=Validation!$D$97,'Public Facilities SET UP'!$BJ$85=Validation!$F$36),\"REQUIRED\",IF(AND('Public Facilities SET UP'!$N$85=Validation!$D$10,'Public Facilities SET UP'!$AK$85=Validation!$D$98,'Public Facilities SET UP'!$BJ$85=Validation!$F$36),\"REQUIRED\",IF(AND('Public Facilities SET UP'!$N$85=Validation!$D$10,'Public Facilities SET UP'!$AK$85=Validation!$D$99,'Public Facilities SET UP'!$BJ$85=Validation!$F$36),\"REQUIRED\",IF(AND('Public Facilities SET UP'!$N$85=Validation!$D$10,'Public Facilities SET UP'!$AK$85=Validation!$D$100,'Public Facilities SET UP'!$BJ$85=Validation!$F$36),\"REQUIRED\",IF(AND('Public Facilities SET UP'!$N$85=Validation!$D$10,'Public Facilities SET UP'!$AK$85=Validation!$D$101,'Public Facilities SET UP'!$BJ$85=Validation!$F$36),\"REQUIRED\",IF(AND('Public Facilities SET UP'!$N$85=Validation!$D$10,'Public Facilities SET UP'!$AK$85=Validation!$D$102,'Public Facilities SET UP'!$BJ$85=Validation!$F$36),\"REQUIRED\",IF(AND('Public Facilities SET UP'!$N$85=Validation!$D$10,'Public Facilities SET UP'!$AK$85=Validation!$D$104,'Public Facilities SET UP'!$BJ$85=Validation!$F$36),\"REQUIRED\",IF(AND('Public Facilities SET UP'!$N$85=Validation!$D$10,'Public Facilities SET UP'!$AK$85=Validation!$D$105,'Public Facilities SET UP'!$BJ$85=Validation!$F$36),\"REQUIRED\",IF(AND('Public Facilities SET UP'!$N$85=Validation!$D$10,'Public Facilities SET UP'!$AK$85=Validation!$D$106,'Public Facilities SET UP'!$BJ$85=Validation!$F$36),\"REQUIRED\",IF(AND('Public Facilities SET UP'!$N$85=Validation!$D$10,'Public Facilities SET UP'!$AK$85=Validation!$D$107,'Public Facilities SET UP'!$BJ$85=Validation!$F$36),\"REQUIRED\",IF(AND('Public Facilities SET UP'!$N$85=Validation!$D$10,'Public Facilities SET UP'!$AK$85=Validation!$D$108,'Public Facilities SET UP'!$BJ$85=Validation!$F$36),\"REQUIRED\",\"NOT REQUIRED\")))))))))))))","v":"NOT REQUIRED"},null,null,null,null,null,null,null,null,null,null,null,null,null,null,null,null,null,null,null,null,null,null,null,null,null,null,null,null,null,null,null,null,null,null,null,null,null,null,null,null,null,null,null,null,null,null,null,null,null,null,null,null,null,null,null,null,null,null,null,null,null,null,null,null,null,null,null,null,null,null,null,null,null,{"$f":"IF(AND('Public Facilities SET UP'!$N$85=Validation!$D$10,'Public Facilities SET UP'!$AK$85=Validation!$D$97,'Public Facilities SET UP'!$BJ$85=Validation!$F$36),\"REQUIRED\",\"NOT REQUIRED\")","v":"NOT REQUIRED"}]
[null,null,null,null,null,null,null,null,"Beneficiary Name, code, or Home Address.",null,null,null,null,null,null,null,null,null,"Home Address in Service Area",null,null,null,null,null,"Beneficiary Type",null,null,null,null,null,"Total Household Size",null,null,null,"Annual Gross Income for HH - All",null,null,null,null,null,"% of Area Median Income",null,null,null,null,null,null,null,null,"Access to a Service or Benefit",null,null,null,null,null,"Hispanic",null,null,null,"Race / Ethnicity",null,null,null,null,null,null,null,null,null,null,"Veteran",null,null,null,"Is beneficiary disable?",null,null,null,"Female-Headed Household?",null,null,null,"Homeless Person given overnight shelter?",null,null,null,null,"Bed created for overnight shelter?",null,null,null,null,"Person placed in a job?",null,null,null,"First Time Homebuyer?",null,null,null,"Receiving Housing Counseling?",null,null,null,"Down Payment Assistance?",null,null,null,"Short-term Rental Assistance?",null,null,null,"Previously Homeless?",null,null,null," Chronically homeless?"]
[null,null,null,null,null,null,null,1,null,null,null,null,null,null,null,null,null,null,"Select Option",null,null,null,null,null,"Select Option",null,null,null,null,null,null,null,null,null,null,null,null,null,null,null,"Select Option",null,null,null,null,null,null,null,null,"Select Option",null,null,null,null,null,"Select Option",null,null,null,"Select Option",null,null,null,null,null,null,null,null,null,null,"Select Option",null,null,null,"Select Option",null,null,null,"Select Option",null,null,null,"Select Option",null,null,null,null,"Select Option",null,null,null,null,"Select Option",null,null,null,"Select Option",null,null,null,"Select Option",null,null,null,"Select Option",null,null,null,"Select Option",null,null,null,"Select Option",null,null,null,"Select Option"]
[null,null,null,null,null,null,null,2]
[null,null,null,null,null,null,null,3]
[null,null,null,null,null,null,null,4]
[null,null,null,null,null,null,null,5]
[null,null,null,null,null,null,null,6]
[null,null,null,null,null,null,null,7]
[null,null,null,null,null,null,null,8]
[null,null,null,null,null,null,null,9]
[null,null,null,null,null,null,null,10]
[null,null,null,null,null,null,null,11]
[null,null,null,null,null,null,null,12]
[null,null,null,null,null,null,null,13]
[null,null,null,null,null,null,null,14]
[null,null,null,null,null,null,null,15]
[null,null,null,null,null,null,null,16]
[null,null,null,null,null,null,null,17]
[null,null,null,null,null,null,null,18]
[null,null,null,null,null,null,null,19]
[null,null,null,null,null,null,null,20,null,null,null,null,null,null,null,null,null,null,null,null,null,null,null,null,null,null,null,null,null,null,null,null,null,null,null,null,null,null,null,null,null,null,null,null,null,null,null,null,null,null,null,null,null,null,null,null,null,null,null,null,null,null,null,null,null,null,null,null,null,null,null,null,null,null,null,null,null,null,null,null,null,null,null,null,null,null,null,null,null,null,null,null,null,null,null,null,null,null,null,null,null,null,null,null,null,null,null,null,null,null,null,null,null,null,null,null,null,null,null,null,null,"Page  2"]
[null,null,null,null,null,null,null,21]
[null,null,null,null,null,null,null,22]
[null,null,null,null,null,null,null,23]
[null,null,null,null,null,null,null,24]
[null,null,null,null,null,null,null,25]
[null,null,null,null,null,null,null,26]
[null,null,null,null,null,null,null,27]
[null,null,null,null,null,null,null,28]
[null,null,null,null,null,null,null,29]
[null,null,null,null,null,null,null,30]
[null,null,null,null,null,null,null,31]
[null,null,null,null,null,null,null,32]
[null,null,null,null,null,null,null,33]
[null,null,null,null,null,null,null,34]
[null,null,null,null,null,null,null,35]
[null,null,null,null,null,null,null,36]
[null,null,null,null,null,null,null,37]
[null,null,null,null,null,null,null,38]
[null,null,null,null,null,null,null,39]
[null,null,null,null,null,null,null,40]
[null,null,null,null,null,null,null,41]
[null,null,null,null,null,null,null,42]
[null,null,null,null,null,null,null,43,null,null,null,null,null,null,null,null,null,null,null,null,null,null,null,null,null,null,null,null,null,null,null,null,null,null,null,null,null,null,null,null,null,null,null,null,null,null,null,null,null,null,null,null,null,null,null,null,null,null,null,null,null,null,null,null,null,null,null,null,null,null,null,null,null,null,null,null,null,null,null,null,null,null,null,null,null,null,null,null,null,null,null,null,null,null,null,null,null,null,null,null,null,null,null,null,null,null,null,null,null,null,null,null,null,null,null,null,null,null,null,null,null,"Page  3"]
[null,null,null,null,null,null,null,44]
[null,null,null,null,null,null,null,45]
[null,null,null,null,null,null,null,46]
[null,null,null,null,null,null,null,47]
[null,null,null,null,null,null,null,48]
[null,null,null,null,null,null,null,49]
[null,null,null,null,null,null,null,50]
[null,null,null,null,null,null,null,51]
[null,null,null,null,null,null,null,52]
[null,null,null,null,null,null,null,53]
[null,null,null,null,null,null,null,54]
[null,null,null,null,null,null,null,55]
[null,null,null,null,null,null,null,56]
[null,null,null,null,null,null,null,57]
[null,null,null,null,null,null,null,58]
[null,null,null,null,null,null,null,59]
[null,null,null,null,null,null,null,60]
[null,null,null,null,null,null,null,61]
[null,null,null,null,null,null,null,62]
[null,null,null,null,null,null,null,63]
[null,null,null,null,null,null,null,64]
[null,null,null,null,null,null,null,65]
[null,null,null,null,null,null,null,66,null,null,null,null,null,null,null,null,null,null,null,null,null,null,null,null,null,null,null,null,null,null,null,null,null,null,null,null,null,null,null,null,null,null,null,null,null,null,null,null,null,null,null,null,null,null,null,null,null,null,null,null,null,null,null,null,null,null,null,null,null,null,null,null,null,null,null,null,null,null,null,null,null,null,null,null,null,null,null,null,null,null,null,null,null,null,null,null,null,null,null,null,null,null,null,null,null,null,null,null,null,null,null,null,null,null,null,null,null,null,null,null,null,"Page  4"]
[null,null,null,null,null,null,null,67]
[null,null,null,null,null,null,null,68]
[null,null,null,null,null,null,null,69]
[null,null,null,null,null,null,null,70]
[null,null,null,null,null,null,null,71]
[null,null,null,null,null,null,null,72]
[null,null,null,null,null,null,null,73]
[null,null,null,null,null,null,null,74]
[null,null,null,null,null,null,null,75]
[null,null,null,null,null,null,null,76]
[null,null,null,null,null,null,null,77]
[null,null,null,null,null,null,null,78]
[null,null,null,null,null,null,null,79]
[null,null,null,null,null,null,null,80]
[null,null,null,null,null,null,null,81]
[null,null,null,null,null,null,null,82]
[null,null,null,null,null,null,null,83]
[null,null,null,null,null,null,null,84]
[null,null,null,null,null,null,null,85]
[null,null,null,null,null,null,null,86]
[null,null,null,null,null,null,null,87]
[null,null,null,null,null,null,null,88]
[null,null,null,null,null,null,null,89,null,null,null,null,null,null,null,null,null,null,null,null,null,null,null,null,null,null,null,null,null,null,null,null,null,null,null,null,null,null,null,null,null,null,null,null,null,null,null,null,null,null,null,null,null,null,null,null,null,null,null,null,null,null,null,null,null,null,null,null,null,null,null,null,null,null,null,null,null,null,null,null,null,null,null,null,null,null,null,null,null,null,null,null,null,null,null,null,null,null,null,null,null,null,null,null,null,null,null,null,null,null,null,null,null,null,null,null,null,null,null,null,null,"Page  5"]
[null,null,null,null,null,null,null,90]
[null,null,null,null,null,null,null,91]
[null,null,null,null,null,null,null,92]
[null,null,null,null,null,null,null,93]
[null,null,null,null,null,null,null,94]
[null,null,null,null,null,null,null,95]
[null,null,null,null,null,null,null,96]
[null,null,null,null,null,null,null,97]
[null,null,null,null,null,null,null,98]
[null,null,null,null,null,null,null,99]
[null,null,null,null,null,null,null,100]
[null,null,null,null,null,null,null,101]
[null,null,null,null,null,null,null,102]
[null,null,null,null,null,null,null,103]
[null,null,null,null,null,null,null,104]
[null,null,null,null,null,null,null,105]
[null,null,null,null,null,null,null,106]
[null,null,null,null,null,null,null,107]
[null,null,null,null,null,null,null,108]
[null,null,null,null,null,null,null,109]
[null,null,null,null,null,null,null,110]
[null,null,null,null,null,null,null,111]
[null,null,null,null,null,null,null,112,null,null,null,null,null,null,null,null,null,null,null,null,null,null,null,null,null,null,null,null,null,null,null,null,null,null,null,null,null,null,null,null,null,null,null,null,null,null,null,null,null,null,null,null,null,null,null,null,null,null,null,null,null,null,null,null,null,null,null,null,null,null,null,null,null,null,null,null,null,null,null,null,null,null,null,null,null,null,null,null,null,null,null,null,null,null,null,null,null,null,null,null,null,null,null,null,null,null,null,null,null,null,null,null,null,null,null,null,null,null,null,null,null,"Page  6"]
[null,null,null,null,null,null,null,113]
[null,null,null,null,null,null,null,114]
[null,null,null,null,null,null,null,115]
[null,null,null,null,null,null,null,116]
[null,null,null,null,null,null,null,117]
[null,null,null,null,null,null,null,118]
[null,null,null,null,null,null,null,119]
[null,null,null,null,null,null,null,120]
[null,null,null,null,null,null,null,121]
[null,null,null,null,null,null,null,122]
[null,null,null,null,null,null,null,123]
[null,null,null,null,null,null,null,124]
[null,null,null,null,null,null,null,125]
[null,null,null,null,null,null,null,126]
[null,null,null,null,null,null,null,127]
[null,null,null,null,null,null,null,128]
[null,null,null,null,null,null,null,129]
[null,null,null,null,null,null,null,130]
[null,null,null,null,null,null,null,131]
[null,null,null,null,null,null,null,132]
[null,null,null,null,null,null,null,133]
[null,null,null,null,null,null,null,134]
[null,null,null,null,null,null,null,135,null,null,null,null,null,null,null,null,null,null,null,null,null,null,null,null,null,null,null,null,null,null,null,null,null,null,null,null,null,null,null,null,null,null,null,null,null,null,null,null,null,null,null,null,null,null,null,null,null,null,null,null,null,null,null,null,null,null,null,null,null,null,null,null,null,null,null,null,null,null,null,null,null,null,null,null,null,null,null,null,null,null,null,null,null,null,null,null,null,null,null,null,null,null,null,null,null,null,null,null,null,null,null,null,null,null,null,null,null,null,null,null,null,"Page  7"]
[null,null,null,null,null,null,null,136]
[null,null,null,null,null,null,null,137]
[null,null,null,null,null,null,null,138]
[null,null,null,null,null,null,null,139]
[null,null,null,null,null,null,null,140]
[null,null,null,null,null,null,null,141]
[null,null,null,null,null,null,null,142]
[null,null,null,null,null,null,null,143]
[null,null,null,null,null,null,null,144]
[null,null,null,null,null,null,null,145]
[null,null,null,null,null,null,null,146]
[null,null,null,null,null,null,null,147]
[null,null,null,null,null,null,null,148]
[null,null,null,null,null,null,null,149]
[null,null,null,null,null,null,null,150]
[null,null,null,null,null,null,null,151]
[null,null,null,null,null,null,null,152]
[null,null,null,null,null,null,null,153]
[null,null,null,null,null,null,null,154]
[null,null,null,null,null,null,null,155]
[null,null,null,null,null,null,null,156]
[null,null,null,null,null,null,null,157]
[null,null,null,null,null,null,null,158,null,null,null,null,null,null,null,null,null,null,null,null,null,null,null,null,null,null,null,null,null,null,null,null,null,null,null,null,null,null,null,null,null,null,null,null,null,null,null,null,null,null,null,null,null,null,null,null,null,null,null,null,null,null,null,null,null,null,null,null,null,null,null,null,null,null,null,null,null,null,null,null,null,null,null,null,null,null,null,null,null,null,null,null,null,null,null,null,null,null,null,null,null,null,null,null,null,null,null,null,null,null,null,null,null,null,null,null,null,null,null,null,null,"Page  8"]
[null,null,null,null,null,null,null,159]
[null,null,null,null,null,null,null,160]
[null,null,null,null,null,null,null,161]
[null,null,null,null,null,null,null,162]
[null,null,null,null,null,null,null,163]
[null,null,null,null,null,null,null,164]
[null,null,null,null,null,null,null,165]
[null,null,null,null,null,null,null,166]
[null,null,null,null,null,null,null,167]
[null,null,null,null,null,null,null,168]
[null,null,null,null,null,null,null,169]
[null,null,null,null,null,null,null,170]
[null,null,null,null,null,null,null,171]
[null,null,null,null,null,null,null,172]
[null,null,null,null,null,null,null,173]
[null,null,null,null,null,null,null,174]
[null,null,null,null,null,null,null,175]
[null,null,null,null,null,null,null,176]
[null,null,null,null,null,null,null,177]
[null,null,null,null,null,null,null,178]
[null,null,null,null,null,null,null,179]
[null,null,null,null,null,null,null,180]
[null,null,null,null,null,null,null,181,null,null,null,null,null,null,null,null,null,null,null,null,null,null,null,null,null,null,null,null,null,null,null,null,null,null,null,null,null,null,null,null,null,null,null,null,null,null,null,null,null,null,null,null,null,null,null,null,null,null,null,null,null,null,null,null,null,null,null,null,null,null,null,null,null,null,null,null,null,null,null,null,null,null,null,null,null,null,null,null,null,null,null,null,null,null,null,null,null,null,null,null,null,null,null,null,null,null,null,null,null,null,null,null,null,null,null,null,null,null,null,null,null,"Page  9"]
[null,null,null,null,null,null,null,182]
[null,null,null,null,null,null,null,183]
[null,null,null,null,null,null,null,184]
[null,null,null,null,null,null,null,185]
[null,null,null,null,null,null,null,186]
[null,null,null,null,null,null,null,187]
[null,null,null,null,null,null,null,188]
[null,null,null,null,null,null,null,189]
[null,null,null,null,null,null,null,190]
[null,null,null,null,null,null,null,191]
[null,null,null,null,null,null,null,192]
[null,null,null,null,null,null,null,193]
[null,null,null,null,null,null,null,194]
[null,null,null,null,null,null,null,195]
[null,null,null,null,null,null,null,196]
[null,null,null,null,null,null,null,197]
[null,null,null,null,null,null,null,198]
[null,null,null,null,null,null,null,199]
[null,null,null,null,null,null,null,200]
[null,null,null,null,null,null,null,201]
[null,null,null,null,null,null,null,202]
[null,null,null,null,null,null,null,203]
[null,null,null,null,null,null,null,204,null,null,null,null,null,null,null,null,null,null,null,null,null,null,null,null,null,null,null,null,null,null,null,null,null,null,null,null,null,null,null,null,null,null,null,null,null,null,null,null,null,null,null,null,null,null,null,null,null,null,null,null,null,null,null,null,null,null,null,null,null,null,null,null,null,null,null,null,null,null,null,null,null,null,null,null,null,null,null,null,null,null,null,null,null,null,null,null,null,null,null,null,null,null,null,null,null,null,null,null,null,null,null,null,null,null,null,null,null,null,null,null,null,"Page  10"]
[null,null,null,null,null,null,null,205]
[null,null,null,null,null,null,null,206]
[null,null,null,null,null,null,null,207]
[null,null,null,null,null,null,null,208]
[null,null,null,null,null,null,null,209]
[null,null,null,null,null,null,null,210]
[null,null,null,null,null,null,null,211]
[null,null,null,null,null,null,null,212]
[null,null,null,null,null,null,null,213]
[null,null,null,null,null,null,null,214]
[null,null,null,null,null,null,null,215]
[null,null,null,null,null,null,null,216]
[null,null,null,null,null,null,null,217]
[null,null,null,null,null,null,null,218]
[null,null,null,null,null,null,null,219]
[null,null,null,null,null,null,null,220]
[null,null,null,null,null,null,null,221]
[null,null,null,null,null,null,null,222]
[null,null,null,null,null,null,null,223]
[null,null,null,null,null,null,null,224]
[null,null,null,null,null,null,null,225]
[null,null,null,null,null,null,null,226]
[null,null,null,null,null,null,null,227,null,null,null,null,null,null,null,null,null,null,null,null,null,null,null,null,null,null,null,null,null,null,null,null,null,null,null,null,null,null,null,null,null,null,null,null,null,null,null,null,null,null,null,null,null,null,null,null,null,null,null,null,null,null,null,null,null,null,null,null,null,null,null,null,null,null,null,null,null,null,null,null,null,null,null,null,null,null,null,null,null,null,null,null,null,null,null,null,null,null,null,null,null,null,null,null,null,null,null,null,null,null,null,null,null,null,null,null,null,null,null,null,null,"Page  11"]
[null,null,null,null,null,null,null,228]
[null,null,null,null,null,null,null,229]
[null,null,null,null,null,null,null,230]
[null,null,null,null,null,null,null,231]
[null,null,null,null,null,null,null,232]
[null,null,null,null,null,null,null,233]
[null,null,null,null,null,null,null,234]
[null,null,null,null,null,null,null,235]
[null,null,null,null,null,null,null,236]
[null,null,null,null,null,null,null,237]
[null,null,null,null,null,null,null,238]
[null,null,null,null,null,null,null,239]
[null,null,null,null,null,null,null,240]
[null,null,null,null,null,null,null,241]
[null,null,null,null,null,null,null,242]
[null,null,null,null,null,null,null,243]
[null,null,null,null,null,null,null,244]
[null,null,null,null,null,null,null,245]
[null,null,null,null,null,null,null,246]
[null,null,null,null,null,null,null,247]
[null,null,null,null,null,null,null,248]
[null,null,null,null,null,null,null,249]
[null,null,null,null,null,null,null,250,null,null,null,null,null,null,null,null,null,null,null,null,null,null,null,null,null,null,null,null,null,null,null,null,null,null,null,null,null,null,null,null,null,null,null,null,null,null,null,null,null,null,null,null,null,null,null,null,null,null,null,null,null,null,null,null,null,null,null,null,null,null,null,null,null,null,null,null,null,null,null,null,null,null,null,null,null,null,null,null,null,null,null,null,null,null,null,null,null,null,null,null,null,null,null,null,null,null,null,null,null,null,null,null,null,null,null,null,null,null,null,null,null,"Page  12"]
[null,null,null,null,null,null,null,251]
[null,null,null,null,null,null,null,252]
[null,null,null,null,null,null,null,253]
[null,null,null,null,null,null,null,254]
[null,null,null,null,null,null,null,255]
[null,null,null,null,null,null,null,256]
[null,null,null,null,null,null,null,257]
[null,null,null,null,null,null,null,258]
[null,null,null,null,null,null,null,259]
[null,null,null,null,null,null,null,260]
[null,null,null,null,null,null,null,261]
[null,null,null,null,null,null,null,262]
[null,null,null,null,null,null,null,263]
[null,null,null,null,null,null,null,264]
[null,null,null,null,null,null,null,265]
[null,null,null,null,null,null,null,266]
[null,null,null,null,null,null,null,267]
[null,null,null,null,null,null,null,268]
[null,null,null,null,null,null,null,269]
[null,null,null,null,null,null,null,270]
[null,null,null,null,null,null,null,271]
[null,null,null,null,null,null,null,272]
[null,null,null,null,null,null,null,273,null,null,null,null,null,null,null,null,null,null,null,null,null,null,null,null,null,null,null,null,null,null,null,null,null,null,null,null,null,null,null,null,null,null,null,null,null,null,null,null,null,null,null,null,null,null,null,null,null,null,null,null,null,null,null,null,null,null,null,null,null,null,null,null,null,null,null,null,null,null,null,null,null,null,null,null,null,null,null,null,null,null,null,null,null,null,null,null,null,null,null,null,null,null,null,null,null,null,null,null,null,null,null,null,null,null,null,null,null,null,null,null,null,"Page  13"]
[null,null,null,null,null,null,null,274]
[null,null,null,null,null,null,null,275]
[null,null,null,null,null,null,null,276]
[null,null,null,null,null,null,null,277]
[null,null,null,null,null,null,null,278]
[null,null,null,null,null,null,null,279]
[null,null,null,null,null,null,null,280]
[null,null,null,null,null,null,null,281]
[null,null,null,null,null,null,null,282]
[null,null,null,null,null,null,null,283]
[null,null,null,null,null,null,null,284]
[null,null,null,null,null,null,null,285]
[null,null,null,null,null,null,null,286]
[null,null,null,null,null,null,null,287]
[null,null,null,null,null,null,null,288]
[null,null,null,null,null,null,null,289]
[null,null,null,null,null,null,null,290]
[null,null,null,null,null,null,null,291]
[null,null,null,null,null,null,null,292]
[null,null,null,null,null,null,null,293]
[null,null,null,null,null,null,null,294]
[null,null,null,null,null,null,null,295]
[null,null,null,null,null,null,null,296,null,null,null,null,null,null,null,null,null,null,null,null,null,null,null,null,null,null,null,null,null,null,null,null,null,null,null,null,null,null,null,null,null,null,null,null,null,null,null,null,null,null,null,null,null,null,null,null,null,null,null,null,null,null,null,null,null,null,null,null,null,null,null,null,null,null,null,null,null,null,null,null,null,null,null,null,null,null,null,null,null,null,null,null,null,null,null,null,null,null,null,null,null,null,null,null,null,null,null,null,null,null,null,null,null,null,null,null,null,null,null,null,null,"Page  14"]
[null,null,null,null,null,null,null,297]
[null,null,null,null,null,null,null,298]
[null,null,null,null,null,null,null,299]
[null,null,null,null,null,null,null,300]
[null,null,null,null,null,null,null,301]
[null,null,null,null,null,null,null,302]
[null,null,null,null,null,null,null,303]
[null,null,null,null,null,null,null,304]
[null,null,null,null,null,null,null,305]
[null,null,null,null,null,null,null,306]
[null,null,null,null,null,null,null,307]
[null,null,null,null,null,null,null,308]
[null,null,null,null,null,null,null,309]
[null,null,null,null,null,null,null,310]
[null,null,null,null,null,null,null,311]
[null,null,null,null,null,null,null,312]
[null,null,null,null,null,null,null,313]
[null,null,null,null,null,null,null,314]
[null,null,null,null,null,null,null,315]
[null,null,null,null,null,null,null,316]
[null,null,null,null,null,null,null,317]
[null,null,null,null,null,null,null,318]
[null,null,null,null,null,null,null,319,null,null,null,null,null,null,null,null,null,null,null,null,null,null,null,null,null,null,null,null,null,null,null,null,null,null,null,null,null,null,null,null,null,null,null,null,null,null,null,null,null,null,null,null,null,null,null,null,null,null,null,null,null,null,null,null,null,null,null,null,null,null,null,null,null,null,null,null,null,null,null,null,null,null,null,null,null,null,null,null,null,null,null,null,null,null,null,null,null,null,null,null,null,null,null,null,null,null,null,null,null,null,null,null,null,null,null,null,null,null,null,null,null,"Page  15"]
[null,null,null,null,null,null,null,320]
[null,null,null,null,null,null,null,321]
[null,null,null,null,null,null,null,322]
[null,null,null,null,null,null,null,323]
[null,null,null,null,null,null,null,324]
[null,null,null,null,null,null,null,325]
[null,null,null,null,null,null,null,326]
[null,null,null,null,null,null,null,327]
[null,null,null,null,null,null,null,328]
[null,null,null,null,null,null,null,329]
[null,null,null,null,null,null,null,330]
[null,null,null,null,null,null,null,331]
[null,null,null,null,null,null,null,332]
[null,null,null,null,null,null,null,333]
[null,null,null,null,null,null,null,334]
[null,null,null,null,null,null,null,335]
[null,null,null,null,null,null,null,336]
[null,null,null,null,null,null,null,337]
[null,null,null,null,null,null,null,338]
[null,null,null,null,null,null,null,339]
[null,null,null,null,null,null,null,340]
[null,null,null,null,null,null,null,341]
[null,null,null,null,null,null,null,342,null,null,null,null,null,null,null,null,null,null,null,null,null,null,null,null,null,null,null,null,null,null,null,null,null,null,null,null,null,null,null,null,null,null,null,null,null,null,null,null,null,null,null,null,null,null,null,null,null,null,null,null,null,null,null,null,null,null,null,null,null,null,null,null,null,null,null,null,null,null,null,null,null,null,null,null,null,null,null,null,null,null,null,null,null,null,null,null,null,null,null,null,null,null,null,null,null,null,null,null,null,null,null,null,null,null,null,null,null,null,null,null,null,"Page  16"]
[null,null,null,null,null,null,null,343]
[null,null,null,null,null,null,null,344]
[null,null,null,null,null,null,null,345]
[null,null,null,null,null,null,null,346]
[null,null,null,null,null,null,null,347]
[null,null,null,null,null,null,null,348]
[null,null,null,null,null,null,null,349]
[null,null,null,null,null,null,null,350]
[null,null,null,null,null,null,null,351]
[null,null,null,null,null,null,null,352]
[null,null,null,null,null,null,null,353]
[null,null,null,null,null,null,null,354]
[null,null,null,null,null,null,null,355]
[null,null,null,null,null,null,null,356]
[null,null,null,null,null,null,null,357]
[null,null,null,null,null,null,null,358]
[null,null,null,null,null,null,null,359]
[null,null,null,null,null,null,null,360]
[null,null,null,null,null,null,null,361]
[null,null,null,null,null,null,null,362]
[null,null,null,null,null,null,null,363]
[null,null,null,null,null,null,null,364]
[null,null,null,null,null,null,null,365,null,null,null,null,null,null,null,null,null,null,null,null,null,null,null,null,null,null,null,null,null,null,null,null,null,null,null,null,null,null,null,null,null,null,null,null,null,null,null,null,null,null,null,null,null,null,null,null,null,null,null,null,null,null,null,null,null,null,null,null,null,null,null,null,null,null,null,null,null,null,null,null,null,null,null,null,null,null,null,null,null,null,null,null,null,null,null,null,null,null,null,null,null,null,null,null,null,null,null,null,null,null,null,null,null,null,null,null,null,null,null,null,null,"Page  17"]
[null,null,null,null,null,null,null,366]
[null,null,null,null,null,null,null,367]
[null,null,null,null,null,null,null,368]
[null,null,null,null,null,null,null,369]
[null,null,null,null,null,null,null,370]
[null,null,null,null,null,null,null,371]
[null,null,null,null,null,null,null,372]
[null,null,null,null,null,null,null,373]
[null,null,null,null,null,null,null,374]
[null,null,null,null,null,null,null,375]
[null,null,null,null,null,null,null,376]
[null,null,null,null,null,null,null,377]
[null,null,null,null,null,null,null,378]
[null,null,null,null,null,null,null,379]
[null,null,null,null,null,null,null,380]
[null,null,null,null,null,null,null,381]
[null,null,null,null,null,null,null,382]
[null,null,null,null,null,null,null,383]
[null,null,null,null,null,null,null,384]
[null,null,null,null,null,null,null,385]
[null,null,null,null,null,null,null,386]
[null,null,null,null,null,null,null,387]
[null,null,null,null,null,null,null,388,null,null,null,null,null,null,null,null,null,null,null,null,null,null,null,null,null,null,null,null,null,null,null,null,null,null,null,null,null,null,null,null,null,null,null,null,null,null,null,null,null,null,null,null,null,null,null,null,null,null,null,null,null,null,null,null,null,null,null,null,null,null,null,null,null,null,null,null,null,null,null,null,null,null,null,null,null,null,null,null,null,null,null,null,null,null,null,null,null,null,null,null,null,null,null,null,null,null,null,null,null,null,null,null,null,null,null,null,null,null,null,null,null,"Page  18"]
[null,null,null,null,null,null,null,389]
[null,null,null,null,null,null,null,390]
[null,null,null,null,null,null,null,391]
[null,null,null,null,null,null,null,392]
[null,null,null,null,null,null,null,393]
[null,null,null,null,null,null,null,394]
[null,null,null,null,null,null,null,395]
[null,null,null,null,null,null,null,396]
[null,null,null,null,null,null,null,397]
[null,null,null,null,null,null,null,398]
[null,null,null,null,null,null,null,399]
[null,null,null,null,null,null,null,400]
[null,null,null,null,null,null,null,401]
[null,null,null,null,null,null,null,402]
[null,null,null,null,null,null,null,403]
[null,null,null,null,null,null,null,404]
[null,null,null,null,null,null,null,405]
[null,null,null,null,null,null,null,406]
[null,null,null,null,null,null,null,407]
[null,null,null,null,null,null,null,408]
[null,null,null,null,null,null,null,409]
[null,null,null,null,null,null,null,410]
[null,null,null,null,null,null,null,411,null,null,null,null,null,null,null,null,null,null,null,null,null,null,null,null,null,null,null,null,null,null,null,null,null,null,null,null,null,null,null,null,null,null,null,null,null,null,null,null,null,null,null,null,null,null,null,null,null,null,null,null,null,null,null,null,null,null,null,null,null,null,null,null,null,null,null,null,null,null,null,null,null,null,null,null,null,null,null,null,null,null,null,null,null,null,null,null,null,null,null,null,null,null,null,null,null,null,null,null,null,null,null,null,null,null,null,null,null,null,null,null,null,"Page  19"]
[null,null,null,null,null,null,null,412]
[null,null,null,null,null,null,null,413]
[null,null,null,null,null,null,null,414]
[null,null,null,null,null,null,null,415]
[null,null,null,null,null,null,null,416]
[null,null,null,null,null,null,null,417]
[null,null,null,null,null,null,null,418]
[null,null,null,null,null,null,null,419]
[null,null,null,null,null,null,null,420]
[null,null,null,null,null,null,null,421]
[null,null,null,null,null,null,null,422]
[null,null,null,null,null,null,null,423]
[null,null,null,null,null,null,null,424]
[null,null,null,null,null,null,null,425]
[null,null,null,null,null,null,null,426]
[null,null,null,null,null,null,null,427]
[null,null,null,null,null,null,null,428]
[null,null,null,null,null,null,null,429]
[null,null,null,null,null,null,null,430]
[null,null,null,null,null,null,null,431]
[null,null,null,null,null,null,null,432]
[null,null,null,null,null,null,null,433]
[null,null,null,null,null,null,null,434,null,null,null,null,null,null,null,null,null,null,null,null,null,null,null,null,null,null,null,null,null,null,null,null,null,null,null,null,null,null,null,null,null,null,null,null,null,null,null,null,null,null,null,null,null,null,null,null,null,null,null,null,null,null,null,null,null,null,null,null,null,null,null,null,null,null,null,null,null,null,null,null,null,null,null,null,null,null,null,null,null,null,null,null,null,null,null,null,null,null,null,null,null,null,null,null,null,null,null,null,null,null,null,null,null,null,null,null,null,null,null,null,null,"Page  20"]
[null,null,null,null,null,null,null,435]
[null,null,null,null,null,null,null,436]
[null,null,null,null,null,null,null,437]
[null,null,null,null,null,null,null,438]
[null,null,null,null,null,null,null,439]
[null,null,null,null,null,null,null,440]
[null,null,null,null,null,null,null,441]
[null,null,null,null,null,null,null,442]
[null,null,null,null,null,null,null,443]
[null,null,null,null,null,null,null,444]
[null,null,null,null,null,null,null,445]
[null,null,null,null,null,null,null,446]
[null,null,null,null,null,null,null,447]
[null,null,null,null,null,null,null,448]
[null,null,null,null,null,null,null,449]
[null,null,null,null,null,null,null,450]
[null,null,null,null,null,null,null,451]
[null,null,null,null,null,null,null,452]
[null,null,null,null,null,null,null,453]
[null,null,null,null,null,null,null,454]
[null,null,null,null,null,null,null,455]
[null,null,null,null,null,null,null,456]
[null,null,null,null,null,null,null,457,null,null,null,null,null,null,null,null,null,null,null,null,null,null,null,null,null,null,null,null,null,null,null,null,null,null,null,null,null,null,null,null,null,null,null,null,null,null,null,null,null,null,null,null,null,null,null,null,null,null,null,null,null,null,null,null,null,null,null,null,null,null,null,null,null,null,null,null,null,null,null,null,null,null,null,null,null,null,null,null,null,null,null,null,null,null,null,null,null,null,null,null,null,null,null,null,null,null,null,null,null,null,null,null,null,null,null,null,null,null,null,null,null,"Page  21"]
[null,null,null,null,null,null,null,458]
[null,null,null,null,null,null,null,459]
[null,null,null,null,null,null,null,460]
[null,null,null,null,null,null,null,461]
[null,null,null,null,null,null,null,462]
[null,null,null,null,null,null,null,463]
[null,null,null,null,null,null,null,464]
[null,null,null,null,null,null,null,465]
[null,null,null,null,null,null,null,466]
[null,null,null,null,null,null,null,467]
[null,null,null,null,null,null,null,468]
[null,null,null,null,null,null,null,469]
[null,null,null,null,null,null,null,470]
[null,null,null,null,null,null,null,471]
[null,null,null,null,null,null,null,472]
[null,null,null,null,null,null,null,473]
[null,null,null,null,null,null,null,474]
[null,null,null,null,null,null,null,475]
[null,null,null,null,null,null,null,476]
[null,null,null,null,null,null,null,477]
[null,null,null,null,null,null,null,478]
[null,null,null,null,null,null,null,479]
[null,null,null,null,null,null,null,480,null,null,null,null,null,null,null,null,null,null,null,null,null,null,null,null,null,null,null,null,null,null,null,null,null,null,null,null,null,null,null,null,null,null,null,null,null,null,null,null,null,null,null,null,null,null,null,null,null,null,null,null,null,null,null,null,null,null,null,null,null,null,null,null,null,null,null,null,null,null,null,null,null,null,null,null,null,null,null,null,null,null,null,null,null,null,null,null,null,null,null,null,null,null,null,null,null,null,null,null,null,null,null,null,null,null,null,null,null,null,null,null,null,"Page  22"]
[null,null,null,null,null,null,null,481]
[null,null,null,null,null,null,null,482]
[null,null,null,null,null,null,null,483]
[null,null,null,null,null,null,null,484]
[null,null,null,null,null,null,null,485]
[null,null,null,null,null,null,null,486]
[null,null,null,null,null,null,null,487]
[null,null,null,null,null,null,null,488]
[null,null,null,null,null,null,null,489]
[null,null,null,null,null,null,null,490]
[null,null,null,null,null,null,null,491]
[null,null,null,null,null,null,null,492]
[null,null,null,null,null,null,null,493]
[null,null,null,null,null,null,null,494]
[null,null,null,null,null,null,null,495]
[null,null,null,null,null,null,null,496]
[null,null,null,null,null,null,null,497]
[null,null,null,null,null,null,null,498]
[null,null,null,null,null,null,null,499]
[null,null,null,null,null,null,null,500]
[]
[null,null,null,null,null,null,null,null,"END OF DOCUMENT"]

{"sheet":"Replacement-Displacement only","index":3,"n_rows":35,"n_cols":67,"rows_kept":35,"cut":false,"hidden":true,"merged":[[42,57,42,60],[43,14,43,34],[43,35,43,38],[43,39,43,42],[43,44,43,47],[43,48,43,51],[43,53,43,56],[43,57,43,60],[42,14,42,34],[42,35,42,38],[42,39,42,42],[42,44,42,47],[42,48,42,51],[42,53,42,56],[40,57,40,60],[41,14,41,34],[41,35,41,38],[41,39,41,42],[41,44,41,47],[41,48,41,51],[41,53,41,56],[41,57,41,60],[40,14,40,34],[40,35,40,38],[40,39,40,42],[40,44,40,47],[40,48,40,51],[40,53,40,56],[38,57,38,60],[39,14,39,34],[39,35,39,38],[39,39,39,42],[39,44,39,47],[39,48,39,51],[39,53,39,56],[39,57,39,60],[38,14,38,34],[38,35,38,38],[38,39,38,42],[38,44,38,47],[38,48,38,51],[38,53,38,56],[36,57,36,60],[37,14,37,34],[37,35,37,38],[37,39,37,42],[37,44,37,47],[37,48,37,51],[37,53,37,56],[37,57,37,60],[36,14,36,34],[36,35,36,38],[36,39,36,42],[36,44,36,47],[36,48,36,51],[36,53,36,56],[34,57,34,60],[35,14,35,34],[35,35,35,38],[35,39,35,42],[35,44,35,47],[35,48,35,51],[35,53,35,56],[35,57,35,60],[34,14,34,34],[34,35,34,38],[34,39,34,42],[34,44,34,47],[34,48,34,51],[34,53,34,56],[32,14,32,33],[32,35,32,42],[32,44,32,51],[32,53,32,60],[33,35,33,38],[33,39,33,42],[33,44,33,47],[33,48,33,51],[33,53,33,56],[33,57,33,60],[27,14,27,21],[30,14,30,28],[30,32,30,38],[30,39,30,57],[30,59,30,65],[30,66,30,72],[24,14,24,65],[24,68,24,72],[25,14,25,65],[25,68,25,72],[26,14,26,65],[26,68,26,72],[20,14,20,50],[20,66,20,74],[22,14,22,65],[22,68,22,72],[23,14,23,65],[23,68,23,72],[15,14,15,35],[15,37,15,82],[17,14,17,35],[17,37,17,47],[17,49,17,71],[17,72,17,82],[8,14,8,28],[8,31,8,44],[10,14,10,35],[10,37,10,82],[12,14,12,35],[12,37,12,47],[12,49,12,71],[12,72,12,82],[1,14,3,25],[1,26,3,55],[1,58,3,63],[1,64,3,82],[4,14,4,82],[5,14,5,82]]}
[]
[null,null,null,null,null,null,null,null,null,null,null,null,null,null,"Jurisdiction Name:",null,null,null,null,null,null,null,null,null,null,null,{"$f":"IF('[2]Multi - Family SET UP'!X2>0,'[2]Multi - Family SET UP'!X2,\"\")","v":""},null,null,null,null,null,null,null,null,null,null,null,null,null,null,null,null,null,null,null,null,null,null,null,null,null,null,null,null,null,null,null,"Contract #",null,null,null,null,null,{"$f":"IF('[2]Multi - Family SET UP'!BJ2>0,'[2]Multi - Family SET UP'!BJ2,\"\")","v":""}]
[]
[]
[null,null,null,null,null,null,null,null,null,null,null,null,null,null,"STATE OF CALIFORNIA - CDBG PROGRAM\nCDBG Program"]
[null,null,null,null,null,null,null,null,null,null,null,null,null,null,"Project Setup/Completion Report"]
[]
[]
[null,null,null,null,null,null,null,null,null,null,null,null,null,null,"One-for-one Replacement",null,null,null,null,null,null,null,null,null,null,null,null,null,null,null,null,"Includes Rental Housing:"]
[null,null,null,null,null,null,null,null,null,null,null,null,null,null,""]
[null,null,null,null,null,null,null,null,null,null,null,null,null,null,"Demolished/Converted Property Address:"]
[]
[null,null,null,null,null,null,null,null,null,null,null,null,null,null,"Indicate the number of bedroom units:",null,null,null,null,null,null,null,null,null,null,null,null,null,null,null,null,null,null,null,null,null,null,"Select Option",null,null,null,null,null,null,null,null,null,null,null,"Grant or Loan Agreement Executed Date:"]
[]
[]
[null,null,null,null,null,null,null,null,null,null,null,null,null,null,"Replacement Address:"]
[]
[null,null,null,null,null,null,null,null,null,null,null,null,null,null,"Indicate the number of bedroom units:",null,null,null,null,null,null,null,null,null,null,null,null,null,null,null,null,null,null,null,null,null,null,"Select Option",null,null,null,null,null,null,null,null,null,null,null,"Date Unit Will be Available:"]
[]
[]
[null,null,null,null,null,null,null,null,null,null,null,null,null,null,"Answer the questions below, if yes to \"Include Rental Housing\" above.",null,null,null,null,null,null,null,null,null,null,null,null,null,null,null,null,null,null,null,null,null,null,null,null,null,null,null,null,null,null,null,null,null,null,null,null,null,null,null,null,null,null,null,null,null,null,null,null,null,null,null,"Number of Units"]
[]
[null,null,null,null,null,null,null,null,null,null,null,null,null,null,"Units Subsidized with Project-Based Rental Assistance by Another Federal, State or Local Program."]
[null,null,null,null,null,null,null,null,null,null,null,null,null,null,"Units Designated for Persons with HIV/AIDS Including Units Receiving Assistance for Operations."]
[null,null,null,null,null,null,null,null,null,null,null,null,null,null,"Of Units Designated for Persons with HIV/AIDS, Number Specifically for Chronically Homeless."]
[null,null,null,null,null,null,null,null,null,null,null,null,null,null,"Permanent Housing Units Designated for Homeless Persons and Families, Including Units Receiving Assistance for Operations"]
[null,null,null,null,null,null,null,null,null,null,null,null,null,null,"Of Permanent Housing Units Designated for Homeless, Number for the Chronically Homeless,"]
[]
[]
[]
[null,null,null,null,null,null,null,null,null,null,null,null,null,null,"Displacement",null,null,null,null,null,null,null,null,null,null,null,null,null,null,null,null,null,"City Name:",null,null,null,null,null,null,null,null,null,null,null,null,null,null,null,null,null,null,null,null,null,null,null,null,null,null,"Census Tract:"]
[]
[null,null,null,null,null,null,null,null,null,null,null,null,null,null,"Race",null,null,null,null,null,null,null,null,null,null,null,null,null,null,null,null,null,null,null,null,"Displaced",null,null,null,null,null,null,null,null,"Remained In",null,null,null,null,null,null,null,null,"Relocated To"]
[null,null,null,null,null,null,null,null,null,null,null,null,null,null,null,null,null,null,null,null,null,null,null,null,null,null,null,null,null,null,null,null,null,null,null,"Total",null,null,null,"Hisp",null,null,null,null,"Total",null,null,null,"Hisp",null,null,null,null,"Total",null,null,null,"Hisp"]
[null,null,null,null,null,null,null,null,null,null,null,null,null,null,"Select Option"]

{"sheet":"Year 2","index":4,"n_rows":514,"n_cols":122,"rows_kept":514,"cut":false,"hidden":true,"merged":[[480,78,480,81],[481,78,481,81],[482,78,482,81],[483,78,483,81],[484,78,484,81],[485,78,485,81],[486,78,486,81],[487,78,487,81],[488,78,488,81],[489,78,489,81],[490,78,490,81],[491,78,491,81],[492,78,492,81],[493,78,493,81],[494,78,494,81],[495,78,495,81],[496,78,496,81],[497,78,497,81],[498,78,498,81],[499,78,499,81],[500,78,500,81],[501,78,501,81],[502,78,502,81],[503,78,503,81],[504,78,504,81],[505,78,505,81],[506,78,506,81],[507,78,507,81],[508,78,508,81],[509,78,509,81],[510,78,510,81],[511,78,511,81],[447,78,447,81],[448,78,448,81],[449,78,449,81],[450,78,450,81],[451,78,451,81],[452,78,452,81],[453,78,453,81],[454,78,454,81],[455,78,455,81],[456,78,456,81],[457,78,457,81],[458,78,458,81],[459,78,459,81],[460,78,460,81],[461,78,461,81],[462,78,462,81],[463,78,463,81],[464,78,464,81],[465,78,465,81],[466,78,466,81],[467,78,467,81],[468,78,468,81],[469,78,469,81],[470,78,470,81],[471,78,471,81],[472,78,472,81],[473,78,473,81],[474,78,474,81],[475,78,475,81],[476,78,476,81],[477,78,477,81],[478,78,478,81],[401,78,401,81],[402,78,402,81],[403,78,403,81],[404,78,404,81],[405,78,405,81],[406,78,406,81],[407,78,407,81],[408,78,408,81],[409,78,409,81],[410,78,410,81],[411,78,411,81],[412,78,412,81],[413,78,413,81],[479,78,479,81],[414,78,414,81],[415,78,415,81],[416,78,416,81],[417,78,417,81],[418,78,418,81],[419,78,419,81],[420,78,420,81],[421,78,421,81],[422,78,422,81],[423,78,423,81],[424,78,424,81],[425,78,425,81],[426,78,426,81],[427,78,427,81],[428,78,428,81],[429,78,429,81],[430,78,430,81],[431,78,431,81],[432,78,432,81],[433,78,433,81],[434,78,434,81],[435,78,435,81],[436,78,436,81],[437,78,437,81],[438,78,438,81],[439,78,439,81],[440,78,440,81],[441,78,441,81],[442,78,442,81],[443,78,443,81],[444,78,444,81],[445,78,445,81],[446,78,446,81],[368,78,368,81],[369,78,369,81],[370,78,370,81],[371,78,371,81],[372,78,372,81],[373,78,373,81],[374,78,374,81],[375,78,375,81],[376,78,376,81],[377,78,377,81],[378,78,378,81],[379,78,379,81],[380,78,380,81],[381,78,381,81],[382,78,382,81],[383,78,383,81],[384,78,384,81],[385,78,385,81],[386,78,386,81],[387,78,387,81],[388,78,388,81],[389,78,389,81],[390,78,390,81],[391,78,391,81],[392,78,392,81],[393,78,393,81],[394,78,394,81],[395,78,395,81],[396,78,396,81],[397,78,397,81],[398,78,398,81],[399,78,399,81],[400,78,400,81],[335,78,335,81],[336,78,336,81],[337,78,337,81],[338,78,338,81],[339,78,339,81],[340,78,340,81],[341,78,341,81],[342,78,342,81],[343,78,343,81],[344,78,344,81],[345,78,345,81],[346,78,346,81],[347,78,347,81],[348,78,348,81],[349,78,349,81],[350,78,350,81],[351,78,351,81],[352,78,352,81],[353,78,353,81],[354,78,354,81],[355,78,355,81],[356,78,356,81],[357,78,357,81],[358,78,358,81],[359,78,359,81],[360,78,360,81],[361,78,361,81],[362,78,362,81],[363,78,363,81],[364,78,364,81],[365,78,365,81],[366,78,366,81],[367,78,367,81],[302,78,302,81],[303,78,303,81],[304,78,304,81],[305,78,305,81],[306,78,306,81],[307,78,307,81],[308,78,308,81],[309,78,309,81],[310,78,310,81],[311,78,311,81],[312,78,312,81],[313,78,313,81],[314,78,314,81],[315,78,315,81],[316,78,316,81],[317,78,317,81],[318,78,318,81],[319,78,319,81],[320,78,320,81],[321,78,321,81],[322,78,322,81],[323,78,323,81],[324,78,324,81],[325,78,325,81],[326,78,326,81],[327,78,327,81],[328,78,328,81],[329,78,329,81],[330,78,330,81],[331,78,331,81],[332,78,332,81],[333,78,333,81],[334,78,334,81],[269,78,269,81],[270,78,270,81],[271,78,271,81],[272,78,272,81],[273,78,273,81],[274,78,274,81],[275,78,275,81],[276,78,276,81],[277,78,277,81],[278,78,278,81],[279,78,279,81],[280,78,280,81],[281,78,281,81],[282,78,282,81],[283,78,283,81],[284,78,284,81],[285,78,285,81],[286,78,286,81],[287,78,287,81],[288,78,288,81],[289,78,289,81],[290,78,290,81],[291,78,291,81],[292,78,292,81],[293,78,293,81],[294,78,294,81],[295,78,295,81],[296,78,296,81],[297,78,297,81],[298,78,298,81],[299,78,299,81],[300,78,300,81],[301,78,301,81],[236,78,236,81],[237,78,237,81],[238,78,238,81],[239,78,239,81],[240,78,240,81],[241,78,241,81],[242,78,242,81],[243,78,243,81],[244,78,244,81],[245,78,245,81],[246,78,246,81],[247,78,247,81],[248,78,248,81],[249,78,249,81],[250,78,250,81],[251,78,251,81],[252,78,252,81],[253,78,253,81],[254,78,254,81],[255,78,255,81],[256,78,256,81],[257,78,257,81],[258,78,258,81],[259,78,259,81],[260,78,260,81],[261,78,261,81],[262,78,262,81],[263,78,263,81],[264,78,264,81],[265,78,265,81],[266,78,266,81],[267,78,267,81],[268,78,268,81],[203,78,203,81],[204,78,204,81],[205,78,205,81],[206,78,206,81],[207,78,207,81],[208,78,208,81],[209,78,209,81],[210,78,210,81],[211,78,211,81],[212,78,212,81],[213,78,213,81],[214,78,214,81],[215,78,215,81],[216,78,216,81],[217,78,217,81],[218,78,218,81],[219,78,219,81],[220,78,220,81],[221,78,221,81],[222,78,222,81],[223,78,223,81],[224,78,224,81],[225,78,225,81],[226,78,226,81],[227,78,227,81],[228,78,228,81],[229,78,229,81],[230,78,230,81],[231,78,231,81],[232,78,232,81],[233,78,233,81],[234,78,234,81],[235,78,235,81],[170,78,170,81],[171,78,171,81],[172,78,172,81],[173,78,173,81],[174,78,174,81],[175,78,175,81],[176,78,176,81],[177,78,177,81],[178,78,178,81],[179,78,179,81],[180,78,180,81],[181,78,181,81],[182,78,182,81],[183,78,183,81],[184,78,184,81],[185,78,185,81],[186,78,186,81],[187,78,187,81],[188,78,188,81],[189,78,189,81],[190,78,190,81],[191,78,191,81],[192,78,192,81],[193,78,193,81],[194,78,194,81],[195,78,195,81],[196,78,196,81],[197,78,197,81],[198,78,198,81],[199,78,199,81],[200,78,200,81],[201,78,201,81],[202,78,202,81],[137,78,137,81],[138,78,138,81],[139,78,139,81],[140,78,140,81],[141,78,141,81],[142,78,142,81],[143,78,143,81],[144,78,144,81],[145,78,145,81],[146,78,146,81],[147,78,147,81],[148,78,148,81],[149,78,149,81],[150,78,150,81],[151,78,151,81],[152,78,152,81],[153,78,153,81],[154,78,154,81],[155,78,155,81],[156,78,156,81],[157,78,157,81],[158,78,158,81],[159,78,159,81],[160,78,160,81],[161,78,161,81],[162,78,162,81],[163,78,163,81],[164,78,164,81],[165,78,165,81],[166,78,166,81],[167,78,167,81],[168,78,168,81],[169,78,169,81],[104,78,104,81],[105,78,105,81],[106,78,106,81],[107,78,107,81],[108,78,108,81],[109,78,109,81],[110,78,110,81],[111,78,111,81],[112,78,112,81],[113,78,113,81],[114,78,114,81],[115,78,115,81],[116,78,116,81],[117,78,117,81],[118,78,118,81],[119,78,119,81],[120,78,120,81],[121,78,121,81],[122,78,122,81],[123,78,123,81],[124,78,124,81],[125,78,125,81],[126,78,126,81],[127,78,127,81],[128,78,128,81],[129,78,129,81],[130,78,130,81],[131,78,131,81],[132,78,132,81],[133,78,133,81],[134,78,134,81],[135,78,135,81],[136,78,136,81],[71,78,71,81],[72,78,72,81],[73,78,73,81],[74,78,74,81],[75,78,75,81],[76,78,76,81],[77,78,77,81],[78,78,78,81],[79,78,79,81],[80,78,80,81],[81,78,81,81],[82,78,82,81],[83,78,83,81],[84,78,84,81],[85,78,85,81],[86,78,86,81],[87,78,87,81],[88,78,88,81],[89,78,89,81],[90,78,90,81],[91,78,91,81],[92,78,92,81],[93,78,93,81],[94,78,94,81],[95,78,95,81],[96,78,96,81],[97,78,97,81],[98,78,98,81],[99,78,99,81],[100,78,100,81],[101,78,101,81],[102,78,102,81],[103,78,103,81],[38,78,38,81],[39,78,39,81],[40,78,40,81],[41,78,41,81],[42,78,42,81],[43,78,43,81],[44,78,44,81],[45,78,45,81],[46,78,46,81],[47,78,47,81],[48,78,48,81],[49,78,49,81],[50,78,50,81],[51,78,51,81],[52,78,52,81],[53,78,53,81],[54,78,54,81],[55,78,55,81],[56,78,56,81],[57,78,57,81],[58,78,58,81],[59,78,59,81],[60,78,60,81],[61,78,61,81],[62,78,62,81],[63,78,63,81],[64,78,64,81],[65,78,65,81],[66,78,66,81],[67,78,67,81],[68,78,68,81],[69,78,69,81],[70,78,70,81],[504,74,504,77],[505,74,505,77],[506,74,506,77],[507,74,507,77],[508,74,508,77],[509,74,509,77],[510,74,510,77],[511,74,511,77],[1,121,30,123],[487,74,487,77],[488,74,488,77],[489,74,489,77],[490,74,490,77],[491,74,491,77],[492,74,492,77],[493,74,493,77],[494,74,494,77],[495,74,495,77],[496,74,496,77],[497,74,497,77],[498,74,498,77],[499,74,499,77],[500,74,500,77],[501,74,501,77],[502,74,502,77],[503,74,503,77],[470,74,470,77],[471,74,471,77],[472,74,472,77],[473,74,473,77],[474,74,474,77],[475,74,475,77],[476,74,476,77],[477,74,477,77],[478,74,478,77],[479,74,479,77],[480,74,480,77],[481,74,481,77],[482,74,482,77],[483,74,483,77],[484,74,484,77],[485,74,485,77],[486,74,486,77],[453,74,453,77],[454,74,454,77],[455,74,455,77],[456,74,456,77],[457,74,457,77],[458,74,458,77],[459,74,459,77],[460,74,460,77],[461,74,461,77],[462,74,462,77],[463,74,463,77],[464,74,464,77],[465,74,465,77],[466,74,466,77],[467,74,467,77],[468,74,468,77],[469,74,469,77],[436,74,436,77],[437,74,437,77],[18,78,18,81],[19,78,19,81],[438,74,438,77],[439,74,439,77],[440,74,440,77],[441,74,441,77],[442,74,442,77],[443,74,443,77],[444,74,444,77],[445,74,445,77],[446,74,446,77],[447,74,447,77],[448,74,448,77],[449,74,449,77],[450,74,450,77],[451,74,451,77],[452,74,452,77],[419,74,419,77],[420,74,420,77],[421,74,421,77],[422,74,422,77],[423,74,423,77],[424,74,424,77],[425,74,425,77],[426,74,426,77],[427,74,427,77],[428,74,428,77],[429,74,429,77],[430,74,430,77],[431,74,431,77],[432,74,432,77],[433,74,433,77],[434,74,434,77],[435,74,435,77],[402,74,402,77],[403,74,403,77],[404,74,404,77],[405,74,405,77],[406,74,406,77],[407,74,407,77],[408,74,408,77],[409,74,409,77],[410,74,410,77],[411,74,411,77],[412,74,412,77],[413,74,413,77],[414,74,414,77],[415,74,415,77],[416,74,416,77],[417,74,417,77],[418,74,418,77],[385,74,385,77],[386,74,386,77],[387,74,387,77],[388,74,388,77],[389,74,389,77],[390,74,390,77],[391,74,391,77],[392,74,392,77],[393,74,393,77],[394,74,394,77],[395,74,395,77],[396,74,396,77],[397,74,397,77],[398,74,398,77],[399,74,399,77],[400,74,400,77],[401,74,401,77],[368,74,368,77],[369,74,369,77],[370,74,370,77],[371,74,371,77],[372,74,372,77],[373,74,373,77],[374,74,374,77],[375,74,375,77],[376,74,376,77],[377,74,377,77],[378,74,378,77],[379,74,379,77],[380,74,380,77],[381,74,381,77],[382,74,382,77],[383,74,383,77],[384,74,384,77],[351,74,351,77],[352,74,352,77],[353,74,353,77],[354,74,354,77],[355,74,355,77],[356,74,356,77],[357,74,357,77],[358,74,358,77],[359,74,359,77],[360,74,360,77],[361,74,361,77],[362,74,362,77],[363,74,363,77],[364,74,364,77],[365,74,365,77],[366,74,366,77],[367,74,367,77],[334,74,334,77],[335,74,335,77],[336,74,336,77],[337,74,337,77],[338,74,338,77],[339,74,339,77],[340,74,340,77],[341,74,341,77],[342,74,342,77],[343,74,343,77],[344,74,344,77],[345,74,345,77],[346,74,346,77],[347,74,347,77],[348,74,348,77],[349,74,349,77],[350,74,350,77],[317,74,317,77],[318,74,318,77],[319,74,319,77],[320,74,320,77],[321,74,321,77],[322,74,322,77],[323,74,323,77],[324,74,324,77],[325,74,325,77],[326,74,326,77],[327,74,327,77],[328,74,328,77],[329,74,329,77],[330,74,330,77],[331,74,331,77],[332,74,332,77],[333,74,333,77],[300,74,300,77],[301,74,301,77],[302,74,302,77],[303,74,303,77],[304,74,304,77],[305,74,305,77],[306,74,306,77],[307,74,307,77],[308,74,308,77],[309,74,309,77],[310,74,310,77],[311,74,311,77],[312,74,312,77],[313,74,313,77],[314,74,314,77],[315,74,315,77],[316,74,316,77],[283,74,283,77],[284,74,284,77],[285,74,285,77],[286,74,286,77],[287,74,287,77],[288,74,288,77],[289,74,289,77],[290,74,290,77],[291,74,291,77],[292,74,292,77],[293,74,293,77],[294,74,294,77],[295,74,295,77],[296,74,296,77],[297,74,297,77],[298,74,298,77],[299,74,299,77],[266,74,266,77],[267,74,267,77],[268,74,268,77],[269,74,269,77],[270,74,270,77],[271,74,271,77],[272,74,272,77],[273,74,273,77],[274,74,274,77],[275,74,275,77],[276,74,276,77],[277,74,277,77],[278,74,278,77],[279,74,279,77],[280,74,280,77],[281,74,281,77],[282,74,282,77],[249,74,249,77],[250,74,250,77],[251,74,251,77],[252,74,252,77],[253,74,253,77],[254,74,254,77],[255,74,255,77],[256,74,256,77],[257,74,257,77],[258,74,258,77],[259,74,259,77],[260,74,260,77],[261,74,261,77],[262,74,262,77],[263,74,263,77],[264,74,264,77],[265,74,265,77],[232,74,232,77],[233,74,233,77],[234,74,234,77],[235,74,235,77],[236,74,236,77],[237,74,237,77],[238,74,238,77],[239,74,239,77],[240,74,240,77],[241,74,241,77],[242,74,242,77],[243,74,243,77],[244,74,244,77],[245,74,245,77],[246,74,246,77],[247,74,247,77],[248,74,248,77],[215,74,215,77],[216,74,216,77],[217,74,217,77],[218,74,218,77],[219,74,219,77],[220,74,220,77],[221,74,221,77],[222,74,222,77],[223,74,223,77],[224,74,224,77],[225,74,225,77],[226,74,226,77],[227,74,227,77],[228,74,228,77],[229,74,229,77],[230,74,230,77],[231,74,231,77],[198,74,198,77],[199,74,199,77],[200,74,200,77],[201,74,201,77],[202,74,202,77],[203,74,203,77],[204,74,204,77],[205,74,205,77],[206,74,206,77],[207,74,207,77],[208,74,208,77],[209,74,209,77],[210,74,210,77],[211,74,211,77],[212,74,212,77],[213,74,213,77],[214,74,214,77],[181,74,181,77],[182,74,182,77],[183,74,183,77],[184,74,184,77],[185,74,185,77],[186,74,186,77],[187,74,187,77],[188,74,188,77],[189,74,189,77],[190,74,190,77],[191,74,191,77],[192,74,192,77],[193,74,193,77],[194,74,194,77],[195,74,195,77],[196,74,196,77],[197,74,197,77],[164,74,164,77],[165,74,165,77],[166,74,166,77],[167,74,167,77],[168,74,168,77],[169,74,169,77],[170,74,170,77],[171,74,171,77],[172,74,172,77],[173,74,173,77],[174,74,174,77],[175,74,175,77],[176,74,176,77],[177,74,177,77],[178,74,178,77],[179,74,179,77],[180,74,180,77],[147,74,147,77],[148,74,148,77],[149,74,149,77],[150,74,150,77],[151,74,151,77],[152,74,152,77],[153,74,153,77],[154,74,154,77],[155,74,155,77],[156,74,156,77],[157,74,157,77],[158,74,158,77],[159,74,159,77],[160,74,160,77],[161,74,161,77],[162,74,162,77],[163,74,163,77],[130,74,130,77],[131,74,131,77],[132,74,132,77],[133,74,133,77],[134,74,134,77],[135,74,135,77],[136,74,136,77],[137,74,137,77],[138,74,138,77],[139,74,139,77],[140,74,140,77],[141,74,141,77],[142,74,142,77],[143,74,143,77],[144,74,144,77],[145,74,145,77],[146,74,146,77],[113,74,113,77],[114,74,114,77],[115,74,115,77],[116,74,116,77],[117,74,117,77],[118,74,118,77],[119,74,119,77],[120,74,120,77],[121,74,121,77],[122,74,122,77],[123,74,123,77],[124,74,124,77],[125,74,125,77],[126,74,126,77],[127,74,127,77],[128,74,128,77],[129,74,129,77],[96,74,96,77],[97,74,97,77],[98,74,98,77],[99,74,99,77],[100,74,100,77],[101,74,101,77],[102,74,102,77],[103,74,103,77],[104,74,104,77],[105,74,105,77],[106,74,106,77],[107,74,107,77],[108,74,108,77],[109,74,109,77],[110,74,110,77],[111,74,111,77],[112,74,112,77],[38,74,38,77],[39,74,39,77],[40,74,40,77],[41,74,41,77],[42,74,42,77],[43,74,43,77],[44,74,44,77],[79,74,79,77],[80,74,80,77],[81,74,81,77],[82,74,82,77],[83,74,83,77],[84,74,84,77],[85,74,85,77],[86,74,86,77],[87,74,87,77],[88,74,88,77],[89,74,89,77],[90,74,90,77],[91,74,91,77],[92,74,92,77],[93,74,93,77],[94,74,94,77],[95,74,95,77],[62,74,62,77],[63,74,63,77],[64,74,64,77],[65,74,65,77],[66,74,66,77],[67,74,67,77],[68,74,68,77],[69,74,69,77],[70,74,70,77],[71,74,71,77],[72,74,72,77],[73,74,73,77],[74,74,74,77],[75,74,75,77],[76,74,76,77],[77,74,77,77],[78,74,78,77],[399,121,421,123],[422,121,444,123],[445,121,467,123],[468,121,490,123],[491,121,511,123],[513,8,514,115],[31,121,53,123],[54,121,76,123],[77,121,99,123],[100,121,122,123],[123,121,145,123],[146,121,168,123],[169,121,191,123],[192,121,214,123],[215,121,237,123],[238,121,260,123],[261,121,283,123],[284,121,306,123],[307,121,329,123],[330,121,352,123],[353,121,375,123],[376,121,398,123],[505,82,505,86],[505,87,505,91],[495,82,495,86],[495,87,495,91],[496,82,496,86],[496,87,496,91],[506,82,506,86],[506,87,506,91],[507,82,507,86],[493,82,493,86],[493,87,493,91],[494,82,494,86],[494,87,494,91],[507,87,507,91],[508,82,508,86],[508,87,508,91],[509,82,509,86],[509,87,509,91],[510,82,510,86],[510,87,510,91],[511,82,511,86],[511,87,511,91],[497,82,497,86],[497,87,497,91],[498,82,498,86],[45,74,45,77],[46,74,46,77],[47,74,47,77],[48,74,48,77],[49,74,49,77],[50,74,50,77],[51,74,51,77],[52,74,52,77],[53,74,53,77],[54,74,54,77],[55,74,55,77],[56,74,56,77],[57,74,57,77],[58,74,58,77],[59,74,59,77],[60,74,60,77],[61,74,61,77],[498,87,498,91],[499,82,499,86]],"merged_total":10556,"flags":["merged_cut"]}
[null,null,null,null,null,null,null,null,"Only two pages are unhidden, if you need additional pages to input data, press button(s) on the right to unhide additional pages. Please, only unhide pages as needed."]
[null,null,null,null,null,null,null,null,"Jurisdiction Name:",null,null,null,null,null,null,null,null,null,null,null,{"$f":"IF('Public Facilities COMPLETION'!AB2>0,'Public Facilities COMPLETION'!AB2,\"\")","v":""},null,null,null,null,null,null,null,null,null,null,null,null,null,null,null,null,null,null,null,null,null,null,null,null,null,null,null,null,null,null,"Contract #",null,null,null,null,null,null,{"$f":"IF('Public Facilities COMPLETION'!BN2>0,'Public Facilities COMPLETION'!BN2,\"\")","v":""},null,null,null,null,null,null,null,null,null,null,null,null,null,null,null,null,null,null,null,null,null,null,null,null,null,null,null,null,null,null,null,null,null,null,null,null,null,null,null,null,null,null,null,null,null,null,null,null,null,null,null,null,null,null,null,null,null,null,null,null,null,null,"Page  1"]
[]
[]
[]
[null,null,null,null,null,null,null,null,"DIRECT BENEFIT DATA BY PERSON - Fill in ALL fields for every person added below (LMH)",null,null,null,null,null,null,null,null,null,null,null,null,null,null,null,null,null,null,null,null,null,null,null,null,null,null,null,null,null,null,null,null,null,null,null,null,null,null,null,null,null,null,null,null,null,null,null,null,null,null,null,null,null,null,{"$f":"IF(AND('Public Facilities SET UP'!N85=Validation!D10,'Public Facilities SET UP'!AK85=Validation!D95,'Public Facilities SET UP'!BJ85=Validation!F37),\"REQUIRED\",IF(AND('Public Facilities SET UP'!N85=Validation!D10,'Public Facilities SET UP'!AK85=Validation!D96,'Public Facilities SET UP'!BJ85=Validation!F37),\"REQUIRED\",IF(AND('Public Facilities SET UP'!N85=Validation!D10,'Public Facilities SET UP'!AK85=Validation!D97,'Public Facilities SET UP'!BJ85=Validation!F37),\"REQUIRED\",IF(AND('Public Facilities SET UP'!N85=Validation!D10,'Public Facilities SET UP'!AK85=Validation!D98,'Public Facilities SET UP'!BJ85=Validation!F37),\"REQUIRED\",IF(AND('Public Facilities SET UP'!N85=Validation!D10,'Public Facilities SET UP'!AK85=Validation!D100,'Public Facilities SET UP'!BJ85=Validation!F37),\"REQUIRED\",\"NOT REQUIRED\")))))","v":"NOT REQUIRED"}]
[]
[]
[]
[null,null,null,null,null,null,null,null,null,null,null,null,null,null,null,null,null,null,null,null,null,null,null,null,null,null,null,null,null,null,null,null,null,null,null,null,null,null,null,null,null,null,null,null,null,null,null,null,null,null,null,null,null,null,null,null,null,null,null,null,null,null,null,null,null,null,null,null,null,null,null,null,null,null,null,null,null,null,null,null,null,null,null,null,null,null,null,null,null,null,null,null,{"$f":"IF(AND('Public Facilities SET UP'!N85='Public Facilities SET UP'!CM81,'Public Facilities SET UP'!AK85='Public Facilities SET UP'!CM84),\"REQUIRED\",\"NOT REQUIRED\")","v":"NOT REQUIRED"}]
[null,null,null,null,null,null,null,null,{"$f":"IF(AND('Public Facilities SET UP'!N85=Validation!D10,'Public Facilities SET UP'!AK85=Validation!D95,'Public Facilities SET UP'!BJ85=Validation!F37),\"REQUIRED\",IF(AND('Public Facilities SET UP'!N85=Validation!D10,'Public Facilities SET UP'!AK85=Validation!D96,'Public Facilities SET UP'!BJ85=Validation!F37),\"REQUIRED\",IF(AND('Public Facilities SET UP'!N85=Validation!D10,'Public Facilities SET UP'!AK85=Validation!D97,'Public Facilities SET UP'!BJ85=Validation!F37),\"REQUIRED\",IF(AND('Public Facilities SET UP'!N85=Validation!D10,'Public Facilities SET UP'!AK85=Validation!D98,'Public Facilities SET UP'!BJ85=Validation!F37),\"REQUIRED\",IF(AND('Public Facilities SET UP'!N85=Validation!D10,'Public Facilities SET UP'!AK85=Validation!D100,'Public Facilities SET UP'!BJ85=Validation!F37),\"REQUIRED\",\"NOT REQUIRED\")))))","v":"NOT REQUIRED"},null,null,null,null,null,null,null,null,null,null,null,null,null,null,null,null,null,null,null,null,null,null,null,null,null,null,null,null,null,null,null,null,null,null,null,null,null,null,null,null,null,null,null,null,null,null,null,null,null,null,null,null,null,null,null,null,null,null,null,null,null,null,null,null,null,null,null,null,null,null,null,null,null,{"$f":"IF(AND('Public Facilities SET UP'!N85='Public Facilities SET UP'!CM81,'Public Facilities SET UP'!AK85='Public Facilities SET UP'!CM80),\"REQUIRED\",\"NOT REQUIRED\")","v":"NOT REQUIRED"},null,null,null,null,null,null,null,null,null,null,null,null,null,{"$f":"IF('Public Facilities SET UP'!N85='Public Facilities SET UP'!CM70,\"REQUIRED\",\"NOT REQUIRED\")","v":"NOT REQUIRED"},null,null,null,null,null,null,null,null,null,null,null,{"$f":"IF(AND('Public Facilities SET UP'!N85='Public Facilities SET UP'!CM70,'Public Facilities SET UP'!AK85='Public Facilities SET UP'!CM87),\"REQUIRED\",\"NOT REQUIRED\")","v":"NOT REQUIRED"}]
[null,null,null,null,null,null,null,null,"Beneficiary Name, code, or Home Address.",null,null,null,null,null,null,null,null,null,"Home Address in Service Area",null,null,null,null,null,"Beneficiary Type",null,null,null,null,null,"Total Household Size",null,null,null,"Annual Gross Income for HH - All",null,null,null,null,null,"% of Area Median Income",null,null,null,null,null,null,null,null,"Access to a Service or Benefit",null,null,null,null,null,"Hispanic",null,null,null,"Race / Ethnicity",null,null,null,null,null,null,null,null,null,null,"Veteran",null,null,null,"Is beneficiary disable?",null,null,null,"Female-Headed Houshold?",null,null,null,"Homeless Person given overnight shelter?",null,null,null,null,"Bed created for overnight shelter?",null,null,null,null,"Person placed in a job?",null,null,null,"First Time Homebuyer?",null,null,null,"Receiving Housing Counseling?",null,null,null,"Down Payment Assistance?",null,null,null,"Short-term Rental Assistance?",null,null,null,"Previously Homeless?",null,null,null," Chronically homeless?"]
[null,null,null,null,null,null,null,1,null,null,null,null,null,null,null,null,null,null,"Select Option",null,null,null,null,null,"Select Option",null,null,null,null,null,null,null,null,null,null,null,null,null,null,null,"Select Option",null,null,null,null,null,null,null,null,"Select Option",null,null,null,null,null,"Select Option",null,null,null,"Select Option",null,null,null,null,null,null,null,null,null,null,"Select Option",null,null,null,"Select Option",null,null,null,"Select Option",null,null,null,"Select Option",null,null,null,null,"Select Option",null,null,null,null,"Select Option",null,null,null,"Select Option",null,null,null,"Select Option",null,null,null,"Select Option",null,null,null,"Select Option",null,null,null,"Select Option",null,null,null,"Select Option"]
[null,null,null,null,null,null,null,2]
[null,null,null,null,null,null,null,3]
[null,null,null,null,null,null,null,4]
[null,null,null,null,null,null,null,5]
[null,null,null,null,null,null,null,6]
[null,null,null,null,null,null,null,7]
[null,null,null,null,null,null,null,8]
[null,null,null,null,null,null,null,9]
[null,null,null,null,null,null,null,10]
[null,null,null,null,null,null,null,11]
[null,null,null,null,null,null,null,12]
[null,null,null,null,null,null,null,13]
[null,null,null,null,null,null,null,14]
[null,null,null,null,null,null,null,15]
[null,null,null,null,null,null,null,16]
[null,null,null,null,null,null,null,17]
[null,null,null,null,null,null,null,18]
[null,null,null,null,null,null,null,19]
[null,null,null,null,null,null,null,20,null,null,null,null,null,null,null,null,null,null,null,null,null,null,null,null,null,null,null,null,null,null,null,null,null,null,null,null,null,null,null,null,null,null,null,null,null,null,null,null,null,null,null,null,null,null,null,null,null,null,null,null,null,null,null,null,null,null,null,null,null,null,null,null,null,null,null,null,null,null,null,null,null,null,null,null,null,null,null,null,null,null,null,null,null,null,null,null,null,null,null,null,null,null,null,null,null,null,null,null,null,null,null,null,null,null,null,null,null,null,null,null,null,"Page  2"]
[null,null,null,null,null,null,null,21]
[null,null,null,null,null,null,null,22]
[null,null,null,null,null,null,null,23]
[null,null,null,null,null,null,null,24]
[null,null,null,null,null,null,null,25]
[null,null,null,null,null,null,null,26]
[null,null,null,null,null,null,null,27]
[null,null,null,null,null,null,null,28]
[null,null,null,null,null,null,null,29]
[null,null,null,null,null,null,null,30]
[null,null,null,null,null,null,null,31]
[null,null,null,null,null,null,null,32]
[null,null,null,null,null,null,null,33]
[null,null,null,null,null,null,null,34]
[null,null,null,null,null,null,null,35]
[null,null,null,null,null,null,null,36]
[null,null,null,null,null,null,null,37]
[null,null,null,null,null,null,null,38]
[null,null,null,null,null,null,null,39]
[null,null,null,null,null,null,null,40]
[null,null,null,null,null,null,null,41]
[null,null,null,null,null,null,null,42]
[null,null,null,null,null,null,null,43,null,null,null,null,null,null,null,null,null,null,null,null,null,null,null,null,null,null,null,null,null,null,null,null,null,null,null,null,null,null,null,null,null,null,null,null,null,null,null,null,null,null,null,null,null,null,null,null,null,null,null,null,null,null,null,null,null,null,null,null,null,null,null,null,null,null,null,null,null,null,null,null,null,null,null,null,null,null,null,null,null,null,null,null,null,null,null,null,null,null,null,null,null,null,null,null,null,null,null,null,null,null,null,null,null,null,null,null,null,null,null,null,null,"Page  3"]
[null,null,null,null,null,null,null,44]
[null,null,null,null,null,null,null,45]
[null,null,null,null,null,null,null,46]
[null,null,null,null,null,null,null,47]
[null,null,null,null,null,null,null,48]
[null,null,null,null,null,null,null,49]
[null,null,null,null,null,null,null,50]
[null,null,null,null,null,null,null,51]
[null,null,null,null,null,null,null,52]
[null,null,null,null,null,null,null,53]
[null,null,null,null,null,null,null,54]
[null,null,null,null,null,null,null,55]
[null,null,null,null,null,null,null,56]
[null,null,null,null,null,null,null,57]
[null,null,null,null,null,null,null,58]
[null,null,null,null,null,null,null,59]
[null,null,null,null,null,null,null,60]
[null,null,null,null,null,null,null,61]
[null,null,null,null,null,null,null,62]
[null,null,null,null,null,null,null,63]
[null,null,null,null,null,null,null,64]
[null,null,null,null,null,null,null,65]
[null,null,null,null,null,null,null,66,null,null,null,null,null,null,null,null,null,null,null,null,null,null,null,null,null,null,null,null,null,null,null,null,null,null,null,null,null,null,null,null,null,null,null,null,null,null,null,null,null,null,null,null,null,null,null,null,null,null,null,null,null,null,null,null,null,null,null,null,null,null,null,null,null,null,null,null,null,null,null,null,null,null,null,null,null,null,null,null,null,null,null,null,null,null,null,null,null,null,null,null,null,null,null,null,null,null,null,null,null,null,null,null,null,null,null,null,null,null,null,null,null,"Page  4"]
[null,null,null,null,null,null,null,67]
[null,null,null,null,null,null,null,68]
[null,null,null,null,null,null,null,69]
[null,null,null,null,null,null,null,70]
[null,null,null,null,null,null,null,71]
[null,null,null,null,null,null,null,72]
[null,null,null,null,null,null,null,73]
[null,null,null,null,null,null,null,74]
[null,null,null,null,null,null,null,75]
[null,null,null,null,null,null,null,76]
[null,null,null,null,null,null,null,77]
[null,null,null,null,null,null,null,78]
[null,null,null,null,null,null,null,79]
[null,null,null,null,null,null,null,80]
[null,null,null,null,null,null,null,81]
[null,null,null,null,null,null,null,82]
[null,null,null,null,null,null,null,83]
[null,null,null,null,null,null,null,84]
[null,null,null,null,null,null,null,85]
[null,null,null,null,null,null,null,86]
[null,null,null,null,null,null,null,87]
[null,null,null,null,null,null,null,88]
[null,null,null,null,null,null,null,89,null,null,null,null,null,null,null,null,null,null,null,null,null,null,null,null,null,null,null,null,null,null,null,null,null,null,null,null,null,null,null,null,null,null,null,null,null,null,null,null,null,null,null,null,null,null,null,null,null,null,null,null,null,null,null,null,null,null,null,null,null,null,null,null,null,null,null,null,null,null,null,null,null,null,null,null,null,null,null,null,null,null,null,null,null,null,null,null,null,null,null,null,null,null,null,null,null,null,null,null,null,null,null,null,null,null,null,null,null,null,null,null,null,"Page  5"]
[null,null,null,null,null,null,null,90]
[null,null,null,null,null,null,null,91]
[null,null,null,null,null,null,null,92]
[null,null,null,null,null,null,null,93]
[null,null,null,null,null,null,null,94]
[null,null,null,null,null,null,null,95]
[null,null,null,null,null,null,null,96]
[null,null,null,null,null,null,null,97]
[null,null,null,null,null,null,null,98]
[null,null,null,null,null,null,null,99]
[null,null,null,null,null,null,null,100]
[null,null,null,null,null,null,null,101]
[null,null,null,null,null,null,null,102]
[null,null,null,null,null,null,null,103]
[null,null,null,null,null,null,null,104]
[null,null,null,null,null,null,null,105]
[null,null,null,null,null,null,null,106]
[null,null,null,null,null,null,null,107]
[null,null,null,null,null,null,null,108]
[null,null,null,null,null,null,null,109]
[null,null,null,null,null,null,null,110]
[null,null,null,null,null,null,null,111]
[null,null,null,null,null,null,null,112,null,null,null,null,null,null,null,null,null,null,null,null,null,null,null,null,null,null,null,null,null,null,null,null,null,null,null,null,null,null,null,null,null,null,null,null,null,null,null,null,null,null,null,null,null,null,null,null,null,null,null,null,null,null,null,null,null,null,null,null,null,null,null,null,null,null,null,null,null,null,null,null,null,null,null,null,null,null,null,null,null,null,null,null,null,null,null,null,null,null,null,null,null,null,null,null,null,null,null,null,null,null,null,null,null,null,null,null,null,null,null,null,null,"Page  6"]
[null,null,null,null,null,null,null,113]
[null,null,null,null,null,null,null,114]
[null,null,null,null,null,null,null,115]
[null,null,null,null,null,null,null,116]
[null,null,null,null,null,null,null,117]
[null,null,null,null,null,null,null,118]
[null,null,null,null,null,null,null,119]
[null,null,null,null,null,null,null,120]
[null,null,null,null,null,null,null,121]
[null,null,null,null,null,null,null,122]
[null,null,null,null,null,null,null,123]
[null,null,null,null,null,null,null,124]
[null,null,null,null,null,null,null,125]
[null,null,null,null,null,null,null,126]
[null,null,null,null,null,null,null,127]
[null,null,null,null,null,null,null,128]
[null,null,null,null,null,null,null,129]
[null,null,null,null,null,null,null,130]
[null,null,null,null,null,null,null,131]
[null,null,null,null,null,null,null,132]
[null,null,null,null,null,null,null,133]
[null,null,null,null,null,null,null,134]
[null,null,null,null,null,null,null,135,null,null,null,null,null,null,null,null,null,null,null,null,null,null,null,null,null,null,null,null,null,null,null,null,null,null,null,null,null,null,null,null,null,null,null,null,null,null,null,null,null,null,null,null,null,null,null,null,null,null,null,null,null,null,null,null,null,null,null,null,null,null,null,null,null,null,null,null,null,null,null,null,null,null,null,null,null,null,null,null,null,null,null,null,null,null,null,null,null,null,null,null,null,null,null,null,null,null,null,null,null,null,null,null,null,null,null,null,null,null,null,null,null,"Page  7"]
[null,null,null,null,null,null,null,136]
[null,null,null,null,null,null,null,137]
[null,null,null,null,null,null,null,138]
[null,null,null,null,null,null,null,139]
[null,null,null,null,null,null,null,140]
[null,null,null,null,null,null,null,141]
[null,null,null,null,null,null,null,142]
[null,null,null,null,null,null,null,143]
[null,null,null,null,null,null,null,144]
[null,null,null,null,null,null,null,145]
[null,null,null,null,null,null,null,146]
[null,null,null,null,null,null,null,147]
[null,null,null,null,null,null,null,148]
[null,null,null,null,null,null,null,149]
[null,null,null,null,null,null,null,150]
[null,null,null,null,null,null,null,151]
[null,null,null,null,null,null,null,152]
[null,null,null,null,null,null,null,153]
[null,null,null,null,null,null,null,154]
[null,null,null,null,null,null,null,155]
[null,null,null,null,null,null,null,156]
[null,null,null,null,null,null,null,157]
[null,null,null,null,null,null,null,158,null,null,null,null,null,null,null,null,null,null,null,null,null,null,null,null,null,null,null,null,null,null,null,null,null,null,null,null,null,null,null,null,null,null,null,null,null,null,null,null,null,null,null,null,null,null,null,null,null,null,null,null,null,null,null,null,null,null,null,null,null,null,null,null,null,null,null,null,null,null,null,null,null,null,null,null,null,null,null,null,null,null,null,null,null,null,null,null,null,null,null,null,null,null,null,null,null,null,null,null,null,null,null,null,null,null,null,null,null,null,null,null,null,"Page  8"]
[null,null,null,null,null,null,null,159]
[null,null,null,null,null,null,null,160]
[null,null,null,null,null,null,null,161]
[null,null,null,null,null,null,null,162]
[null,null,null,null,null,null,null,163]
[null,null,null,null,null,null,null,164]
[null,null,null,null,null,null,null,165]
[null,null,null,null,null,null,null,166]
[null,null,null,null,null,null,null,167]
[null,null,null,null,null,null,null,168]
[null,null,null,null,null,null,null,169]
[null,null,null,null,null,null,null,170]
[null,null,null,null,null,null,null,171]
[null,null,null,null,null,null,null,172]
[null,null,null,null,null,null,null,173]
[null,null,null,null,null,null,null,174]
[null,null,null,null,null,null,null,175]
[null,null,null,null,null,null,null,176]
[null,null,null,null,null,null,null,177]
[null,null,null,null,null,null,null,178]
[null,null,null,null,null,null,null,179]
[null,null,null,null,null,null,null,180]
[null,null,null,null,null,null,null,181,null,null,null,null,null,null,null,null,null,null,null,null,null,null,null,null,null,null,null,null,null,null,null,null,null,null,null,null,null,null,null,null,null,null,null,null,null,null,null,null,null,null,null,null,null,null,null,null,null,null,null,null,null,null,null,null,null,null,null,null,null,null,null,null,null,null,null,null,null,null,null,null,null,null,null,null,null,null,null,null,null,null,null,null,null,null,null,null,null,null,null,null,null,null,null,null,null,null,null,null,null,null,null,null,null,null,null,null,null,null,null,null,null,"Page  9"]
[null,null,null,null,null,null,null,182]
[null,null,null,null,null,null,null,183]
[null,null,null,null,null,null,null,184]
[null,null,null,null,null,null,null,185]
[null,null,null,null,null,null,null,186]
[null,null,null,null,null,null,null,187]
[null,null,null,null,null,null,null,188]
[null,null,null,null,null,null,null,189]
[null,null,null,null,null,null,null,190]
[null,null,null,null,null,null,null,191]
[null,null,null,null,null,null,null,192]
[null,null,null,null,null,null,null,193]
[null,null,null,null,null,null,null,194]
[null,null,null,null,null,null,null,195]
[null,null,null,null,null,null,null,196]
[null,null,null,null,null,null,null,197]
[null,null,null,null,null,null,null,198]
[null,null,null,null,null,null,null,199]
[null,null,null,null,null,null,null,200]
[null,null,null,null,null,null,null,201]
[null,null,null,null,null,null,null,202]
[null,null,null,null,null,null,null,203]
[null,null,null,null,null,null,null,204,null,null,null,null,null,null,null,null,null,null,null,null,null,null,null,null,null,null,null,null,null,null,null,null,null,null,null,null,null,null,null,null,null,null,null,null,null,null,null,null,null,null,null,null,null,null,null,null,null,null,null,null,null,null,null,null,null,null,null,null,null,null,null,null,null,null,null,null,null,null,null,null,null,null,null,null,null,null,null,null,null,null,null,null,null,null,null,null,null,null,null,null,null,null,null,null,null,null,null,null,null,null,null,null,null,null,null,null,null,null,null,null,null,"Page  10"]
[null,null,null,null,null,null,null,205]
[null,null,null,null,null,null,null,206]
[null,null,null,null,null,null,null,207]
[null,null,null,null,null,null,null,208]
[null,null,null,null,null,null,null,209]
[null,null,null,null,null,null,null,210]
[null,null,null,null,null,null,null,211]
[null,null,null,null,null,null,null,212]
[null,null,null,null,null,null,null,213]
[null,null,null,null,null,null,null,214]
[null,null,null,null,null,null,null,215]
[null,null,null,null,null,null,null,216]
[null,null,null,null,null,null,null,217]
[null,null,null,null,null,null,null,218]
[null,null,null,null,null,null,null,219]
[null,null,null,null,null,null,null,220]
[null,null,null,null,null,null,null,221]
[null,null,null,null,null,null,null,222]
[null,null,null,null,null,null,null,223]
[null,null,null,null,null,null,null,224]
[null,null,null,null,null,null,null,225]
[null,null,null,null,null,null,null,226]
[null,null,null,null,null,null,null,227,null,null,null,null,null,null,null,null,null,null,null,null,null,null,null,null,null,null,null,null,null,null,null,null,null,null,null,null,null,null,null,null,null,null,null,null,null,null,null,null,null,null,null,null,null,null,null,null,null,null,null,null,null,null,null,null,null,null,null,null,null,null,null,null,null,null,null,null,null,null,null,null,null,null,null,null,null,null,null,null,null,null,null,null,null,null,null,null,null,null,null,null,null,null,null,null,null,null,null,null,null,null,null,null,null,null,null,null,null,null,null,null,null,"Page  11"]
[null,null,null,null,null,null,null,228]
[null,null,null,null,null,null,null,229]
[null,null,null,null,null,null,null,230]
[null,null,null,null,null,null,null,231]
[null,null,null,null,null,null,null,232]
[null,null,null,null,null,null,null,233]
[null,null,null,null,null,null,null,234]
[null,null,null,null,null,null,null,235]
[null,null,null,null,null,null,null,236]
[null,null,null,null,null,null,null,237]
[null,null,null,null,null,null,null,238]
[null,null,null,null,null,null,null,239]
[null,null,null,null,null,null,null,240]
[null,null,null,null,null,null,null,241]
[null,null,null,null,null,null,null,242]
[null,null,null,null,null,null,null,243]
[null,null,null,null,null,null,null,244]
[null,null,null,null,null,null,null,245]
[null,null,null,null,null,null,null,246]
[null,null,null,null,null,null,null,247]
[null,null,null,null,null,null,null,248]
[null,null,null,null,null,null,null,249]
[null,null,null,null,null,null,null,250,null,null,null,null,null,null,null,null,null,null,null,null,null,null,null,null,null,null,null,null,null,null,null,null,null,null,null,null,null,null,null,null,null,null,null,null,null,null,null,null,null,null,null,null,null,null,null,null,null,null,null,null,null,null,null,null,null,null,null,null,null,null,null,null,null,null,null,null,null,null,null,null,null,null,null,null,null,null,null,null,null,null,null,null,null,null,null,null,null,null,null,null,null,null,null,null,null,null,null,null,null,null,null,null,null,null,null,null,null,null,null,null,null,"Page  12"]
[null,null,null,null,null,null,null,251]
[null,null,null,null,null,null,null,252]
[null,null,null,null,null,null,null,253]
[null,null,null,null,null,null,null,254]
[null,null,null,null,null,null,null,255]
[null,null,null,null,null,null,null,256]
[null,null,null,null,null,null,null,257]
[null,null,null,null,null,null,null,258]
[null,null,null,null,null,null,null,259]
[null,null,null,null,null,null,null,260]
[null,null,null,null,null,null,null,261]
[null,null,null,null,null,null,null,262]
[null,null,null,null,null,null,null,263]
[null,null,null,null,null,null,null,264]
[null,null,null,null,null,null,null,265]
[null,null,null,null,null,null,null,266]
[null,null,null,null,null,null,null,267]
[null,null,null,null,null,null,null,268]
[null,null,null,null,null,null,null,269]
[null,null,null,null,null,null,null,270]
[null,null,null,null,null,null,null,271]
[null,null,null,null,null,null,null,272]
[null,null,null,null,null,null,null,273,null,null,null,null,null,null,null,null,null,null,null,null,null,null,null,null,null,null,null,null,null,null,null,null,null,null,null,null,null,null,null,null,null,null,null,null,null,null,null,null,null,null,null,null,null,null,null,null,null,null,null,null,null,null,null,null,null,null,null,null,null,null,null,null,null,null,null,null,null,null,null,null,null,null,null,null,null,null,null,null,null,null,null,null,null,null,null,null,null,null,null,null,null,null,null,null,null,null,null,null,null,null,null,null,null,null,null,null,null,null,null,null,null,"Page  13"]
[null,null,null,null,null,null,null,274]
[null,null,null,null,null,null,null,275]
[null,null,null,null,null,null,null,276]
[null,null,null,null,null,null,null,277]
[null,null,null,null,null,null,null,278]
[null,null,null,null,null,null,null,279]
[null,null,null,null,null,null,null,280]
[null,null,null,null,null,null,null,281]
[null,null,null,null,null,null,null,282]
[null,null,null,null,null,null,null,283]
[null,null,null,null,null,null,null,284]
[null,null,null,null,null,null,null,285]
[null,null,null,null,null,null,null,286]
[null,null,null,null,null,null,null,287]
[null,null,null,null,null,null,null,288]
[null,null,null,null,null,null,null,289]
[null,null,null,null,null,null,null,290]
[null,null,null,null,null,null,null,291]
[null,null,null,null,null,null,null,292]
[null,null,null,null,null,null,null,293]
[null,null,null,null,null,null,null,294]
[null,null,null,null,null,null,null,295]
[null,null,null,null,null,null,null,296,null,null,null,null,null,null,null,null,null,null,null,null,null,null,null,null,null,null,null,null,null,null,null,null,null,null,null,null,null,null,null,null,null,null,null,null,null,null,null,null,null,null,null,null,null,null,null,null,null,null,null,null,null,null,null,null,null,null,null,null,null,null,null,null,null,null,null,null,null,null,null,null,null,null,null,null,null,null,null,null,null,null,null,null,null,null,null,null,null,null,null,null,null,null,null,null,null,null,null,null,null,null,null,null,null,null,null,null,null,null,null,null,null,"Page  14"]
[null,null,null,null,null,null,null,297]
[null,null,null,null,null,null,null,298]
[null,null,null,null,null,null,null,299]
[null,null,null,null,null,null,null,300]
[null,null,null,null,null,null,null,301]
[null,null,null,null,null,null,null,302]
[null,null,null,null,null,null,null,303]
[null,null,null,null,null,null,null,304]
[null,null,null,null,null,null,null,305]
[null,null,null,null,null,null,null,306]
[null,null,null,null,null,null,null,307]
[null,null,null,null,null,null,null,308]
[null,null,null,null,null,null,null,309]
[null,null,null,null,null,null,null,310]
[null,null,null,null,null,null,null,311]
[null,null,null,null,null,null,null,312]
[null,null,null,null,null,null,null,313]
[null,null,null,null,null,null,null,314]
[null,null,null,null,null,null,null,315]
[null,null,null,null,null,null,null,316]
[null,null,null,null,null,null,null,317]
[null,null,null,null,null,null,null,318]
[null,null,null,null,null,null,null,319,null,null,null,null,null,null,null,null,null,null,null,null,null,null,null,null,null,null,null,null,null,null,null,null,null,null,null,null,null,null,null,null,null,null,null,null,null,null,null,null,null,null,null,null,null,null,null,null,null,null,null,null,null,null,null,null,null,null,null,null,null,null,null,null,null,null,null,null,null,null,null,null,null,null,null,null,null,null,null,null,null,null,null,null,null,null,null,null,null,null,null,null,null,null,null,null,null,null,null,null,null,null,null,null,null,null,null,null,null,null,null,null,null,"Page  15"]
[null,null,null,null,null,null,null,320]
[null,null,null,null,null,null,null,321]
[null,null,null,null,null,null,null,322]
[null,null,null,null,null,null,null,323]
[null,null,null,null,null,null,null,324]
[null,null,null,null,null,null,null,325]
[null,null,null,null,null,null,null,326]
[null,null,null,null,null,null,null,327]
[null,null,null,null,null,null,null,328]
[null,null,null,null,null,null,null,329]
[null,null,null,null,null,null,null,330]
[null,null,null,null,null,null,null,331]
[null,null,null,null,null,null,null,332]
[null,null,null,null,null,null,null,333]
[null,null,null,null,null,null,null,334]
[null,null,null,null,null,null,null,335]
[null,null,null,null,null,null,null,336]
[null,null,null,null,null,null,null,337]
[null,null,null,null,null,null,null,338]
[null,null,null,null,null,null,null,339]
[null,null,null,null,null,null,null,340]
[null,null,null,null,null,null,null,341]
[null,null,null,null,null,null,null,342,null,null,null,null,null,null,null,null,null,null,null,null,null,null,null,null,null,null,null,null,null,null,null,null,null,null,null,null,null,null,null,null,null,null,null,null,null,null,null,null,null,null,null,null,null,null,null,null,null,null,null,null,null,null,null,null,null,null,null,null,null,null,null,null,null,null,null,null,null,null,null,null,null,null,null,null,null,null,null,null,null,null,null,null,null,null,null,null,null,null,null,null,null,null,null,null,null,null,null,null,null,null,null,null,null,null,null,null,null,null,null,null,null,"Page  16"]
[null,null,null,null,null,null,null,343]
[null,null,null,null,null,null,null,344]
[null,null,null,null,null,null,null,345]
[null,null,null,null,null,null,null,346]
[null,null,null,null,null,null,null,347]
[null,null,null,null,null,null,null,348]
[null,null,null,null,null,null,null,349]
[null,null,null,null,null,null,null,350]
[null,null,null,null,null,null,null,351]
[null,null,null,null,null,null,null,352]
[null,null,null,null,null,null,null,353]
[null,null,null,null,null,null,null,354]
[null,null,null,null,null,null,null,355]
[null,null,null,null,null,null,null,356]
[null,null,null,null,null,null,null,357]
[null,null,null,null,null,null,null,358]
[null,null,null,null,null,null,null,359]
[null,null,null,null,null,null,null,360]
[null,null,null,null,null,null,null,361]
[null,null,null,null,null,null,null,362]
[null,null,null,null,null,null,null,363]
[null,null,null,null,null,null,null,364]
[null,null,null,null,null,null,null,365,null,null,null,null,null,null,null,null,null,null,null,null,null,null,null,null,null,null,null,null,null,null,null,null,null,null,null,null,null,null,null,null,null,null,null,null,null,null,null,null,null,null,null,null,null,null,null,null,null,null,null,null,null,null,null,null,null,null,null,null,null,null,null,null,null,null,null,null,null,null,null,null,null,null,null,null,null,null,null,null,null,null,null,null,null,null,null,null,null,null,null,null,null,null,null,null,null,null,null,null,null,null,null,null,null,null,null,null,null,null,null,null,null,"Page  17"]
[null,null,null,null,null,null,null,366]
[null,null,null,null,null,null,null,367]
[null,null,null,null,null,null,null,368]
[null,null,null,null,null,null,null,369]
[null,null,null,null,null,null,null,370]
[null,null,null,null,null,null,null,371]
[null,null,null,null,null,null,null,372]
[null,null,null,null,null,null,null,373]
[null,null,null,null,null,null,null,374]
[null,null,null,null,null,null,null,375]
[null,null,null,null,null,null,null,376]
[null,null,null,null,null,null,null,377]
[null,null,null,null,null,null,null,378]
[null,null,null,null,null,null,null,379]
[null,null,null,null,null,null,null,380]
[null,null,null,null,null,null,null,381]
[null,null,null,null,null,null,null,382]
[null,null,null,null,null,null,null,383]
[null,null,null,null,null,null,null,384]
[null,null,null,null,null,null,null,385]
[null,null,null,null,null,null,null,386]
[null,null,null,null,null,null,null,387]
[null,null,null,null,null,null,null,388,null,null,null,null,null,null,null,null,null,null,null,null,null,null,null,null,null,null,null,null,null,null,null,null,null,null,null,null,null,null,null,null,null,null,null,null,null,null,null,null,null,null,null,null,null,null,null,null,null,null,null,null,null,null,null,null,null,null,null,null,null,null,null,null,null,null,null,null,null,null,null,null,null,null,null,null,null,null,null,null,null,null,null,null,null,null,null,null,null,null,null,null,null,null,null,null,null,null,null,null,null,null,null,null,null,null,null,null,null,null,null,null,null,"Page  18"]
[null,null,null,null,null,null,null,389]
[null,null,null,null,null,null,null,390]
[null,null,null,null,null,null,null,391]
[null,null,null,null,null,null,null,392]
[null,null,null,null,null,null,null,393]
[null,null,null,null,null,null,null,394]
[null,null,null,null,null,null,null,395]
[null,null,null,null,null,null,null,396]
[null,null,null,null,null,null,null,397]
[null,null,null,null,null,null,null,398]
[null,null,null,null,null,null,null,399]
[null,null,null,null,null,null,null,400]
[null,null,null,null,null,null,null,401]
[null,null,null,null,null,null,null,402]
[null,null,null,null,null,null,null,403]
[null,null,null,null,null,null,null,404]
[null,null,null,null,null,null,null,405]
[null,null,null,null,null,null,null,406]
[null,null,null,null,null,null,null,407]
[null,null,null,null,null,null,null,408]
[null,null,null,null,null,null,null,409]
[null,null,null,null,null,null,null,410]
[null,null,null,null,null,null,null,411,null,null,null,null,null,null,null,null,null,null,null,null,null,null,null,null,null,null,null,null,null,null,null,null,null,null,null,null,null,null,null,null,null,null,null,null,null,null,null,null,null,null,null,null,null,null,null,null,null,null,null,null,null,null,null,null,null,null,null,null,null,null,null,null,null,null,null,null,null,null,null,null,null,null,null,null,null,null,null,null,null,null,null,null,null,null,null,null,null,null,null,null,null,null,null,null,null,null,null,null,null,null,null,null,null,null,null,null,null,null,null,null,null,"Page  19"]
[null,null,null,null,null,null,null,412]
[null,null,null,null,null,null,null,413]
[null,null,null,null,null,null,null,414]
[null,null,null,null,null,null,null,415]
[null,null,null,null,null,null,null,416]
[null,null,null,null,null,null,null,417]
[null,null,null,null,null,null,null,418]
[null,null,null,null,null,null,null,419]
[null,null,null,null,null,null,null,420]
[null,null,null,null,null,null,null,421]
[null,null,null,null,null,null,null,422]
[null,null,null,null,null,null,null,423]
[null,null,null,null,null,null,null,424]
[null,null,null,null,null,null,null,425]
[null,null,null,null,null,null,null,426]
[null,null,null,null,null,null,null,427]
[null,null,null,null,null,null,null,428]
[null,null,null,null,null,null,null,429]
[null,null,null,null,null,null,null,430]
[null,null,null,null,null,null,null,431]
[null,null,null,null,null,null,null,432]
[null,null,null,null,null,null,null,433]
[null,null,null,null,null,null,null,434,null,null,null,null,null,null,null,null,null,null,null,null,null,null,null,null,null,null,null,null,null,null,null,null,null,null,null,null,null,null,null,null,null,null,null,null,null,null,null,null,null,null,null,null,null,null,null,null,null,null,null,null,null,null,null,null,null,null,null,null,null,null,null,null,null,null,null,null,null,null,null,null,null,null,null,null,null,null,null,null,null,null,null,null,null,null,null,null,null,null,null,null,null,null,null,null,null,null,null,null,null,null,null,null,null,null,null,null,null,null,null,null,null,"Page  20"]
[null,null,null,null,null,null,null,435]
[null,null,null,null,null,null,null,436]
[null,null,null,null,null,null,null,437]
[null,null,null,null,null,null,null,438]
[null,null,null,null,null,null,null,439]
[null,null,null,null,null,null,null,440]
[null,null,null,null,null,null,null,441]
[null,null,null,null,null,null,null,442]
[null,null,null,null,null,null,null,443]
[null,null,null,null,null,null,null,444]
[null,null,null,null,null,null,null,445]
[null,null,null,null,null,null,null,446]
[null,null,null,null,null,null,null,447]
[null,null,null,null,null,null,null,448]
[null,null,null,null,null,null,null,449]
[null,null,null,null,null,null,null,450]
[null,null,null,null,null,null,null,451]
[null,null,null,null,null,null,null,452]
[null,null,null,null,null,null,null,453]
[null,null,null,null,null,null,null,454]
[null,null,null,null,null,null,null,455]
[null,null,null,null,null,null,null,456]
[null,null,null,null,null,null,null,457,null,null,null,null,null,null,null,null,null,null,null,null,null,null,null,null,null,null,null,null,null,null,null,null,null,null,null,null,null,null,null,null,null,null,null,null,null,null,null,null,null,null,null,null,null,null,null,null,null,null,null,null,null,null,null,null,null,null,null,null,null,null,null,null,null,null,null,null,null,null,null,null,null,null,null,null,null,null,null,null,null,null,null,null,null,null,null,null,null,null,null,null,null,null,null,null,null,null,null,null,null,null,null,null,null,null,null,null,null,null,null,null,null,"Page  21"]
[null,null,null,null,null,null,null,458]
[null,null,null,null,null,null,null,459]
[null,null,null,null,null,null,null,460]
[null,null,null,null,null,null,null,461]
[null,null,null,null,null,null,null,462]
[null,null,null,null,null,null,null,463]
[null,null,null,null,null,null,null,464]
[null,null,null,null,null,null,null,465]
[null,null,null,null,null,null,null,466]
[null,null,null,null,null,null,null,467]
[null,null,null,null,null,null,null,468]
[null,null,null,null,null,null,null,469]
[null,null,null,null,null,null,null,470]
[null,null,null,null,null,null,null,471]
[null,null,null,null,null,null,null,472]
[null,null,null,null,null,null,null,473]
[null,null,null,null,null,null,null,474]
[null,null,null,null,null,null,null,475]
[null,null,null,null,null,null,null,476]
[null,null,null,null,null,null,null,477]
[null,null,null,null,null,null,null,478]
[null,null,null,null,null,null,null,479]
[null,null,null,null,null,null,null,480,null,null,null,null,null,null,null,null,null,null,null,null,null,null,null,null,null,null,null,null,null,null,null,null,null,null,null,null,null,null,null,null,null,null,null,null,null,null,null,null,null,null,null,null,null,null,null,null,null,null,null,null,null,null,null,null,null,null,null,null,null,null,null,null,null,null,null,null,null,null,null,null,null,null,null,null,null,null,null,null,null,null,null,null,null,null,null,null,null,null,null,null,null,null,null,null,null,null,null,null,null,null,null,null,null,null,null,null,null,null,null,null,null,"Page  22"]
[null,null,null,null,null,null,null,481]
[null,null,null,null,null,null,null,482]
[null,null,null,null,null,null,null,483]
[null,null,null,null,null,null,null,484]
[null,null,null,null,null,null,null,485]
[null,null,null,null,null,null,null,486]
[null,null,null,null,null,null,null,487]
[null,null,null,null,null,null,null,488]
[null,null,null,null,null,null,null,489]
[null,null,null,null,null,null,null,490]
[null,null,null,null,null,null,null,491]
[null,null,null,null,null,null,null,492]
[null,null,null,null,null,null,null,493]
[null,null,null,null,null,null,null,494]
[null,null,null,null,null,null,null,495]
[null,null,null,null,null,null,null,496]
[null,null,null,null,null,null,null,497]
[null,null,null,null,null,null,null,498]
[null,null,null,null,null,null,null,499]
[null,null,null,null,null,null,null,500]
[]
[null,null,null,null,null,null,null,null,"END OF DOCUMENT"]

{"sheet":"Year 3","index":5,"n_rows":514,"n_cols":122,"rows_kept":514,"cut":false,"hidden":true,"merged":[[506,78,506,81],[507,78,507,81],[508,78,508,81],[509,78,509,81],[510,78,510,81],[511,78,511,81],[10,8,10,81],[473,78,473,81],[474,78,474,81],[475,78,475,81],[476,78,476,81],[477,78,477,81],[478,78,478,81],[479,78,479,81],[480,78,480,81],[481,78,481,81],[482,78,482,81],[483,78,483,81],[484,78,484,81],[485,78,485,81],[486,78,486,81],[487,78,487,81],[488,78,488,81],[489,78,489,81],[490,78,490,81],[491,78,491,81],[492,78,492,81],[493,78,493,81],[494,78,494,81],[495,78,495,81],[496,78,496,81],[497,78,497,81],[498,78,498,81],[499,78,499,81],[500,78,500,81],[501,78,501,81],[502,78,502,81],[503,78,503,81],[504,78,504,81],[505,78,505,81],[440,78,440,81],[441,78,441,81],[442,78,442,81],[443,78,443,81],[444,78,444,81],[445,78,445,81],[446,78,446,81],[447,78,447,81],[448,78,448,81],[449,78,449,81],[450,78,450,81],[451,78,451,81],[452,78,452,81],[453,78,453,81],[454,78,454,81],[455,78,455,81],[456,78,456,81],[457,78,457,81],[458,78,458,81],[459,78,459,81],[460,78,460,81],[461,78,461,81],[462,78,462,81],[464,78,464,81],[468,78,468,81],[469,78,469,81],[470,78,470,81],[471,78,471,81],[472,78,472,81],[407,78,407,81],[408,78,408,81],[409,78,409,81],[410,78,410,81],[411,78,411,81],[412,78,412,81],[413,78,413,81],[414,78,414,81],[415,78,415,81],[416,78,416,81],[417,78,417,81],[418,78,418,81],[419,78,419,81],[420,78,420,81],[421,78,421,81],[422,78,422,81],[423,78,423,81],[424,78,424,81],[425,78,425,81],[426,78,426,81],[427,78,427,81],[428,78,428,81],[429,78,429,81],[430,78,430,81],[431,78,431,81],[432,78,432,81],[433,78,433,81],[434,78,434,81],[435,78,435,81],[436,78,436,81],[437,78,437,81],[438,78,438,81],[439,78,439,81],[378,78,378,81],[379,78,379,81],[380,78,380,81],[381,78,381,81],[382,78,382,81],[383,78,383,81],[384,78,384,81],[385,78,385,81],[386,78,386,81],[387,78,387,81],[388,78,388,81],[389,78,389,81],[390,78,390,81],[391,78,391,81],[392,78,392,81],[393,78,393,81],[394,78,394,81],[395,78,395,81],[396,78,396,81],[397,78,397,81],[398,78,398,81],[399,78,399,81],[400,78,400,81],[401,78,401,81],[402,78,402,81],[403,78,403,81],[404,78,404,81],[405,78,405,81],[406,78,406,81],[463,78,463,81],[465,78,465,81],[466,78,466,81],[467,78,467,81],[345,78,345,81],[346,78,346,81],[347,78,347,81],[348,78,348,81],[349,78,349,81],[350,78,350,81],[351,78,351,81],[352,78,352,81],[353,78,353,81],[354,78,354,81],[355,78,355,81],[356,78,356,81],[357,78,357,81],[358,78,358,81],[359,78,359,81],[360,78,360,81],[361,78,361,81],[362,78,362,81],[363,78,363,81],[364,78,364,81],[365,78,365,81],[366,78,366,81],[367,78,367,81],[368,78,368,81],[369,78,369,81],[370,78,370,81],[371,78,371,81],[372,78,372,81],[373,78,373,81],[374,78,374,81],[375,78,375,81],[376,78,376,81],[377,78,377,81],[312,78,312,81],[313,78,313,81],[314,78,314,81],[315,78,315,81],[316,78,316,81],[317,78,317,81],[318,78,318,81],[319,78,319,81],[320,78,320,81],[321,78,321,81],[322,78,322,81],[323,78,323,81],[324,78,324,81],[325,78,325,81],[326,78,326,81],[327,78,327,81],[328,78,328,81],[329,78,329,81],[330,78,330,81],[331,78,331,81],[332,78,332,81],[333,78,333,81],[334,78,334,81],[335,78,335,81],[336,78,336,81],[337,78,337,81],[338,78,338,81],[339,78,339,81],[340,78,340,81],[341,78,341,81],[342,78,342,81],[343,78,343,81],[344,78,344,81],[279,78,279,81],[280,78,280,81],[281,78,281,81],[282,78,282,81],[283,78,283,81],[284,78,284,81],[285,78,285,81],[286,78,286,81],[287,78,287,81],[288,78,288,81],[289,78,289,81],[290,78,290,81],[291,78,291,81],[292,78,292,81],[293,78,293,81],[294,78,294,81],[295,78,295,81],[296,78,296,81],[297,78,297,81],[298,78,298,81],[299,78,299,81],[300,78,300,81],[301,78,301,81],[302,78,302,81],[303,78,303,81],[304,78,304,81],[305,78,305,81],[306,78,306,81],[307,78,307,81],[308,78,308,81],[309,78,309,81],[310,78,310,81],[311,78,311,81],[246,78,246,81],[247,78,247,81],[248,78,248,81],[249,78,249,81],[250,78,250,81],[251,78,251,81],[252,78,252,81],[253,78,253,81],[254,78,254,81],[255,78,255,81],[256,78,256,81],[257,78,257,81],[258,78,258,81],[259,78,259,81],[260,78,260,81],[261,78,261,81],[262,78,262,81],[263,78,263,81],[264,78,264,81],[265,78,265,81],[266,78,266,81],[267,78,267,81],[268,78,268,81],[269,78,269,81],[270,78,270,81],[271,78,271,81],[272,78,272,81],[273,78,273,81],[274,78,274,81],[275,78,275,81],[276,78,276,81],[277,78,277,81],[278,78,278,81],[213,78,213,81],[214,78,214,81],[215,78,215,81],[216,78,216,81],[217,78,217,81],[218,78,218,81],[219,78,219,81],[220,78,220,81],[221,78,221,81],[222,78,222,81],[223,78,223,81],[224,78,224,81],[225,78,225,81],[226,78,226,81],[227,78,227,81],[228,78,228,81],[229,78,229,81],[230,78,230,81],[231,78,231,81],[232,78,232,81],[233,78,233,81],[234,78,234,81],[235,78,235,81],[236,78,236,81],[237,78,237,81],[238,78,238,81],[239,78,239,81],[240,78,240,81],[241,78,241,81],[242,78,242,81],[243,78,243,81],[244,78,244,81],[245,78,245,81],[180,78,180,81],[181,78,181,81],[182,78,182,81],[183,78,183,81],[184,78,184,81],[185,78,185,81],[186,78,186,81],[187,78,187,81],[188,78,188,81],[189,78,189,81],[190,78,190,81],[191,78,191,81],[192,78,192,81],[193,78,193,81],[194,78,194,81],[195,78,195,81],[196,78,196,81],[197,78,197,81],[198,78,198,81],[199,78,199,81],[200,78,200,81],[201,78,201,81],[202,78,202,81],[203,78,203,81],[204,78,204,81],[205,78,205,81],[206,78,206,81],[207,78,207,81],[208,78,208,81],[209,78,209,81],[210,78,210,81],[211,78,211,81],[212,78,212,81],[147,78,147,81],[148,78,148,81],[149,78,149,81],[150,78,150,81],[151,78,151,81],[152,78,152,81],[153,78,153,81],[154,78,154,81],[155,78,155,81],[156,78,156,81],[157,78,157,81],[158,78,158,81],[159,78,159,81],[160,78,160,81],[161,78,161,81],[162,78,162,81],[163,78,163,81],[164,78,164,81],[165,78,165,81],[166,78,166,81],[167,78,167,81],[168,78,168,81],[169,78,169,81],[170,78,170,81],[171,78,171,81],[172,78,172,81],[173,78,173,81],[174,78,174,81],[175,78,175,81],[176,78,176,81],[177,78,177,81],[178,78,178,81],[179,78,179,81],[114,78,114,81],[115,78,115,81],[116,78,116,81],[117,78,117,81],[118,78,118,81],[119,78,119,81],[120,78,120,81],[121,78,121,81],[122,78,122,81],[123,78,123,81],[124,78,124,81],[125,78,125,81],[126,78,126,81],[127,78,127,81],[128,78,128,81],[129,78,129,81],[130,78,130,81],[131,78,131,81],[132,78,132,81],[133,78,133,81],[134,78,134,81],[135,78,135,81],[136,78,136,81],[137,78,137,81],[138,78,138,81],[139,78,139,81],[140,78,140,81],[141,78,141,81],[142,78,142,81],[143,78,143,81],[144,78,144,81],[145,78,145,81],[146,78,146,81],[81,78,81,81],[82,78,82,81],[83,78,83,81],[84,78,84,81],[85,78,85,81],[86,78,86,81],[87,78,87,81],[88,78,88,81],[89,78,89,81],[90,78,90,81],[91,78,91,81],[92,78,92,81],[93,78,93,81],[94,78,94,81],[95,78,95,81],[96,78,96,81],[97,78,97,81],[98,78,98,81],[99,78,99,81],[100,78,100,81],[101,78,101,81],[102,78,102,81],[103,78,103,81],[104,78,104,81],[105,78,105,81],[106,78,106,81],[107,78,107,81],[108,78,108,81],[109,78,109,81],[110,78,110,81],[111,78,111,81],[112,78,112,81],[113,78,113,81],[48,78,48,81],[49,78,49,81],[50,78,50,81],[51,78,51,81],[52,78,52,81],[53,78,53,81],[54,78,54,81],[55,78,55,81],[56,78,56,81],[57,78,57,81],[58,78,58,81],[59,78,59,81],[60,78,60,81],[61,78,61,81],[62,78,62,81],[63,78,63,81],[64,78,64,81],[65,78,65,81],[66,78,66,81],[67,78,67,81],[68,78,68,81],[69,78,69,81],[70,78,70,81],[71,78,71,81],[72,78,72,81],[73,78,73,81],[74,78,74,81],[75,78,75,81],[76,78,76,81],[77,78,77,81],[78,78,78,81],[79,78,79,81],[80,78,80,81],[15,78,15,81],[16,78,16,81],[17,78,17,81],[18,78,18,81],[19,78,19,81],[20,78,20,81],[21,78,21,81],[22,78,22,81],[23,78,23,81],[24,78,24,81],[25,78,25,81],[26,78,26,81],[27,78,27,81],[28,78,28,81],[29,78,29,81],[30,78,30,81],[31,78,31,81],[32,78,32,81],[33,78,33,81],[34,78,34,81],[35,78,35,81],[36,78,36,81],[37,78,37,81],[38,78,38,81],[39,78,39,81],[40,78,40,81],[41,78,41,81],[42,78,42,81],[43,78,43,81],[44,78,44,81],[45,78,45,81],[46,78,46,81],[47,78,47,81],[504,74,504,77],[505,74,505,77],[506,74,506,77],[507,74,507,77],[508,74,508,77],[509,74,509,77],[510,74,510,77],[511,74,511,77],[1,121,30,123],[487,74,487,77],[488,74,488,77],[489,74,489,77],[490,74,490,77],[491,74,491,77],[492,74,492,77],[493,74,493,77],[494,74,494,77],[495,74,495,77],[496,74,496,77],[497,74,497,77],[498,74,498,77],[499,74,499,77],[500,74,500,77],[501,74,501,77],[502,74,502,77],[503,74,503,77],[470,74,470,77],[471,74,471,77],[472,74,472,77],[473,74,473,77],[474,74,474,77],[475,74,475,77],[476,74,476,77],[477,74,477,77],[478,74,478,77],[479,74,479,77],[480,74,480,77],[481,74,481,77],[482,74,482,77],[483,74,483,77],[484,74,484,77],[485,74,485,77],[486,74,486,77],[453,74,453,77],[454,74,454,77],[455,74,455,77],[456,74,456,77],[457,74,457,77],[458,74,458,77],[459,74,459,77],[460,74,460,77],[461,74,461,77],[462,74,462,77],[463,74,463,77],[464,74,464,77],[465,74,465,77],[466,74,466,77],[467,74,467,77],[468,74,468,77],[469,74,469,77],[436,74,436,77],[437,74,437,77],[438,74,438,77],[11,78,11,81],[439,74,439,77],[440,74,440,77],[441,74,441,77],[442,74,442,77],[443,74,443,77],[444,74,444,77],[445,74,445,77],[446,74,446,77],[447,74,447,77],[448,74,448,77],[449,74,449,77],[450,74,450,77],[451,74,451,77],[452,74,452,77],[419,74,419,77],[420,74,420,77],[421,74,421,77],[422,74,422,77],[423,74,423,77],[424,74,424,77],[425,74,425,77],[426,74,426,77],[427,74,427,77],[428,74,428,77],[429,74,429,77],[430,74,430,77],[431,74,431,77],[432,74,432,77],[433,74,433,77],[434,74,434,77],[435,74,435,77],[402,74,402,77],[403,74,403,77],[404,74,404,77],[405,74,405,77],[406,74,406,77],[407,74,407,77],[408,74,408,77],[409,74,409,77],[410,74,410,77],[411,74,411,77],[412,74,412,77],[413,74,413,77],[414,74,414,77],[415,74,415,77],[416,74,416,77],[417,74,417,77],[418,74,418,77],[385,74,385,77],[386,74,386,77],[387,74,387,77],[388,74,388,77],[389,74,389,77],[390,74,390,77],[391,74,391,77],[392,74,392,77],[393,74,393,77],[394,74,394,77],[395,74,395,77],[396,74,396,77],[397,74,397,77],[398,74,398,77],[399,74,399,77],[400,74,400,77],[401,74,401,77],[368,74,368,77],[369,74,369,77],[370,74,370,77],[371,74,371,77],[372,74,372,77],[373,74,373,77],[374,74,374,77],[375,74,375,77],[376,74,376,77],[377,74,377,77],[378,74,378,77],[379,74,379,77],[380,74,380,77],[381,74,381,77],[382,74,382,77],[383,74,383,77],[384,74,384,77],[351,74,351,77],[352,74,352,77],[353,74,353,77],[354,74,354,77],[355,74,355,77],[356,74,356,77],[357,74,357,77],[358,74,358,77],[359,74,359,77],[360,74,360,77],[361,74,361,77],[362,74,362,77],[363,74,363,77],[364,74,364,77],[365,74,365,77],[366,74,366,77],[367,74,367,77],[334,74,334,77],[335,74,335,77],[336,74,336,77],[337,74,337,77],[338,74,338,77],[339,74,339,77],[340,74,340,77],[341,74,341,77],[342,74,342,77],[343,74,343,77],[344,74,344,77],[345,74,345,77],[346,74,346,77],[347,74,347,77],[348,74,348,77],[349,74,349,77],[350,74,350,77],[317,74,317,77],[318,74,318,77],[319,74,319,77],[320,74,320,77],[321,74,321,77],[322,74,322,77],[323,74,323,77],[324,74,324,77],[325,74,325,77],[326,74,326,77],[327,74,327,77],[328,74,328,77],[329,74,329,77],[330,74,330,77],[331,74,331,77],[332,74,332,77],[333,74,333,77],[300,74,300,77],[301,74,301,77],[302,74,302,77],[303,74,303,77],[304,74,304,77],[305,74,305,77],[306,74,306,77],[307,74,307,77],[308,74,308,77],[309,74,309,77],[310,74,310,77],[311,74,311,77],[312,74,312,77],[313,74,313,77],[314,74,314,77],[315,74,315,77],[316,74,316,77],[283,74,283,77],[284,74,284,77],[285,74,285,77],[286,74,286,77],[287,74,287,77],[288,74,288,77],[289,74,289,77],[290,74,290,77],[291,74,291,77],[292,74,292,77],[293,74,293,77],[294,74,294,77],[295,74,295,77],[296,74,296,77],[297,74,297,77],[298,74,298,77],[299,74,299,77],[266,74,266,77],[267,74,267,77],[268,74,268,77],[269,74,269,77],[270,74,270,77],[271,74,271,77],[272,74,272,77],[273,74,273,77],[274,74,274,77],[275,74,275,77],[276,74,276,77],[277,74,277,77],[278,74,278,77],[279,74,279,77],[280,74,280,77],[281,74,281,77],[282,74,282,77],[249,74,249,77],[250,74,250,77],[251,74,251,77],[252,74,252,77],[253,74,253,77],[254,74,254,77],[255,74,255,77],[256,74,256,77],[257,74,257,77],[258,74,258,77],[259,74,259,77],[260,74,260,77],[261,74,261,77],[262,74,262,77],[263,74,263,77],[264,74,264,77],[265,74,265,77],[232,74,232,77],[233,74,233,77],[234,74,234,77],[235,74,235,77],[236,74,236,77],[237,74,237,77],[238,74,238,77],[239,74,239,77],[240,74,240,77],[241,74,241,77],[242,74,242,77],[243,74,243,77],[244,74,244,77],[245,74,245,77],[246,74,246,77],[247,74,247,77],[248,74,248,77],[215,74,215,77],[216,74,216,77],[217,74,217,77],[218,74,218,77],[219,74,219,77],[220,74,220,77],[221,74,221,77],[222,74,222,77],[223,74,223,77],[224,74,224,77],[225,74,225,77],[226,74,226,77],[227,74,227,77],[228,74,228,77],[229,74,229,77],[230,74,230,77],[231,74,231,77],[198,74,198,77],[199,74,199,77],[200,74,200,77],[201,74,201,77],[202,74,202,77],[203,74,203,77],[204,74,204,77],[205,74,205,77],[206,74,206,77],[207,74,207,77],[208,74,208,77],[209,74,209,77],[210,74,210,77],[211,74,211,77],[212,74,212,77],[213,74,213,77],[214,74,214,77],[181,74,181,77],[182,74,182,77],[183,74,183,77],[184,74,184,77],[185,74,185,77],[186,74,186,77],[187,74,187,77],[188,74,188,77],[189,74,189,77],[190,74,190,77],[191,74,191,77],[192,74,192,77],[193,74,193,77],[194,74,194,77],[195,74,195,77],[196,74,196,77],[197,74,197,77],[164,74,164,77],[165,74,165,77],[166,74,166,77],[167,74,167,77],[168,74,168,77],[169,74,169,77],[170,74,170,77],[171,74,171,77],[172,74,172,77],[173,74,173,77],[174,74,174,77],[175,74,175,77],[176,74,176,77],[177,74,177,77],[178,74,178,77],[179,74,179,77],[180,74,180,77],[148,74,148,77],[149,74,149,77],[150,74,150,77],[151,74,151,77],[152,74,152,77],[153,74,153,77],[154,74,154,77],[155,74,155,77],[156,74,156,77],[157,74,157,77],[158,74,158,77],[159,74,159,77],[160,74,160,77],[161,74,161,77],[162,74,162,77],[163,74,163,77],[130,74,130,77],[131,74,131,77],[132,74,132,77],[133,74,133,77],[134,74,134,77],[135,74,135,77],[136,74,136,77],[137,74,137,77],[138,74,138,77],[139,74,139,77],[140,74,140,77],[141,74,141,77],[142,74,142,77],[143,74,143,77],[144,74,144,77],[145,74,145,77],[146,74,146,77],[115,74,115,77],[116,74,116,77],[117,74,117,77],[118,74,118,77],[119,74,119,77],[120,74,120,77],[121,74,121,77],[122,74,122,77],[123,74,123,77],[124,74,124,77],[125,74,125,77],[126,74,126,77],[127,74,127,77],[128,74,128,77],[129,74,129,77],[96,74,96,77],[97,74,97,77],[98,74,98,77],[99,74,99,77],[100,74,100,77],[101,74,101,77],[102,74,102,77],[103,74,103,77],[104,74,104,77],[105,74,105,77],[106,74,106,77],[107,74,107,77],[108,74,108,77],[109,74,109,77],[110,74,110,77],[111,74,111,77],[112,74,112,77],[147,74,147,77],[82,74,82,77],[83,74,83,77],[84,74,84,77],[85,74,85,77],[86,74,86,77],[87,74,87,77],[88,74,88,77],[89,74,89,77],[90,74,90,77],[91,74,91,77],[92,74,92,77],[93,74,93,77],[94,74,94,77],[95,74,95,77],[62,74,62,77],[63,74,63,77],[64,74,64,77],[65,74,65,77],[66,74,66,77],[67,74,67,77],[68,74,68,77],[69,74,69,77],[70,74,70,77],[71,74,71,77],[72,74,72,77],[73,74,73,77],[74,74,74,77],[75,74,75,77],[76,74,76,77],[77,74,77,77],[78,74,78,77],[113,74,113,77],[114,74,114,77],[49,74,49,77],[50,74,50,77],[51,74,51,77],[52,74,52,77],[53,74,53,77],[54,74,54,77],[55,74,55,77],[56,74,56,77],[57,74,57,77],[58,74,58,77],[59,74,59,77],[60,74,60,77],[61,74,61,77],[28,74,28,77],[29,74,29,77],[30,74,30,77],[31,74,31,77],[32,74,32,77],[33,74,33,77],[34,74,34,77],[35,74,35,77],[36,74,36,77],[37,74,37,77],[38,74,38,77],[39,74,39,77],[40,74,40,77],[41,74,41,77],[42,74,42,77],[43,74,43,77],[44,74,44,77],[79,74,79,77],[80,74,80,77],[81,74,81,77],[15,74,15,77],[16,74,16,77],[17,74,17,77],[18,74,18,77],[19,74,19,77],[20,74,20,77],[21,74,21,77],[22,74,22,77],[23,74,23,77],[24,74,24,77],[25,74,25,77],[26,74,26,77],[27,74,27,77],[399,121,421,123],[422,121,444,123],[445,121,467,123],[468,121,490,123],[491,121,511,123],[513,8,514,115],[31,121,53,123]],"merged_total":10556,"flags":["merged_cut"]}
[null,null,null,null,null,null,null,null,"Only two pages are unhidden, if you need additional pages to input data, press button(s) on the right to unhide additional pages. Please, only unhide pages as needed."]
[null,null,null,null,null,null,null,null,"Jurisdiction Name:",null,null,null,null,null,null,null,null,null,null,null,{"$f":"IF('Public Facilities COMPLETION'!AB2>0,'Public Facilities COMPLETION'!AB2,\"\")","v":""},null,null,null,null,null,null,null,null,null,null,null,null,null,null,null,null,null,null,null,null,null,null,null,null,null,null,null,null,null,null,"Contract #",null,null,null,null,null,null,{"$f":"IF('Public Facilities COMPLETION'!BN2>0,'Public Facilities COMPLETION'!BN2,\"\")","v":""},null,null,null,null,null,null,null,null,null,null,null,null,null,null,null,null,null,null,null,null,null,null,null,null,null,null,null,null,null,null,null,null,null,null,null,null,null,null,null,null,null,null,null,null,null,null,null,null,null,null,null,null,null,null,null,null,null,null,null,null,null,null,"Page  1"]
[]
[]
[]
[null,null,null,null,null,null,null,null,"DIRECT BENEFIT DATA BY PERSON - Fill in ALL fields for every person added below (LMH)",null,null,null,null,null,null,null,null,null,null,null,null,null,null,null,null,null,null,null,null,null,null,null,null,null,null,null,null,null,null,null,null,null,null,null,null,null,null,null,null,null,null,null,null,null,null,null,null,null,null,null,null,null,null,{"$f":"IF(AND('Public Facilities SET UP'!N85=Validation!D10,'Public Facilities SET UP'!AK85=Validation!D95,'Public Facilities SET UP'!BJ85=Validation!F37),\"REQUIRED\",IF(AND('Public Facilities SET UP'!N85=Validation!D10,'Public Facilities SET UP'!AK85=Validation!D96,'Public Facilities SET UP'!BJ85=Validation!F37),\"REQUIRED\",IF(AND('Public Facilities SET UP'!N85=Validation!D10,'Public Facilities SET UP'!AK85=Validation!D97,'Public Facilities SET UP'!BJ85=Validation!F37),\"REQUIRED\",IF(AND('Public Facilities SET UP'!N85=Validation!D10,'Public Facilities SET UP'!AK85=Validation!D98,'Public Facilities SET UP'!BJ85=Validation!F37),\"REQUIRED\",IF(AND('Public Facilities SET UP'!N85=Validation!D10,'Public Facilities SET UP'!AK85=Validation!D100,'Public Facilities SET UP'!BJ85=Validation!F37),\"REQUIRED\",\"NOT REQUIRED\")))))","v":"NOT REQUIRED"}]
[]
[]
[]
[null,null,null,null,null,null,null,null,null,null,null,null,null,null,null,null,null,null,null,null,null,null,null,null,null,null,null,null,null,null,null,null,null,null,null,null,null,null,null,null,null,null,null,null,null,null,null,null,null,null,null,null,null,null,null,null,null,null,null,null,null,null,null,null,null,null,null,null,null,null,null,null,null,null,null,null,null,null,null,null,null,null,null,null,null,null,null,null,null,null,null,null,{"$f":"IF(AND('Public Facilities SET UP'!N85='Public Facilities SET UP'!CM81,'Public Facilities SET UP'!AK85='Public Facilities SET UP'!CM84),\"REQUIRED\",\"NOT REQUIRED\")","v":"NOT REQUIRED"}]
[null,null,null,null,null,null,null,null,{"$f":"IF(AND('Public Facilities SET UP'!N85=Validation!D10,'Public Facilities SET UP'!AK85=Validation!D95,'Public Facilities SET UP'!BJ85=Validation!F37),\"REQUIRED\",IF(AND('Public Facilities SET UP'!N85=Validation!D10,'Public Facilities SET UP'!AK85=Validation!D96,'Public Facilities SET UP'!BJ85=Validation!F37),\"REQUIRED\",IF(AND('Public Facilities SET UP'!N85=Validation!D10,'Public Facilities SET UP'!AK85=Validation!D97,'Public Facilities SET UP'!BJ85=Validation!F37),\"REQUIRED\",IF(AND('Public Facilities SET UP'!N85=Validation!D10,'Public Facilities SET UP'!AK85=Validation!D98,'Public Facilities SET UP'!BJ85=Validation!F37),\"REQUIRED\",IF(AND('Public Facilities SET UP'!N85=Validation!D10,'Public Facilities SET UP'!AK85=Validation!D100,'Public Facilities SET UP'!BJ85=Validation!F37),\"REQUIRED\",\"NOT REQUIRED\")))))","v":"NOT REQUIRED"},null,null,null,null,null,null,null,null,null,null,null,null,null,null,null,null,null,null,null,null,null,null,null,null,null,null,null,null,null,null,null,null,null,null,null,null,null,null,null,null,null,null,null,null,null,null,null,null,null,null,null,null,null,null,null,null,null,null,null,null,null,null,null,null,null,null,null,null,null,null,null,null,null,{"$f":"IF(AND('Public Facilities SET UP'!N85='Public Facilities SET UP'!CM81,'Public Facilities SET UP'!AK85='Public Facilities SET UP'!CM80),\"REQUIRED\",\"NOT REQUIRED\")","v":"NOT REQUIRED"},null,null,null,null,null,null,null,null,null,null,null,null,null,{"$f":"IF('Public Facilities SET UP'!N85='Public Facilities SET UP'!CM70,\"REQUIRED\",\"NOT REQUIRED\")","v":"NOT REQUIRED"},null,null,null,null,null,null,null,null,null,null,null,{"$f":"IF(AND('Public Facilities SET UP'!N85='Public Facilities SET UP'!CM70,'Public Facilities SET UP'!AK85='Public Facilities SET UP'!CM87),\"REQUIRED\",\"NOT REQUIRED\")","v":"NOT REQUIRED"}]
[null,null,null,null,null,null,null,null,"Beneficiary Name, code, or Home Address.",null,null,null,null,null,null,null,null,null,"Home Address in Service Area",null,null,null,null,null,"Beneficiary Type",null,null,null,null,null,"Total Household Size",null,null,null,"Annual Gross Income for HH - All",null,null,null,null,null,"% of Area Median Income",null,null,null,null,null,null,null,null,"Access to a Service or Benefit",null,null,null,null,null,"Hispanic",null,null,null,"Race / Ethnicity",null,null,null,null,null,null,null,null,null,null,"Veteran",null,null,null,"Is beneficiary disable?",null,null,null,"Female-Headed Houshold?",null,null,null,"Homeless Person given overnight shelter?",null,null,null,null,"Bed created for overnight shelter?",null,null,null,null,"Person placed in a job?",null,null,null,"First Time Homebuyer?",null,null,null,"Receiving Housing Counseling?",null,null,null,"Down Payment Assistance?",null,null,null,"Short-term Rental Assistance?",null,null,null,"Previously Homeless?",null,null,null," Chronically homeless?"]
[null,null,null,null,null,null,null,1,null,null,null,null,null,null,null,null,null,null,"Select Option",null,null,null,null,null,"Select Option",null,null,null,null,null,null,null,null,null,null,null,null,null,null,null,"Select Option",null,null,null,null,null,null,null,null,"Select Option",null,null,null,null,null,"Select Option",null,null,null,"Select Option",null,null,null,null,null,null,null,null,null,null,"Select Option",null,null,null,"Select Option",null,null,null,"Select Option",null,null,null,"Select Option",null,null,null,null,"Select Option",null,null,null,null,"Select Option",null,null,null,"Select Option",null,null,null,"Select Option",null,null,null,"Select Option",null,null,null,"Select Option",null,null,null,"Select Option",null,null,null,"Select Option"]
[null,null,null,null,null,null,null,2]
[null,null,null,null,null,null,null,3]
[null,null,null,null,null,null,null,4]
[null,null,null,null,null,null,null,5]
[null,null,null,null,null,null,null,6]
[null,null,null,null,null,null,null,7]
[null,null,null,null,null,null,null,8]
[null,null,null,null,null,null,null,9]
[null,null,null,null,null,null,null,10]
[null,null,null,null,null,null,null,11]
[null,null,null,null,null,null,null,12]
[null,null,null,null,null,null,null,13]
[null,null,null,null,null,null,null,14]
[null,null,null,null,null,null,null,15]
[null,null,null,null,null,null,null,16]
[null,null,null,null,null,null,null,17]
[null,null,null,null,null,null,null,18]
[null,null,null,null,null,null,null,19]
[null,null,null,null,null,null,null,20,null,null,null,null,null,null,null,null,null,null,null,null,null,null,null,null,null,null,null,null,null,null,null,null,null,null,null,null,null,null,null,null,null,null,null,null,null,null,null,null,null,null,null,null,null,null,null,null,null,null,null,null,null,null,null,null,null,null,null,null,null,null,null,null,null,null,null,null,null,null,null,null,null,null,null,null,null,null,null,null,null,null,null,null,null,null,null,null,null,null,null,null,null,null,null,null,null,null,null,null,null,null,null,null,null,null,null,null,null,null,null,null,null,"Page  2"]
[null,null,null,null,null,null,null,21]
[null,null,null,null,null,null,null,22]
[null,null,null,null,null,null,null,23]
[null,null,null,null,null,null,null,24]
[null,null,null,null,null,null,null,25]
[null,null,null,null,null,null,null,26]
[null,null,null,null,null,null,null,27]
[null,null,null,null,null,null,null,28]
[null,null,null,null,null,null,null,29]
[null,null,null,null,null,null,null,30]
[null,null,null,null,null,null,null,31]
[null,null,null,null,null,null,null,32]
[null,null,null,null,null,null,null,33]
[null,null,null,null,null,null,null,34]
[null,null,null,null,null,null,null,35]
[null,null,null,null,null,null,null,36]
[null,null,null,null,null,null,null,37]
[null,null,null,null,null,null,null,38]
[null,null,null,null,null,null,null,39]
[null,null,null,null,null,null,null,40]
[null,null,null,null,null,null,null,41]
[null,null,null,null,null,null,null,42]
[null,null,null,null,null,null,null,43,null,null,null,null,null,null,null,null,null,null,null,null,null,null,null,null,null,null,null,null,null,null,null,null,null,null,null,null,null,null,null,null,null,null,null,null,null,null,null,null,null,null,null,null,null,null,null,null,null,null,null,null,null,null,null,null,null,null,null,null,null,null,null,null,null,null,null,null,null,null,null,null,null,null,null,null,null,null,null,null,null,null,null,null,null,null,null,null,null,null,null,null,null,null,null,null,null,null,null,null,null,null,null,null,null,null,null,null,null,null,null,null,null,"Page  3"]
[null,null,null,null,null,null,null,44]
[null,null,null,null,null,null,null,45]
[null,null,null,null,null,null,null,46]
[null,null,null,null,null,null,null,47]
[null,null,null,null,null,null,null,48]
[null,null,null,null,null,null,null,49]
[null,null,null,null,null,null,null,50]
[null,null,null,null,null,null,null,51]
[null,null,null,null,null,null,null,52]
[null,null,null,null,null,null,null,53]
[null,null,null,null,null,null,null,54]
[null,null,null,null,null,null,null,55]
[null,null,null,null,null,null,null,56]
[null,null,null,null,null,null,null,57]
[null,null,null,null,null,null,null,58]
[null,null,null,null,null,null,null,59]
[null,null,null,null,null,null,null,60]
[null,null,null,null,null,null,null,61]
[null,null,null,null,null,null,null,62]
[null,null,null,null,null,null,null,63]
[null,null,null,null,null,null,null,64]
[null,null,null,null,null,null,null,65]
[null,null,null,null,null,null,null,66,null,null,null,null,null,null,null,null,null,null,null,null,null,null,null,null,null,null,null,null,null,null,null,null,null,null,null,null,null,null,null,null,null,null,null,null,null,null,null,null,null,null,null,null,null,null,null,null,null,null,null,null,null,null,null,null,null,null,null,null,null,null,null,null,null,null,null,null,null,null,null,null,null,null,null,null,null,null,null,null,null,null,null,null,null,null,null,null,null,null,null,null,null,null,null,null,null,null,null,null,null,null,null,null,null,null,null,null,null,null,null,null,null,"Page  4"]
[null,null,null,null,null,null,null,67]
[null,null,null,null,null,null,null,68]
[null,null,null,null,null,null,null,69]
[null,null,null,null,null,null,null,70]
[null,null,null,null,null,null,null,71]
[null,null,null,null,null,null,null,72]
[null,null,null,null,null,null,null,73]
[null,null,null,null,null,null,null,74]
[null,null,null,null,null,null,null,75]
[null,null,null,null,null,null,null,76]
[null,null,null,null,null,null,null,77]
[null,null,null,null,null,null,null,78]
[null,null,null,null,null,null,null,79]
[null,null,null,null,null,null,null,80]
[null,null,null,null,null,null,null,81]
[null,null,null,null,null,null,null,82]
[null,null,null,null,null,null,null,83]
[null,null,null,null,null,null,null,84]
[null,null,null,null,null,null,null,85]
[null,null,null,null,null,null,null,86]
[null,null,null,null,null,null,null,87]
[null,null,null,null,null,null,null,88]
[null,null,null,null,null,null,null,89,null,null,null,null,null,null,null,null,null,null,null,null,null,null,null,null,null,null,null,null,null,null,null,null,null,null,null,null,null,null,null,null,null,null,null,null,null,null,null,null,null,null,null,null,null,null,null,null,null,null,null,null,null,null,null,null,null,null,null,null,null,null,null,null,null,null,null,null,null,null,null,null,null,null,null,null,null,null,null,null,null,null,null,null,null,null,null,null,null,null,null,null,null,null,null,null,null,null,null,null,null,null,null,null,null,null,null,null,null,null,null,null,null,"Page  5"]
[null,null,null,null,null,null,null,90]
[null,null,null,null,null,null,null,91]
[null,null,null,null,null,null,null,92]
[null,null,null,null,null,null,null,93]
[null,null,null,null,null,null,null,94]
[null,null,null,null,null,null,null,95]
[null,null,null,null,null,null,null,96]
[null,null,null,null,null,null,null,97]
[null,null,null,null,null,null,null,98]
[null,null,null,null,null,null,null,99]
[null,null,null,null,null,null,null,100]
[null,null,null,null,null,null,null,101]
[null,null,null,null,null,null,null,102]
[null,null,null,null,null,null,null,103]
[null,null,null,null,null,null,null,104]
[null,null,null,null,null,null,null,105]
[null,null,null,null,null,null,null,106]
[null,null,null,null,null,null,null,107]
[null,null,null,null,null,null,null,108]
[null,null,null,null,null,null,null,109]
[null,null,null,null,null,null,null,110]
[null,null,null,null,null,null,null,111]
[null,null,null,null,null,null,null,112,null,null,null,null,null,null,null,null,null,null,null,null,null,null,null,null,null,null,null,null,null,null,null,null,null,null,null,null,null,null,null,null,null,null,null,null,null,null,null,null,null,null,null,null,null,null,null,null,null,null,null,null,null,null,null,null,null,null,null,null,null,null,null,null,null,null,null,null,null,null,null,null,null,null,null,null,null,null,null,null,null,null,null,null,null,null,null,null,null,null,null,null,null,null,null,null,null,null,null,null,null,null,null,null,null,null,null,null,null,null,null,null,null,"Page  6"]
[null,null,null,null,null,null,null,113]
[null,null,null,null,null,null,null,114]
[null,null,null,null,null,null,null,115]
[null,null,null,null,null,null,null,116]
[null,null,null,null,null,null,null,117]
[null,null,null,null,null,null,null,118]
[null,null,null,null,null,null,null,119]
[null,null,null,null,null,null,null,120]
[null,null,null,null,null,null,null,121]
[null,null,null,null,null,null,null,122]
[null,null,null,null,null,null,null,123]
[null,null,null,null,null,null,null,124]
[null,null,null,null,null,null,null,125]
[null,null,null,null,null,null,null,126]
[null,null,null,null,null,null,null,127]
[null,null,null,null,null,null,null,128]
[null,null,null,null,null,null,null,129]
[null,null,null,null,null,null,null,130]
[null,null,null,null,null,null,null,131]
[null,null,null,null,null,null,null,132]
[null,null,null,null,null,null,null,133]
[null,null,null,null,null,null,null,134]
[null,null,null,null,null,null,null,135,null,null,null,null,null,null,null,null,null,null,null,null,null,null,null,null,null,null,null,null,null,null,null,null,null,null,null,null,null,null,null,null,null,null,null,null,null,null,null,null,null,null,null,null,null,null,null,null,null,null,null,null,null,null,null,null,null,null,null,null,null,null,null,null,null,null,null,null,null,null,null,null,null,null,null,null,null,null,null,null,null,null,null,null,null,null,null,null,null,null,null,null,null,null,null,null,null,null,null,null,null,null,null,null,null,null,null,null,null,null,null,null,null,"Page  7"]
[null,null,null,null,null,null,null,136]
[null,null,null,null,null,null,null,137]
[null,null,null,null,null,null,null,138]
[null,null,null,null,null,null,null,139]
[null,null,null,null,null,null,null,140]
[null,null,null,null,null,null,null,141]
[null,null,null,null,null,null,null,142]
[null,null,null,null,null,null,null,143]
[null,null,null,null,null,null,null,144]
[null,null,null,null,null,null,null,145]
[null,null,null,null,null,null,null,146]
[null,null,null,null,null,null,null,147]
[null,null,null,null,null,null,null,148]
[null,null,null,null,null,null,null,149]
[null,null,null,null,null,null,null,150]
[null,null,null,null,null,null,null,151]
[null,null,null,null,null,null,null,152]
[null,null,null,null,null,null,null,153]
[null,null,null,null,null,null,null,154]
[null,null,null,null,null,null,null,155]
[null,null,null,null,null,null,null,156]
[null,null,null,null,null,null,null,157]
[null,null,null,null,null,null,null,158,null,null,null,null,null,null,null,null,null,null,null,null,null,null,null,null,null,null,null,null,null,null,null,null,null,null,null,null,null,null,null,null,null,null,null,null,null,null,null,null,null,null,null,null,null,null,null,null,null,null,null,null,null,null,null,null,null,null,null,null,null,null,null,null,null,null,null,null,null,null,null,null,null,null,null,null,null,null,null,null,null,null,null,null,null,null,null,null,null,null,null,null,null,null,null,null,null,null,null,null,null,null,null,null,null,null,null,null,null,null,null,null,null,"Page  8"]
[null,null,null,null,null,null,null,159]
[null,null,null,null,null,null,null,160]
[null,null,null,null,null,null,null,161]
[null,null,null,null,null,null,null,162]
[null,null,null,null,null,null,null,163]
[null,null,null,null,null,null,null,164]
[null,null,null,null,null,null,null,165]
[null,null,null,null,null,null,null,166]
[null,null,null,null,null,null,null,167]
[null,null,null,null,null,null,null,168]
[null,null,null,null,null,null,null,169]
[null,null,null,null,null,null,null,170]
[null,null,null,null,null,null,null,171]
[null,null,null,null,null,null,null,172]
[null,null,null,null,null,null,null,173]
[null,null,null,null,null,null,null,174]
[null,null,null,null,null,null,null,175]
[null,null,null,null,null,null,null,176]
[null,null,null,null,null,null,null,177]
[null,null,null,null,null,null,null,178]
[null,null,null,null,null,null,null,179]
[null,null,null,null,null,null,null,180]
[null,null,null,null,null,null,null,181,null,null,null,null,null,null,null,null,null,null,null,null,null,null,null,null,null,null,null,null,null,null,null,null,null,null,null,null,null,null,null,null,null,null,null,null,null,null,null,null,null,null,null,null,null,null,null,null,null,null,null,null,null,null,null,null,null,null,null,null,null,null,null,null,null,null,null,null,null,null,null,null,null,null,null,null,null,null,null,null,null,null,null,null,null,null,null,null,null,null,null,null,null,null,null,null,null,null,null,null,null,null,null,null,null,null,null,null,null,null,null,null,null,"Page  9"]
[null,null,null,null,null,null,null,182]
[null,null,null,null,null,null,null,183]
[null,null,null,null,null,null,null,184]
[null,null,null,null,null,null,null,185]
[null,null,null,null,null,null,null,186]
[null,null,null,null,null,null,null,187]
[null,null,null,null,null,null,null,188]
[null,null,null,null,null,null,null,189]
[null,null,null,null,null,null,null,190]
[null,null,null,null,null,null,null,191]
[null,null,null,null,null,null,null,192]
[null,null,null,null,null,null,null,193]
[null,null,null,null,null,null,null,194]
[null,null,null,null,null,null,null,195]
[null,null,null,null,null,null,null,196]
[null,null,null,null,null,null,null,197]
[null,null,null,null,null,null,null,198]
[null,null,null,null,null,null,null,199]
[null,null,null,null,null,null,null,200]
[null,null,null,null,null,null,null,201]
[null,null,null,null,null,null,null,202]
[null,null,null,null,null,null,null,203]
[null,null,null,null,null,null,null,204,null,null,null,null,null,null,null,null,null,null,null,null,null,null,null,null,null,null,null,null,null,null,null,null,null,null,null,null,null,null,null,null,null,null,null,null,null,null,null,null,null,null,null,null,null,null,null,null,null,null,null,null,null,null,null,null,null,null,null,null,null,null,null,null,null,null,null,null,null,null,null,null,null,null,null,null,null,null,null,null,null,null,null,null,null,null,null,null,null,null,null,null,null,null,null,null,null,null,null,null,null,null,null,null,null,null,null,null,null,null,null,null,null,"Page  10"]
[null,null,null,null,null,null,null,205]
[null,null,null,null,null,null,null,206]
[null,null,null,null,null,null,null,207]
[null,null,null,null,null,null,null,208]
[null,null,null,null,null,null,null,209]
[null,null,null,null,null,null,null,210]
[null,null,null,null,null,null,null,211]
[null,null,null,null,null,null,null,212]
[null,null,null,null,null,null,null,213]
[null,null,null,null,null,null,null,214]
[null,null,null,null,null,null,null,215]
[null,null,null,null,null,null,null,216]
[null,null,null,null,null,null,null,217]
[null,null,null,null,null,null,null,218]
[null,null,null,null,null,null,null,219]
[null,null,null,null,null,null,null,220]
[null,null,null,null,null,null,null,221]
[null,null,null,null,null,null,null,222]
[null,null,null,null,null,null,null,223]
[null,null,null,null,null,null,null,224]
[null,null,null,null,null,null,null,225]
[null,null,null,null,null,null,null,226]
[null,null,null,null,null,null,null,227,null,null,null,null,null,null,null,null,null,null,null,null,null,null,null,null,null,null,null,null,null,null,null,null,null,null,null,null,null,null,null,null,null,null,null,null,null,null,null,null,null,null,null,null,null,null,null,null,null,null,null,null,null,null,null,null,null,null,null,null,null,null,null,null,null,null,null,null,null,null,null,null,null,null,null,null,null,null,null,null,null,null,null,null,null,null,null,null,null,null,null,null,null,null,null,null,null,null,null,null,null,null,null,null,null,null,null,null,null,null,null,null,null,"Page  11"]
[null,null,null,null,null,null,null,228]
[null,null,null,null,null,null,null,229]
[null,null,null,null,null,null,null,230]
[null,null,null,null,null,null,null,231]
[null,null,null,null,null,null,null,232]
[null,null,null,null,null,null,null,233]
[null,null,null,null,null,null,null,234]
[null,null,null,null,null,null,null,235]
[null,null,null,null,null,null,null,236]
[null,null,null,null,null,null,null,237]
[null,null,null,null,null,null,null,238]
[null,null,null,null,null,null,null,239]
[null,null,null,null,null,null,null,240]
[null,null,null,null,null,null,null,241]
[null,null,null,null,null,null,null,242]
[null,null,null,null,null,null,null,243]
[null,null,null,null,null,null,null,244]
[null,null,null,null,null,null,null,245]
[null,null,null,null,null,null,null,246]
[null,null,null,null,null,null,null,247]
[null,null,null,null,null,null,null,248]
[null,null,null,null,null,null,null,249]
[null,null,null,null,null,null,null,250,null,null,null,null,null,null,null,null,null,null,null,null,null,null,null,null,null,null,null,null,null,null,null,null,null,null,null,null,null,null,null,null,null,null,null,null,null,null,null,null,null,null,null,null,null,null,null,null,null,null,null,null,null,null,null,null,null,null,null,null,null,null,null,null,null,null,null,null,null,null,null,null,null,null,null,null,null,null,null,null,null,null,null,null,null,null,null,null,null,null,null,null,null,null,null,null,null,null,null,null,null,null,null,null,null,null,null,null,null,null,null,null,null,"Page  12"]
[null,null,null,null,null,null,null,251]
[null,null,null,null,null,null,null,252]
[null,null,null,null,null,null,null,253]
[null,null,null,null,null,null,null,254]
[null,null,null,null,null,null,null,255]
[null,null,null,null,null,null,null,256]
[null,null,null,null,null,null,null,257]
[null,null,null,null,null,null,null,258]
[null,null,null,null,null,null,null,259]
[null,null,null,null,null,null,null,260]
[null,null,null,null,null,null,null,261]
[null,null,null,null,null,null,null,262]
[null,null,null,null,null,null,null,263]
[null,null,null,null,null,null,null,264]
[null,null,null,null,null,null,null,265]
[null,null,null,null,null,null,null,266]
[null,null,null,null,null,null,null,267]
[null,null,null,null,null,null,null,268]
[null,null,null,null,null,null,null,269]
[null,null,null,null,null,null,null,270]
[null,null,null,null,null,null,null,271]
[null,null,null,null,null,null,null,272]
[null,null,null,null,null,null,null,273,null,null,null,null,null,null,null,null,null,null,null,null,null,null,null,null,null,null,null,null,null,null,null,null,null,null,null,null,null,null,null,null,null,null,null,null,null,null,null,null,null,null,null,null,null,null,null,null,null,null,null,null,null,null,null,null,null,null,null,null,null,null,null,null,null,null,null,null,null,null,null,null,null,null,null,null,null,null,null,null,null,null,null,null,null,null,null,null,null,null,null,null,null,null,null,null,null,null,null,null,null,null,null,null,null,null,null,null,null,null,null,null,null,"Page  13"]
[null,null,null,null,null,null,null,274]
[null,null,null,null,null,null,null,275]
[null,null,null,null,null,null,null,276]
[null,null,null,null,null,null,null,277]
[null,null,null,null,null,null,null,278]
[null,null,null,null,null,null,null,279]
[null,null,null,null,null,null,null,280]
[null,null,null,null,null,null,null,281]
[null,null,null,null,null,null,null,282]
[null,null,null,null,null,null,null,283]
[null,null,null,null,null,null,null,284]
[null,null,null,null,null,null,null,285]
[null,null,null,null,null,null,null,286]
[null,null,null,null,null,null,null,287]
[null,null,null,null,null,null,null,288]
[null,null,null,null,null,null,null,289]
[null,null,null,null,null,null,null,290]
[null,null,null,null,null,null,null,291]
[null,null,null,null,null,null,null,292]
[null,null,null,null,null,null,null,293]
[null,null,null,null,null,null,null,294]
[null,null,null,null,null,null,null,295]
[null,null,null,null,null,null,null,296,null,null,null,null,null,null,null,null,null,null,null,null,null,null,null,null,null,null,null,null,null,null,null,null,null,null,null,null,null,null,null,null,null,null,null,null,null,null,null,null,null,null,null,null,null,null,null,null,null,null,null,null,null,null,null,null,null,null,null,null,null,null,null,null,null,null,null,null,null,null,null,null,null,null,null,null,null,null,null,null,null,null,null,null,null,null,null,null,null,null,null,null,null,null,null,null,null,null,null,null,null,null,null,null,null,null,null,null,null,null,null,null,null,"Page  14"]
[null,null,null,null,null,null,null,297]
[null,null,null,null,null,null,null,298]
[null,null,null,null,null,null,null,299]
[null,null,null,null,null,null,null,300]
[null,null,null,null,null,null,null,301]
[null,null,null,null,null,null,null,302]
[null,null,null,null,null,null,null,303]
[null,null,null,null,null,null,null,304]
[null,null,null,null,null,null,null,305]
[null,null,null,null,null,null,null,306]
[null,null,null,null,null,null,null,307]
[null,null,null,null,null,null,null,308]
[null,null,null,null,null,null,null,309]
[null,null,null,null,null,null,null,310]
[null,null,null,null,null,null,null,311]
[null,null,null,null,null,null,null,312]
[null,null,null,null,null,null,null,313]
[null,null,null,null,null,null,null,314]
[null,null,null,null,null,null,null,315]
[null,null,null,null,null,null,null,316]
[null,null,null,null,null,null,null,317]
[null,null,null,null,null,null,null,318]
[null,null,null,null,null,null,null,319,null,null,null,null,null,null,null,null,null,null,null,null,null,null,null,null,null,null,null,null,null,null,null,null,null,null,null,null,null,null,null,null,null,null,null,null,null,null,null,null,null,null,null,null,null,null,null,null,null,null,null,null,null,null,null,null,null,null,null,null,null,null,null,null,null,null,null,null,null,null,null,null,null,null,null,null,null,null,null,null,null,null,null,null,null,null,null,null,null,null,null,null,null,null,null,null,null,null,null,null,null,null,null,null,null,null,null,null,null,null,null,null,null,"Page  15"]
[null,null,null,null,null,null,null,320]
[null,null,null,null,null,null,null,321]
[null,null,null,null,null,null,null,322]
[null,null,null,null,null,null,null,323]
[null,null,null,null,null,null,null,324]
[null,null,null,null,null,null,null,325]
[null,null,null,null,null,null,null,326]
[null,null,null,null,null,null,null,327]
[null,null,null,null,null,null,null,328]
[null,null,null,null,null,null,null,329]
[null,null,null,null,null,null,null,330]
[null,null,null,null,null,null,null,331]
[null,null,null,null,null,null,null,332]
[null,null,null,null,null,null,null,333]
[null,null,null,null,null,null,null,334]
[null,null,null,null,null,null,null,335]
[null,null,null,null,null,null,null,336]
[null,null,null,null,null,null,null,337]
[null,null,null,null,null,null,null,338]
[null,null,null,null,null,null,null,339]
[null,null,null,null,null,null,null,340]
[null,null,null,null,null,null,null,341]
[null,null,null,null,null,null,null,342,null,null,null,null,null,null,null,null,null,null,null,null,null,null,null,null,null,null,null,null,null,null,null,null,null,null,null,null,null,null,null,null,null,null,null,null,null,null,null,null,null,null,null,null,null,null,null,null,null,null,null,null,null,null,null,null,null,null,null,null,null,null,null,null,null,null,null,null,null,null,null,null,null,null,null,null,null,null,null,null,null,null,null,null,null,null,null,null,null,null,null,null,null,null,null,null,null,null,null,null,null,null,null,null,null,null,null,null,null,null,null,null,null,"Page  16"]
[null,null,null,null,null,null,null,343]
[null,null,null,null,null,null,null,344]
[null,null,null,null,null,null,null,345]
[null,null,null,null,null,null,null,346]
[null,null,null,null,null,null,null,347]
[null,null,null,null,null,null,null,348]
[null,null,null,null,null,null,null,349]
[null,null,null,null,null,null,null,350]
[null,null,null,null,null,null,null,351]
[null,null,null,null,null,null,null,352]
[null,null,null,null,null,null,null,353]
[null,null,null,null,null,null,null,354]
[null,null,null,null,null,null,null,355]
[null,null,null,null,null,null,null,356]
[null,null,null,null,null,null,null,357]
[null,null,null,null,null,null,null,358]
[null,null,null,null,null,null,null,359]
[null,null,null,null,null,null,null,360]
[null,null,null,null,null,null,null,361]
[null,null,null,null,null,null,null,362]
[null,null,null,null,null,null,null,363]
[null,null,null,null,null,null,null,364]
[null,null,null,null,null,null,null,365,null,null,null,null,null,null,null,null,null,null,null,null,null,null,null,null,null,null,null,null,null,null,null,null,null,null,null,null,null,null,null,null,null,null,null,null,null,null,null,null,null,null,null,null,null,null,null,null,null,null,null,null,null,null,null,null,null,null,null,null,null,null,null,null,null,null,null,null,null,null,null,null,null,null,null,null,null,null,null,null,null,null,null,null,null,null,null,null,null,null,null,null,null,null,null,null,null,null,null,null,null,null,null,null,null,null,null,null,null,null,null,null,null,"Page  17"]
[null,null,null,null,null,null,null,366]
[null,null,null,null,null,null,null,367]
[null,null,null,null,null,null,null,368]
[null,null,null,null,null,null,null,369]
[null,null,null,null,null,null,null,370]
[null,null,null,null,null,null,null,371]
[null,null,null,null,null,null,null,372]
[null,null,null,null,null,null,null,373]
[null,null,null,null,null,null,null,374]
[null,null,null,null,null,null,null,375]
[null,null,null,null,null,null,null,376]
[null,null,null,null,null,null,null,377]
[null,null,null,null,null,null,null,378]
[null,null,null,null,null,null,null,379]
[null,null,null,null,null,null,null,380]
[null,null,null,null,null,null,null,381]
[null,null,null,null,null,null,null,382]
[null,null,null,null,null,null,null,383]
[null,null,null,null,null,null,null,384]
[null,null,null,null,null,null,null,385]
[null,null,null,null,null,null,null,386]
[null,null,null,null,null,null,null,387]
[null,null,null,null,null,null,null,388,null,null,null,null,null,null,null,null,null,null,null,null,null,null,null,null,null,null,null,null,null,null,null,null,null,null,null,null,null,null,null,null,null,null,null,null,null,null,null,null,null,null,null,null,null,null,null,null,null,null,null,null,null,null,null,null,null,null,null,null,null,null,null,null,null,null,null,null,null,null,null,null,null,null,null,null,null,null,null,null,null,null,null,null,null,null,null,null,null,null,null,null,null,null,null,null,null,null,null,null,null,null,null,null,null,null,null,null,null,null,null,null,null,"Page  18"]
[null,null,null,null,null,null,null,389]
[null,null,null,null,null,null,null,390]
[null,null,null,null,null,null,null,391]
[null,null,null,null,null,null,null,392]
[null,null,null,null,null,null,null,393]
[null,null,null,null,null,null,null,394]
[null,null,null,null,null,null,null,395]
[null,null,null,null,null,null,null,396]
[null,null,null,null,null,null,null,397]
[null,null,null,null,null,null,null,398]
[null,null,null,null,null,null,null,399]
[null,null,null,null,null,null,null,400]
[null,null,null,null,null,null,null,401]
[null,null,null,null,null,null,null,402]
[null,null,null,null,null,null,null,403]
[null,null,null,null,null,null,null,404]
[null,null,null,null,null,null,null,405]
[null,null,null,null,null,null,null,406]
[null,null,null,null,null,null,null,407]
[null,null,null,null,null,null,null,408]
[null,null,null,null,null,null,null,409]
[null,null,null,null,null,null,null,410]
[null,null,null,null,null,null,null,411,null,null,null,null,null,null,null,null,null,null,null,null,null,null,null,null,null,null,null,null,null,null,null,null,null,null,null,null,null,null,null,null,null,null,null,null,null,null,null,null,null,null,null,null,null,null,null,null,null,null,null,null,null,null,null,null,null,null,null,null,null,null,null,null,null,null,null,null,null,null,null,null,null,null,null,null,null,null,null,null,null,null,null,null,null,null,null,null,null,null,null,null,null,null,null,null,null,null,null,null,null,null,null,null,null,null,null,null,null,null,null,null,null,"Page  19"]
[null,null,null,null,null,null,null,412]
[null,null,null,null,null,null,null,413]
[null,null,null,null,null,null,null,414]
[null,null,null,null,null,null,null,415]
[null,null,null,null,null,null,null,416]
[null,null,null,null,null,null,null,417]
[null,null,null,null,null,null,null,418]
[null,null,null,null,null,null,null,419]
[null,null,null,null,null,null,null,420]
[null,null,null,null,null,null,null,421]
[null,null,null,null,null,null,null,422]
[null,null,null,null,null,null,null,423]
[null,null,null,null,null,null,null,424]
[null,null,null,null,null,null,null,425]
[null,null,null,null,null,null,null,426]
[null,null,null,null,null,null,null,427]
[null,null,null,null,null,null,null,428]
[null,null,null,null,null,null,null,429]
[null,null,null,null,null,null,null,430]
[null,null,null,null,null,null,null,431]
[null,null,null,null,null,null,null,432]
[null,null,null,null,null,null,null,433]
[null,null,null,null,null,null,null,434,null,null,null,null,null,null,null,null,null,null,null,null,null,null,null,null,null,null,null,null,null,null,null,null,null,null,null,null,null,null,null,null,null,null,null,null,null,null,null,null,null,null,null,null,null,null,null,null,null,null,null,null,null,null,null,null,null,null,null,null,null,null,null,null,null,null,null,null,null,null,null,null,null,null,null,null,null,null,null,null,null,null,null,null,null,null,null,null,null,null,null,null,null,null,null,null,null,null,null,null,null,null,null,null,null,null,null,null,null,null,null,null,null,"Page  20"]
[null,null,null,null,null,null,null,435]
[null,null,null,null,null,null,null,436]
[null,null,null,null,null,null,null,437]
[null,null,null,null,null,null,null,438]
[null,null,null,null,null,null,null,439]
[null,null,null,null,null,null,null,440]
[null,null,null,null,null,null,null,441]
[null,null,null,null,null,null,null,442]
[null,null,null,null,null,null,null,443]
[null,null,null,null,null,null,null,444]
[null,null,null,null,null,null,null,445]
[null,null,null,null,null,null,null,446]
[null,null,null,null,null,null,null,447]
[null,null,null,null,null,null,null,448]
[null,null,null,null,null,null,null,449]
[null,null,null,null,null,null,null,450]
[null,null,null,null,null,null,null,451]
[null,null,null,null,null,null,null,452]
[null,null,null,null,null,null,null,453]
[null,null,null,null,null,null,null,454]
[null,null,null,null,null,null,null,455]
[null,null,null,null,null,null,null,456]
[null,null,null,null,null,null,null,457,null,null,null,null,null,null,null,null,null,null,null,null,null,null,null,null,null,null,null,null,null,null,null,null,null,null,null,null,null,null,null,null,null,null,null,null,null,null,null,null,null,null,null,null,null,null,null,null,null,null,null,null,null,null,null,null,null,null,null,null,null,null,null,null,null,null,null,null,null,null,null,null,null,null,null,null,null,null,null,null,null,null,null,null,null,null,null,null,null,null,null,null,null,null,null,null,null,null,null,null,null,null,null,null,null,null,null,null,null,null,null,null,null,"Page  21"]
[null,null,null,null,null,null,null,458]
[null,null,null,null,null,null,null,459]
[null,null,null,null,null,null,null,460]
[null,null,null,null,null,null,null,461]
[null,null,null,null,null,null,null,462]
[null,null,null,null,null,null,null,463]
[null,null,null,null,null,null,null,464]
[null,null,null,null,null,null,null,465]
[null,null,null,null,null,null,null,466]
[null,null,null,null,null,null,null,467]
[null,null,null,null,null,null,null,468]
[null,null,null,null,null,null,null,469]
[null,null,null,null,null,null,null,470]
[null,null,null,null,null,null,null,471]
[null,null,null,null,null,null,null,472]
[null,null,null,null,null,null,null,473]
[null,null,null,null,null,null,null,474]
[null,null,null,null,null,null,null,475]
[null,null,null,null,null,null,null,476]
[null,null,null,null,null,null,null,477]
[null,null,null,null,null,null,null,478]
[null,null,null,null,null,null,null,479]
[null,null,null,null,null,null,null,480,null,null,null,null,null,null,null,null,null,null,null,null,null,null,null,null,null,null,null,null,null,null,null,null,null,null,null,null,null,null,null,null,null,null,null,null,null,null,null,null,null,null,null,null,null,null,null,null,null,null,null,null,null,null,null,null,null,null,null,null,null,null,null,null,null,null,null,null,null,null,null,null,null,null,null,null,null,null,null,null,null,null,null,null,null,null,null,null,null,null,null,null,null,null,null,null,null,null,null,null,null,null,null,null,null,null,null,null,null,null,null,null,null,"Page  22"]
[null,null,null,null,null,null,null,481]
[null,null,null,null,null,null,null,482]
[null,null,null,null,null,null,null,483]
[null,null,null,null,null,null,null,484]
[null,null,null,null,null,null,null,485]
[null,null,null,null,null,null,null,486]
[null,null,null,null,null,null,null,487]
[null,null,null,null,null,null,null,488]
[null,null,null,null,null,null,null,489]
[null,null,null,null,null,null,null,490]
[null,null,null,null,null,null,null,491]
[null,null,null,null,null,null,null,492]
[null,null,null,null,null,null,null,493]
[null,null,null,null,null,null,null,494]
[null,null,null,null,null,null,null,495]
[null,null,null,null,null,null,null,496]
[null,null,null,null,null,null,null,497]
[null,null,null,null,null,null,null,498]
[null,null,null,null,null,null,null,499]
[null,null,null,null,null,null,null,500]
[]
[null,null,null,null,null,null,null,null,"END OF DOCUMENT"]

{"sheet":"Validation","index":6,"n_rows":152,"n_cols":8,"rows_kept":152,"cut":false,"hidden":true,"merged":[[156,1,156,2],[14,7,15,7],[152,1,152,2],[153,1,153,2],[154,1,154,2],[155,1,155,2]]}
["Select Option",null,null,"Yes","Non-Profit Organization",null,"Match Leverage"]
["Original",null,null,"No","Faith-Based Organization",null,"Select Option"]
["Revised",null,null,null,"Institution of Higher Education","L000-Local Other","F000-Federal Other"]
["Cancelled",null,null,null,null,"L110-Staff Time","F100-Federal HUD"]
[null,null,null,null,null,"L120-Local-in-Kind","F200-Federal SBA"]
["FY 14/15",null,null,null,null,"L130-Local Land","F300-Federal EDA"]
["FY 15/16",null,null,"National Objective",null,"L200-Local Fees","F400-Federal USDA"]
["FY 16/17",null,null,"Select Option",null,"L210-Local Fee Waivers","F500-Federal FEMA"]
["FY 17/18",null,null,"LMA - Low/Mod area benefit",null,"L220-Local Audit","F600-Federal Housing Tax Credits"]
["FY 18/19",null,null,"LMC - Low/Mod limited clientele benefit",null,"L300-Local","L000-Local Other"]
["FY 19/20",null,null,null,null,"L310-PTA Cash Match","L001-Local No Match Required"]
["FY 20/21",null,null,null,null,"L600-Local RDA","L110-Staff Time"]
["FY 21/22",null,null,null,null,"P000 Private Other","L120-Local-in-Kind"]
["FY 22/23",null,null,null,null,"P100-Private Equity","L130-Local Land Contribution"]
["FY 23/24",null,null,null,"14H Rehabilitation Administration","P110-Private Sweat Equity","L200-Local Fee Waiver","What's the difference?"]
["FY 24/25",null,null,null,null,"P120-Private-in-Kind","L210-Local Fee Waivers"]
[null,null,null,null,null,"P200-Private Fees","L220-Local Audit"]
[null,null,null,null,"Grant","P320-Private Financing","L300-Local Funds"]
[null,null,null,null,"Loan","P900-Private Volunteer Time","L310-PTA Cash Match General"]
[null,null,null,null,"Grant and Loan","F000-State Other","L311-PTA Cash Match ED"]
[null,null,null,"Business Type",null,"S200-State Tax Credits","L320-PTA Private Financing"]
[null,null,null,"Select Option","Select Option",null,"L330-Bonds"]
[null,null,null,"None ","11 - White",null,"L400-Goods and Services Incl."]
[null,null,null,"New","12 - Black/African American ",null,"L500-Gas Tax"]
[null,null,null,"Existing","13 - Asian","-CDBG-","L600-Local RDA"]
[null,null,null,null,"14 - American Indian/ Alaskan Native ",null,"L601-Local RDA"]
[null,null,null,null,"15 - Native Hawaiian/ Other Pacific Islander",null,"L602-Waived Interest/ Fin'e Chg"]
[null,null,null,null,"16 - Am. Indian/Alaskan Native & White ",null,"P000 Private Other"]
[null,null,null,null,"17 - Asian & White ",null,"P100-Private Equity","Delete \"Equity\"?"]
[null,null,null,null,"18 - Black/African Am. & White",null,"P110-Private Sweat Equity"]
[null,null,null,null,"19 - Am. Indian/Alaskan & Blk/African ",null,"P120-Private-in-Kind"]
[null,null,null,null,"20 - Other Multi-Racial ",null,"P130-Private-Equity in Land/ Improve"]
[null,null,null,null,null,null,"P200-Private Fees"]
[null,null,null,null,"Income Level","Accomplishment Type","P210-Private Fee Waivers"]
[null,null,null,null,"Select Option","Select Option","P220-Private Discounts"]
[null,null,null,null,"Extremely Low ( ≤ 30%)","01 - People (General)","P300-Private Funds"]
[null,null,null,null,"Low (31-50%)","10 - Housing Units","P310-Private Cash Match"]
[null,null,null,null,"Moderate (51-80%)",null,"P320-Private Financing"]
[null,null,null,null,"Non-Low/ Moderate (+80%)",null,"P330-Private Loans"]
[null,null,null,null,null,null,"P340-Private Banks"]
[null,null,null,null,"Select Option",null,"P350-Private EDC"]
[null,null,null,null,"Housing constructed before 1978",null,"P400-Private Good and Services"]
[null,null,null,null,"*Exempt: Housing constructed in 1978/ later",null,"P500-Private Tax Credit Equity"]
[null,null,null,null,"Exempt: No paint disturbed",null,"P600-Private Foundation/ Nonprofit G","G?"]
[null,null,null,null,"Otherwise exempt",null,"P900-Private Volunteer Time"]
[null,null,null,null,null,null,"S000-State Other"]
[null,null,null,null,"Select Option",null,"S100-State HCD"]
[null,null,null,null,"Lead Safe Work Practices (24 CFR 35.930(b)) (Hard cost < or = to $5,000)",null,"S200-State Treasurer Tax Credits-MC"]
[null,null,null,null,"Interim Controls/ Standard Practices (24 CFR 35.930(c)) (Hard cost $5,000-$25,000)",null,"S300-State SWRCB"]
[null,null,null,null,"Abatement (24 CFR 35.930(d)) (Hard cost > $25,000)",null,"S400-State CalHFA (CHFA)"]
[null,null,null,null,"N/A",null,"S500-State CSD"]
[]
[null,null,null,"Select Option"]
[null,null,null,"A 105 (a) (15) entity as defined under the HD Act",null,null,"Program Income"]
[null,null,null,"A 501 ( c ) 3"]
[null,null,null,"Another unit of local government",null,null,"PINC-Local Program Income"]
[null,null,null,"Another public agency"]
[null,null,null,"Select Option",null,"Occupancy","Loan/ Grant"]
[null,null,null,"Subrecipient",null,"Select Option"]
[null,null,null,"Admin Contractor/Program Operator",null,"Owner","CDBG (Grant)"]
[null,null,null,"Jurisdiction Staff",null,"Tenant","CDBG (Loan)"]
[]
[]
[null,null,null,"Program Income",null,"# of Bedrooms"]
[null,null,null,"Revolving Loan Fund",null,"Select Option"]
[null,null,null,null,null,1]
[null,null,null,null,null,2]
[null,null,null,null,null,3]
[null,null,null,"Loan Type",null,4,"General Admin."]
[null,null,null,"Select Option",null,"5 or More"]
[null,null,null,"Amortized",null,null,"(21A) General Administration"]
[null,null,null,"Deferred"]
[null,null,null,"Amortized / Forgivable",null,"Yes/ No","Yes/ No","Yes"]
[null,null,null,"Deferred / Forgivable",null,"Select Option"]
[null,null,null,null,null,"No","No","Yes"]
[null,null,"Select Option",null,null,"Yes","Yes*"]
[null,null,"New"]
[null,null,"Improved",null,null,"# Persons","No"]
[null,null,"No Longer Substandard",null,null,"Select Option","Yes**"]
[null,null,null,null,null,1]
[null,null,null,null,null,2,"Activity Delivery"]
[null,null,"Select Option",null,null,3]
[null,null,"Abused Children","Extremely Low Income",null,4,"Activity Delivery"]
[null,null,"Battered Spouses","Low Income",null,5]
[null,null,"Severely Disable Adults","Low Income",null,6,"Type of Household"]
[null,null,"Homeless Persons","Extremely Low Income",null,7,"Select Option"]
[null,null,"Persons With AIDS","Low Income",null,8,"Owner"]
[null,null,"Migrant Farm Workers","Low Income",null,"Vac","Renter"]
[null,null,"Illiterate Adults","Low Income"]
[null,null,"Elderly","If assistance is to acquire, construct, convert, and/or rehabilitate a senior center or to pay for providing center-based senior services, report the beneficiaries as moderate income.\nIf assistance is for other services (not center-based), report the elderly beneficiaries as low income."]
[]
[]
[null,"County Code",null,"Activity Matrix Code",null,null,"Rental Assistance"]
[null,"Select Option",null,"Select Option",null,null,"Select Option"]
[null,"001 Alameda",null,"03A - Senior Center",null,null,"HOME TBRA"]
[null,"003 Alpine",null,"03B - Handicapped Center",null,null,"Sect. 8"]
[null,"005 Amador",null,"03C - Homeless Facilities (not operating cost)",null,null,"Other"]
[null,"007 Butte",null,"03D - Youth Centers",null,null,"None"]
[null,"009 Calaveras",null,"03E - Neighborhhod Facilities",null,null,"Vacant"]
[null,"011 Colusa",null,"03F - Parks, Recreational Facilities",null,null,"Project Based"]
[null,"013 Contra Costa",null,"03G - Parking Facilities"]
[null,"015 Del Norte",null,"03M - Child Care Center"]
[null,"017 El Dorado",null,"03O - Fire Station/Equipment"]
[null,"019 Fresno",null,"03P - Health Facilities"]
[null,"021 Glenn",null,"03Q - Abused and Neglected Children Facilities"]
[null,"023 Humboldt",null,"03R - Asbestos Removal"]
[null,"025 Imperial",null,"03S - Facilities to AIDS Patients (not operating cost)"]
[null,"027 Inyo",null,"03 - Other Public Facilities and Improvements (General)"]
[null,"029 Kern"]
[null,"031 Kings"]
[null,"033 Lake"]
[null,"035 Lassen"]
[null,"037 Los Angeles"]
[null,"039 Madera"]
[null,"041 Marin"]
[null,"043 Mariposa"]
[null,"045 Mendocino"]
[null,"047 Merced"]
[null,"049 Modoc"]
[null,"051 Mono"]
[null,"053 Monterey"]
[null,"055 Napa"]
[null,"057 Nevada"]
[null,"059 Orange"]
[null,"061 Placer"]
[null,"063 Plumas"]
[null,"065 Riverside"]
[null,"067 Sacramento"]
[null,"069 San Benito"]
[null,"071 San Bernardino"]
[null,"073 San Diego"]
[null,"075 San Francisco"]
[null,"077 San Joaquin"]
[null,"079 San Luis Obispo"]
[null,"081 San Mateo"]
[null,"083 Santa Barbara"]
[null,"085 Santa Clara"]
[null,"087 Santa Cruz"]
[null,"089 Shasta"]
[null,"091 Sierra"]
[null,"093 Siskiyou"]
[null,"095 Solano"]
[null,"097 Sonoma"]
[null,"099 Stanislaus"]
[null,"101 Sutter"]
[null,"103 Tehama"]
[null,"105 Trinity"]
[null,"107 Tulare"]
[null,"109 Tuolumne"]
[null,"111 Ventura"]
[null,"113 Yolo"]
[null,"115 Yuba"]

{"sheet":"Data Validation","index":7,"n_rows":12,"n_cols":9,"rows_kept":12,"cut":false,"hidden":true,"merged":[]}
[]
["Category1",null,null,null,null,null,null,null,"SELECT OPTION"]
["A 105 (a) (15) entity as defined under the Housing & Development Act",null,null,null,null,null,null,null,"White "]
["Another unit of local Government",null,null,null,null,null,null,null,"Black/African American "]
["Another public Agency",null,null,null,null,null,null,null,"Asian "]
[null,null,null,null,null,null,null,null,"American Indian/Alaskan Native "]
[null,null,null,null,null,null,null,null,"Native Hawaiian/Other Pacific Isl. "]
["SELECT OPTION",null,null,null,null,null,null,null,"Am. Indian/Alaskan Native & White "]
[null,null,null,null,null,null,null,null,"Asian & White "]
[null,null,null,null,null,null,null,null,"Black/African Am. & White "]
[null,null,null,null,null,null,null,null,"Am. Indian/Alaskan & Blk/African "]
[null,null,null,null,null,null,null,null,"Other Multi-Racial "]